Workbook

Sheet パート１
A1: 商品名 | B1: 価格 | D1: 品名がしりとりなのは適当です。
A2: リンゴ | B2: 100
A3: ゴリラ | B3: 200
A4: ラッパ | B4: 300
A5: パンツ | B5: 400
A6: 積み木 | B6: 500
A7: キツネ | B7: 600
A8: ネコ | B8: 700
A9: コアラ | B9: 800
A10: ラムネ | B10: 900
A11: ネイル | B11: 1000
A12: ルビー | B12: 1100
A13: ビール | B13: 1200
A14: ルール | B14: 1300
A15: ルパン | B15: 1400

Sheet パート２
A1: 商品名 | B1: 価格 | C1: おおきさ（グラム） | D1: 個数 | E1: 色 | F1: 単位
A2: リンゴ | B2: 100 | C2: ５cm | D2: 2 | E2: 赤 | F2: 個
A3: ゴリラ | B3: 200 | C3: 10cm | D3: 4 | E3: 茶色 | F3: 体
A4: ラッパ | B4: 300 | C4: １５cm | D4: 6 | E4: 黄色 | F4: 個
A5: パンツ | B5: 400 | C5: ２０cm | D5: 8 | E5: ピンク | F5: 枚
A6: 積み木 | B6: 500 | C6: ２５cm | D6: 10 | E6: 茶色 | F6: セット
A7: キツネ | B7: 600 | C7: ３０cm | D7: 12 | E7: 茶色 | F7: 匹
A8: ネコ | B8: 700 | C8: ３５cm | D8: 14 | E8: 白 | F8: 匹
A9: コアラ | B9: 800 | C9: ４０cm | D9: 16 | E9: グレー | F9: 体
A10: ラムネ | B10: 900 | C10: ４５cm | D10: 18 | E10: 白 | F10: 個
A11: ネイル | B11: 1000 | C11: ５０cm | D11: 20 | E11: ピンク | F11: 箇所
A12: ルビー | B12: 1100 | C12: ５５cm | D12: 22 | E12: 赤？ | F12: 個
A13: ビール | B13: 1200 | C13: ６０cm | D13: 24 | E13: 黄色 | F13: 杯
A14: ルール | B14: 1300 | C14: ６５cm | D14: 26 | E14: なし | F14: つ
A15: ルパン | B15: 1400 | C15: ７０cm | D15: 28 | E15: カラフル | F15: 人

Sheet パート３
A1: 掛け算表
B2: 1 | C2: 2 | D2: 3 | E2: 4 | F2: 5 | G2: 6 | H2: 7 | I2: 8 | J2: 9 | K2: 10 | L2: 11 | M2: 12 | N2: 13 | O2: 14 | P2: 15 | Q2: 16 | R2: 17 | S2: 18 | T2: 19 | U2: 20 | V2: 21 | W2: 22 | X2: 23 | Y2: 24 | Z2: 25 | AA2: 26 | AB2: 27 | AC2: 28 | AD2: 29 | AE2: 30 | AF2: 31 | AG2: 32 | AH2: 33 | AI2: 34 | AJ2: 35 | AK2: 36 | AL2: 37 | AM2: 38 | AN2: 39 | AO2: 40 | AP2: 41 | AQ2: 42 | AR2: 43 | AS2: 44 | AT2: 45 | AU2: 46 | AV2: 47 | AW2: 48 | AX2: 49 | AY2: 50 | AZ2: 51 | BA2: 52 | BB2: 53 | BC2: 54 | BD2: 55 | BE2: 56 | BF2: 57 | BG2: 58 | BH2: 59 | BI2: 60 | BJ2: 61 | BK2: 62 | BL2: 63 | BM2: 64 | BN2: 65 | BO2: 66 | BP2: 67 | BQ2: 68 | BR2: 69 | BS2: 70 | BT2: 71 | BU2: 72 | BV2: 73 | BW2: 74 | BX2: 75 | BY2: 76 | BZ2: 77 | CA2: 78 | CB2: 79 | CC2: 80 | CD2: 81 | CE2: 82 | CF2: 83 | CG2: 84 | CH2: 85 | CI2: 86 | CJ2: 87 | CK2: 88 | CL2: 89 | CM2: 90 | CN2: 91 | CO2: 92 | CP2: 93 | CQ2: 94 | CR2: 95 | CS2: 96 | CT2: 97 | CU2: 98 | CV2: 99 | CW2: 100
A3: 1 | B3: =$A3*B$2 -> 1 | C3: 2 | D3: 3 | E3: 4 | F3: 5 | G3: 6 | H3: 7 | I3: 8 | J3: 9 | K3: 10 | L3: =$A3*L$2 -> 11 | M3: 12 | N3: 13 | O3: 14 | P3: 15 | Q3: 16 | R3: 17 | S3: 18 | T3: 19 | U3: 20 | V3: =$A3*V$2 -> 21 | W3: 22 | X3: 23 | Y3: 24 | Z3: 25 | AA3: 26 | AB3: 27 | AC3: 28 | AD3: 29 | AE3: 30 | AF3: =$A3*AF$2 -> 31 | AG3: 32 | AH3: 33 | AI3: 34 | AJ3: 35 | AK3: 36 | AL3: 37 | AM3: 38 | AN3: 39 | AO3: 40 | AP3: =$A3*AP$2 -> 41 | AQ3: 42 | AR3: 43 | AS3: 44 | AT3: 45 | AU3: 46 | AV3: 47 | AW3: 48 | AX3: 49 | AY3: 50 | AZ3: =$A3*AZ$2 -> 51 | BA3: 52 | BB3: 53 | BC3: 54 | BD3: 55 | BE3: 56 | BF3: 57 | BG3: 58 | BH3: 59 | BI3: 60 | BJ3: =$A3*BJ$2 -> 61 | BK3: 62 | BL3: 63 | BM3: 64 | BN3: 65 | BO3: 66 | BP3: 67 | BQ3: 68 | BR3: 69 | BS3: 70 | BT3: =$A3*BT$2 -> 71 | BU3: 72 | BV3: 73 | BW3: 74 | BX3: 75 | BY3: 76 | BZ3: 77 | CA3: 78 | CB3: 79 | CC3: 80 | CD3: =$A3*CD$2 -> 81 | CE3: 82 | CF3: 83 | CG3: 84 | CH3: 85 | CI3: 86 | CJ3: 87 | CK3: 88 | CL3: 89 | CM3: 90 | CN3: =$A3*CN$2 -> 91 | CO3: 92 | CP3: 93 | CQ3: 94 | CR3: 95 | CS3: 96 | CT3: 97 | CU3: 98 | CV3: 99 | CW3: 100
A4: 2 | B4: 2 | C4: 4 | D4: 6 | E4: 8 | F4: 10 | G4: 12 | H4: 14 | I4: 16 | J4: 18 | K4: 20 | L4: 22 | M4: 24 | N4: 26 | O4: 28 | P4: 30 | Q4: 32 | R4: 34 | S4: 36 | T4: 38 | U4: 40 | V4: 42 | W4: 44 | X4: 46 | Y4: 48 | Z4: 50 | AA4: 52 | AB4: 54 | AC4: 56 | AD4: 58 | AE4: 60 | AF4: 62 | AG4: 64 | AH4: 66 | AI4: 68 | AJ4: 70 | AK4: 72 | AL4: 74 | AM4: 76 | AN4: 78 | AO4: 80 | AP4: 82 | AQ4: 84 | AR4: 86 | AS4: 88 | AT4: 90 | AU4: 92 | AV4: 94 | AW4: 96 | AX4: 98 | AY4: 100 | AZ4: 102 | BA4: 104 | BB4: 106 | BC4: 108 | BD4: 110 | BE4: 112 | BF4: 114 | BG4: 116 | BH4: 118 | BI4: 120 | BJ4: 122 | BK4: 124 | BL4: 126 | BM4: 128 | BN4: 130 | BO4: 132 | BP4: 134 | BQ4: 136 | BR4: 138 | BS4: 140 | BT4: 142 | BU4: 144 | BV4: 146 | BW4: 148 | BX4: 150 | BY4: 152 | BZ4: 154 | CA4: 156 | CB4: 158 | CC4: 160 | CD4: 162 | CE4: 164 | CF4: 166 | CG4: 168 | CH4: 170 | CI4: 172 | CJ4: 174 | CK4: 176 | CL4: 178 | CM4: 180 | CN4: 182 | CO4: 184 | CP4: 186 | CQ4: 188 | CR4: 190 | CS4: 192 | CT4: 194 | CU4: 196 | CV4: 198 | CW4: 200
A5: 3 | B5: 3 | C5: 6 | D5: 9 | E5: 12 | F5: 15 | G5: 18 | H5: 21 | I5: 24 | J5: 27 | K5: 30 | L5: 33 | M5: 36 | N5: 39 | O5: 42 | P5: 45 | Q5: 48 | R5: 51 | S5: 54 | T5: 57 | U5: 60 | V5: 63 | W5: 66 | X5: 69 | Y5: 72 | Z5: 75 | AA5: 78 | AB5: 81 | AC5: 84 | AD5: 87 | AE5: 90 | AF5: 93 | AG5: 96 | AH5: 99 | AI5: 102 | AJ5: 105 | AK5: 108 | AL5: 111 | AM5: 114 | AN5: 117 | AO5: 120 | AP5: 123 | AQ5: 126 | AR5: 129 | AS5: 132 | AT5: 135 | AU5: 138 | AV5: 141 | AW5: 144 | AX5: 147 | AY5: 150 | AZ5: 153 | BA5: 156 | BB5: 159 | BC5: 162 | BD5: 165 | BE5: 168 | BF5: 171 | BG5: 174 | BH5: 177 | BI5: 180 | BJ5: 183 | BK5: 186 | BL5: 189 | BM5: 192 | BN5: 195 | BO5: 198 | BP5: 201 | BQ5: 204 | BR5: 207 | BS5: 210 | BT5: 213 | BU5: 216 | BV5: 219 | BW5: 222 | BX5: 225 | BY5: 228 | BZ5: 231 | CA5: 234 | CB5: 237 | CC5: 240 | CD5: 243 | CE5: 246 | CF5: 249 | CG5: 252 | CH5: 255 | CI5: 258 | CJ5: 261 | CK5: 264 | CL5: 267 | CM5: 270 | CN5: 273 | CO5: 276 | CP5: 279 | CQ5: 282 | CR5: 285 | CS5: 288 | CT5: 291 | CU5: 294 | CV5: 297 | CW5: 300
A6: 4 | B6: 4 | C6: 8 | D6: 12 | E6: 16 | F6: 20 | G6: 24 | H6: 28 | I6: 32 | J6: 36 | K6: 40 | L6: 44 | M6: 48 | N6: 52 | O6: 56 | P6: 60 | Q6: 64 | R6: 68 | S6: 72 | T6: 76 | U6: 80 | V6: 84 | W6: 88 | X6: 92 | Y6: 96 | Z6: 100 | AA6: 104 | AB6: 108 | AC6: 112 | AD6: 116 | AE6: 120 | AF6: 124 | AG6: 128 | AH6: 132 | AI6: 136 | AJ6: 140 | AK6: 144 | AL6: 148 | AM6: 152 | AN6: 156 | AO6: 160 | AP6: 164 | AQ6: 168 | AR6: 172 | AS6: 176 | AT6: 180 | AU6: 184 | AV6: 188 | AW6: 192 | AX6: 196 | AY6: 200 | AZ6: 204 | BA6: 208 | BB6: 212 | BC6: 216 | BD6: 220 | BE6: 224 | BF6: 228 | BG6: 232 | BH6: 236 | BI6: 240 | BJ6: 244 | BK6: 248 | BL6: 252 | BM6: 256 | BN6: 260 | BO6: 264 | BP6: 268 | BQ6: 272 | BR6: 276 | BS6: 280 | BT6: 284 | BU6: 288 | BV6: 292 | BW6: 296 | BX6: 300 | BY6: 304 | BZ6: 308 | CA6: 312 | CB6: 316 | CC6: 320 | CD6: 324 | CE6: 328 | CF6: 332 | CG6: 336 | CH6: 340 | CI6: 344 | CJ6: 348 | CK6: 352 | CL6: 356 | CM6: 360 | CN6: 364 | CO6: 368 | CP6: 372 | CQ6: 376 | CR6: 380 | CS6: 384 | CT6: 388 | CU6: 392 | CV6: 396 | CW6: 400
A7: 5 | B7: 5 | C7: 10 | D7: 15 | E7: 20 | F7: 25 | G7: 30 | H7: 35 | I7: 40 | J7: 45 | K7: 50 | L7: 55 | M7: 60 | N7: 65 | O7: 70 | P7: 75 | Q7: 80 | R7: 85 | S7: 90 | T7: 95 | U7: 100 | V7: 105 | W7: 110 | X7: 115 | Y7: 120 | Z7: 125 | AA7: 130 | AB7: 135 | AC7: 140 | AD7: 145 | AE7: 150 | AF7: 155 | AG7: 160 | AH7: 165 | AI7: 170 | AJ7: 175 | AK7: 180 | AL7: 185 | AM7: 190 | AN7: 195 | AO7: 200 | AP7: 205 | AQ7: 210 | AR7: 215 | AS7: 220 | AT7: 225 | AU7: 230 | AV7: 235 | AW7: 240 | AX7: 245 | AY7: 250 | AZ7: 255 | BA7: 260 | BB7: 265 | BC7: 270 | BD7: 275 | BE7: 280 | BF7: 285 | BG7: 290 | BH7: 295 | BI7: 300 | BJ7: 305 | BK7: 310 | BL7: 315 | BM7: 320 | BN7: 325 | BO7: 330 | BP7: 335 | BQ7: 340 | BR7: 345 | BS7: 350 | BT7: 355 | BU7: 360 | BV7: 365 | BW7: 370 | BX7: 375 | BY7: 380 | BZ7: 385 | CA7: 390 | CB7: 395 | CC7: 400 | CD7: 405 | CE7: 410 | CF7: 415 | CG7: 420 | CH7: 425 | CI7: 430 | CJ7: 435 | CK7: 440 | CL7: 445 | CM7: 450 | CN7: 455 | CO7: 460 | CP7: 465 | CQ7: 470 | CR7: 475 | CS7: 480 | CT7: 485 | CU7: 490 | CV7: 495 | CW7: 500
A8: 6 | B8: 6 | C8: 12 | D8: 18 | E8: 24 | F8: 30 | G8: 36 | H8: 42 | I8: 48 | J8: 54 | K8: 60 | L8: 66 | M8: 72 | N8: 78 | O8: 84 | P8: 90 | Q8: 96 | R8: 102 | S8: 108 | T8: 114 | U8: 120 | V8: 126 | W8: 132 | X8: 138 | Y8: 144 | Z8: 150 | AA8: 156 | AB8: 162 | AC8: 168 | AD8: 174 | AE8: 180 | AF8: 186 | AG8: 192 | AH8: 198 | AI8: 204 | AJ8: 210 | AK8: 216 | AL8: 222 | AM8: 228 | AN8: 234 | AO8: 240 | AP8: 246 | AQ8: 252 | AR8: 258 | AS8: 264 | AT8: 270 | AU8: 276 | AV8: 282 | AW8: 288 | AX8: 294 | AY8: 300 | AZ8: 306 | BA8: 312 | BB8: 318 | BC8: 324 | BD8: 330 | BE8: 336 | BF8: 342 | BG8: 348 | BH8: 354 | BI8: 360 | BJ8: 366 | BK8: 372 | BL8: 378 | BM8: 384 | BN8: 390 | BO8: 396 | BP8: 402 | BQ8: 408 | BR8: 414 | BS8: 420 | BT8: 426 | BU8: 432 | BV8: 438 | BW8: 444 | BX8: 450 | BY8: 456 | BZ8: 462 | CA8: 468 | CB8: 474 | CC8: 480 | CD8: 486 | CE8: 492 | CF8: 498 | CG8: 504 | CH8: 510 | CI8: 516 | CJ8: 522 | CK8: 528 | CL8: 534 | CM8: 540 | CN8: 546 | CO8: 552 | CP8: 558 | CQ8: 564 | CR8: 570 | CS8: 576 | CT8: 582 | CU8: 588 | CV8: 594 | CW8: 600
A9: 7 | B9: 7 | C9: 14 | D9: 21 | E9: 28 | F9: 35 | G9: 42 | H9: 49 | I9: 56 | J9: 63 | K9: 70 | L9: 77 | M9: 84 | N9: 91 | O9: 98 | P9: 105 | Q9: 112 | R9: 119 | S9: 126 | T9: 133 | U9: 140 | V9: 147 | W9: 154 | X9: 161 | Y9: 168 | Z9: 175 | AA9: 182 | AB9: 189 | AC9: 196 | AD9: 203 | AE9: 210 | AF9: 217 | AG9: 224 | AH9: 231 | AI9: 238 | AJ9: 245 | AK9: 252 | AL9: 259 | AM9: 266 | AN9: 273 | AO9: 280 | AP9: 287 | AQ9: 294 | AR9: 301 | AS9: 308 | AT9: 315 | AU9: 322 | AV9: 329 | AW9: 336 | AX9: 343 | AY9: 350 | AZ9: 357 | BA9: 364 | BB9: 371 | BC9: 378 | BD9: 385 | BE9: 392 | BF9: 399 | BG9: 406 | BH9: 413 | BI9: 420 | BJ9: 427 | BK9: 434 | BL9: 441 | BM9: 448 | BN9: 455 | BO9: 462 | BP9: 469 | BQ9: 476 | BR9: 483 | BS9: 490 | BT9: 497 | BU9: 504 | BV9: 511 | BW9: 518 | BX9: 525 | BY9: 532 | BZ9: 539 | CA9: 546 | CB9: 553 | CC9: 560 | CD9: 567 | CE9: 574 | CF9: 581 | CG9: 588 | CH9: 595 | CI9: 602 | CJ9: 609 | CK9: 616 | CL9: 623 | CM9: 630 | CN9: 637 | CO9: 644 | CP9: 651 | CQ9: 658 | CR9: 665 | CS9: 672 | CT9: 679 | CU9: 686 | CV9: 693 | CW9: 700
A10: 8 | B10: 8 | C10: 16 | D10: 24 | E10: 32 | F10: 40 | G10: 48 | H10: 56 | I10: 64 | J10: 72 | K10: 80 | L10: 88 | M10: 96 | N10: 104 | O10: 112 | P10: 120 | Q10: 128 | R10: 136 | S10: 144 | T10: 152 | U10: 160 | V10: 168 | W10: 176 | X10: 184 | Y10: 192 | Z10: 200 | AA10: 208 | AB10: 216 | AC10: 224 | AD10: 232 | AE10: 240 | AF10: 248 | AG10: 256 | AH10: 264 | AI10: 272 | AJ10: 280 | AK10: 288 | AL10: 296 | AM10: 304 | AN10: 312 | AO10: 320 | AP10: 328 | AQ10: 336 | AR10: 344 | AS10: 352 | AT10: 360 | AU10: 368 | AV10: 376 | AW10: 384 | AX10: 392 | AY10: 400 | AZ10: 408 | BA10: 416 | BB10: 424 | BC10: 432 | BD10: 440 | BE10: 448 | BF10: 456 | BG10: 464 | BH10: 472 | BI10: 480 | BJ10: 488 | BK10: 496 | BL10: 504 | BM10: 512 | BN10: 520 | BO10: 528 | BP10: 536 | BQ10: 544 | BR10: 552 | BS10: 560 | BT10: 568 | BU10: 576 | BV10: 584 | BW10: 592 | BX10: 600 | BY10: 608 | BZ10: 616 | CA10: 624 | CB10: 632 | CC10: 640 | CD10: 648 | CE10: 656 | CF10: 664 | CG10: 672 | CH10: 680 | CI10: 688 | CJ10: 696 | CK10: 704 | CL10: 712 | CM10: 720 | CN10: 728 | CO10: 736 | CP10: 744 | CQ10: 752 | CR10: 760 | CS10: 768 | CT10: 776 | CU10: 784 | CV10: 792 | CW10: 800
A11: 9 | B11: 9 | C11: 18 | D11: 27 | E11: 36 | F11: 45 | G11: 54 | H11: 63 | I11: 72 | J11: 81 | K11: 90 | L11: 99 | M11: 108 | N11: 117 | O11: 126 | P11: 135 | Q11: 144 | R11: 153 | S11: 162 | T11: 171 | U11: 180 | V11: 189 | W11: 198 | X11: 207 | Y11: 216 | Z11: 225 | AA11: 234 | AB11: 243 | AC11: 252 | AD11: 261 | AE11: 270 | AF11: 279 | AG11: 288 | AH11: 297 | AI11: 306 | AJ11: 315 | AK11: 324 | AL11: 333 | AM11: 342 | AN11: 351 | AO11: 360 | AP11: 369 | AQ11: 378 | AR11: 387 | AS11: 396 | AT11: 405 | AU11: 414 | AV11: 423 | AW11: 432 | AX11: 441 | AY11: 450 | AZ11: 459 | BA11: 468 | BB11: 477 | BC11: 486 | BD11: 495 | BE11: 504 | BF11: 513 | BG11: 522 | BH11: 531 | BI11: 540 | BJ11: 549 | BK11: 558 | BL11: 567 | BM11: 576 | BN11: 585 | BO11: 594 | BP11: 603 | BQ11: 612 | BR11: 621 | BS11: 630 | BT11: 639 | BU11: 648 | BV11: 657 | BW11: 666 | BX11: 675 | BY11: 684 | BZ11: 693 | CA11: 702 | CB11: 711 | CC11: 720 | CD11: 729 | CE11: 738 | CF11: 747 | CG11: 756 | CH11: 765 | CI11: 774 | CJ11: 783 | CK11: 792 | CL11: 801 | CM11: 810 | CN11: 819 | CO11: 828 | CP11: 837 | CQ11: 846 | CR11: 855 | CS11: 864 | CT11: 873 | CU11: 882 | CV11: 891 | CW11: 900
A12: 10 | B12: 10 | C12: 20 | D12: 30 | E12: 40 | F12: 50 | G12: 60 | H12: 70 | I12: 80 | J12: 90 | K12: 100 | L12: 110 | M12: 120 | N12: 130 | O12: 140 | P12: 150 | Q12: 160 | R12: 170 | S12: 180 | T12: 190 | U12: 200 | V12: 210 | W12: 220 | X12: 230 | Y12: 240 | Z12: 250 | AA12: 260 | AB12: 270 | AC12: 280 | AD12: 290 | AE12: 300 | AF12: 310 | AG12: 320 | AH12: 330 | AI12: 340 | AJ12: 350 | AK12: 360 | AL12: 370 | AM12: 380 | AN12: 390 | AO12: 400 | AP12: 410 | AQ12: 420 | AR12: 430 | AS12: 440 | AT12: 450 | AU12: 460 | AV12: 470 | AW12: 480 | AX12: 490 | AY12: 500 | AZ12: 510 | BA12: 520 | BB12: 530 | BC12: 540 | BD12: 550 | BE12: 560 | BF12: 570 | BG12: 580 | BH12: 590 | BI12: 600 | BJ12: 610 | BK12: 620 | BL12: 630 | BM12: 640 | BN12: 650 | BO12: 660 | BP12: 670 | BQ12: 680 | BR12: 690 | BS12: 700 | BT12: 710 | BU12: 720 | BV12: 730 | BW12: 740 | BX12: 750 | BY12: 760 | BZ12: 770 | CA12: 780 | CB12: 790 | CC12: 800 | CD12: 810 | CE12: 820 | CF12: 830 | CG12: 840 | CH12: 850 | CI12: 860 | CJ12: 870 | CK12: 880 | CL12: 890 | CM12: 900 | CN12: 910 | CO12: 920 | CP12: 930 | CQ12: 940 | CR12: 950 | CS12: 960 | CT12: 970 | CU12: 980 | CV12: 990 | CW12: 1000
A13: 11 | B13: =$A13*B$2 -> 11 | C13: 22 | D13: 33 | E13: 44 | F13: 55 | G13: 66 | H13: 77 | I13: 88 | J13: 99 | K13: 110 | L13: =$A13*L$2 -> 121 | M13: 132 | N13: 143 | O13: 154 | P13: 165 | Q13: 176 | R13: 187 | S13: 198 | T13: 209 | U13: 220 | V13: =$A13*V$2 -> 231 | W13: 242 | X13: 253 | Y13: 264 | Z13: 275 | AA13: 286 | AB13: 297 | AC13: 308 | AD13: 319 | AE13: 330 | AF13: =$A13*AF$2 -> 341 | AG13: 352 | AH13: 363 | AI13: 374 | AJ13: 385 | AK13: 396 | AL13: 407 | AM13: 418 | AN13: 429 | AO13: 440 | AP13: =$A13*AP$2 -> 451 | AQ13: 462 | AR13: 473 | AS13: 484 | AT13: 495 | AU13: 506 | AV13: 517 | AW13: 528 | AX13: 539 | AY13: 550 | AZ13: =$A13*AZ$2 -> 561 | BA13: 572 | BB13: 583 | BC13: 594 | BD13: 605 | BE13: 616 | BF13: 627 | BG13: 638 | BH13: 649 | BI13: 660 | BJ13: =$A13*BJ$2 -> 671 | BK13: 682 | BL13: 693 | BM13: 704 | BN13: 715 | BO13: 726 | BP13: 737 | BQ13: 748 | BR13: 759 | BS13: 770 | BT13: =$A13*BT$2 -> 781 | BU13: 792 | BV13: 803 | BW13: 814 | BX13: 825 | BY13: 836 | BZ13: 847 | CA13: 858 | CB13: 869 | CC13: 880 | CD13: =$A13*CD$2 -> 891 | CE13: 902 | CF13: 913 | CG13: 924 | CH13: 935 | CI13: 946 | CJ13: 957 | CK13: 968 | CL13: 979 | CM13: 990 | CN13: =$A13*CN$2 -> 1001 | CO13: 1012 | CP13: 1023 | CQ13: 1034 | CR13: 1045 | CS13: 1056 | CT13: 1067 | CU13: 1078 | CV13: 1089 | CW13: 1100
A14: 12 | B14: 12 | C14: 24 | D14: 36 | E14: 48 | F14: 60 | G14: 72 | H14: 84 | I14: 96 | J14: 108 | K14: 120 | L14: 132 | M14: 144 | N14: 156 | O14: 168 | P14: 180 | Q14: 192 | R14: 204 | S14: 216 | T14: 228 | U14: 240 | V14: 252 | W14: 264 | X14: 276 | Y14: 288 | Z14: 300 | AA14: 312 | AB14: 324 | AC14: 336 | AD14: 348 | AE14: 360 | AF14: 372 | AG14: 384 | AH14: 396 | AI14: 408 | AJ14: 420 | AK14: 432 | AL14: 444 | AM14: 456 | AN14: 468 | AO14: 480 | AP14: 492 | AQ14: 504 | AR14: 516 | AS14: 528 | AT14: 540 | AU14: 552 | AV14: 564 | AW14: 576 | AX14: 588 | AY14: 600 | AZ14: 612 | BA14: 624 | BB14: 636 | BC14: 648 | BD14: 660 | BE14: 672 | BF14: 684 | BG14: 696 | BH14: 708 | BI14: 720 | BJ14: 732 | BK14: 744 | BL14: 756 | BM14: 768 | BN14: 780 | BO14: 792 | BP14: 804 | BQ14: 816 | BR14: 828 | BS14: 840 | BT14: 852 | BU14: 864 | BV14: 876 | BW14: 888 | BX14: 900 | BY14: 912 | BZ14: 924 | CA14: 936 | CB14: 948 | CC14: 960 | CD14: 972 | CE14: 984 | CF14: 996 | CG14: 1008 | CH14: 1020 | CI14: 1032 | CJ14: 1044 | CK14: 1056 | CL14: 1068 | CM14: 1080 | CN14: 1092 | CO14: 1104 | CP14: 1116 | CQ14: 1128 | CR14: 1140 | CS14: 1152 | CT14: 1164 | CU14: 1176 | CV14: 1188 | CW14: 1200
A15: 13 | B15: 13 | C15: 26 | D15: 39 | E15: 52 | F15: 65 | G15: 78 | H15: 91 | I15: 104 | J15: 117 | K15: 130 | L15: 143 | M15: 156 | N15: 169 | O15: 182 | P15: 195 | Q15: 208 | R15: 221 | S15: 234 | T15: 247 | U15: 260 | V15: 273 | W15: 286 | X15: 299 | Y15: 312 | Z15: 325 | AA15: 338 | AB15: 351 | AC15: 364 | AD15: 377 | AE15: 390 | AF15: 403 | AG15: 416 | AH15: 429 | AI15: 442 | AJ15: 455 | AK15: 468 | AL15: 481 | AM15: 494 | AN15: 507 | AO15: 520 | AP15: 533 | AQ15: 546 | AR15: 559 | AS15: 572 | AT15: 585 | AU15: 598 | AV15: 611 | AW15: 624 | AX15: 637 | AY15: 650 | AZ15: 663 | BA15: 676 | BB15: 689 | BC15: 702 | BD15: 715 | BE15: 728 | BF15: 741 | BG15: 754 | BH15: 767 | BI15: 780 | BJ15: 793 | BK15: 806 | BL15: 819 | BM15: 832 | BN15: 845 | BO15: 858 | BP15: 871 | BQ15: 884 | BR15: 897 | BS15: 910 | BT15: 923 | BU15: 936 | BV15: 949 | BW15: 962 | BX15: 975 | BY15: 988 | BZ15: 1001 | CA15: 1014 | CB15: 1027 | CC15: 1040 | CD15: 1053 | CE15: 1066 | CF15: 1079 | CG15: 1092 | CH15: 1105 | CI15: 1118 | CJ15: 1131 | CK15: 1144 | CL15: 1157 | CM15: 1170 | CN15: 1183 | CO15: 1196 | CP15: 1209 | CQ15: 1222 | CR15: 1235 | CS15: 1248 | CT15: 1261 | CU15: 1274 | CV15: 1287 | CW15: 1300
A16: 14 | B16: 14 | C16: 28 | D16: 42 | E16: 56 | F16: 70 | G16: 84 | H16: 98 | I16: 112 | J16: 126 | K16: 140 | L16: 154 | M16: 168 | N16: 182 | O16: 196 | P16: 210 | Q16: 224 | R16: 238 | S16: 252 | T16: 266 | U16: 280 | V16: 294 | W16: 308 | X16: 322 | Y16: 336 | Z16: 350 | AA16: 364 | AB16: 378 | AC16: 392 | AD16: 406 | AE16: 420 | AF16: 434 | AG16: 448 | AH16: 462 | AI16: 476 | AJ16: 490 | AK16: 504 | AL16: 518 | AM16: 532 | AN16: 546 | AO16: 560 | AP16: 574 | AQ16: 588 | AR16: 602 | AS16: 616 | AT16: 630 | AU16: 644 | AV16: 658 | AW16: 672 | AX16: 686 | AY16: 700 | AZ16: 714 | BA16: 728 | BB16: 742 | BC16: 756 | BD16: 770 | BE16: 784 | BF16: 798 | BG16: 812 | BH16: 826 | BI16: 840 | BJ16: 854 | BK16: 868 | BL16: 882 | BM16: 896 | BN16: 910 | BO16: 924 | BP16: 938 | BQ16: 952 | BR16: 966 | BS16: 980 | BT16: 994 | BU16: 1008 | BV16: 1022 | BW16: 1036 | BX16: 1050 | BY16: 1064 | BZ16: 1078 | CA16: 1092 | CB16: 1106 | CC16: 1120 | CD16: 1134 | CE16: 1148 | CF16: 1162 | CG16: 1176 | CH16: 1190 | CI16: 1204 | CJ16: 1218 | CK16: 1232 | CL16: 1246 | CM16: 1260 | CN16: 1274 | CO16: 1288 | CP16: 1302 | CQ16: 1316 | CR16: 1330 | CS16: 1344 | CT16: 1358 | CU16: 1372 | CV16: 1386 | CW16: 1400
A17: 15 | B17: 15 | C17: 30 | D17: 45 | E17: 60 | F17: 75 | G17: 90 | H17: 105 | I17: 120 | J17: 135 | K17: 150 | L17: 165 | M17: 180 | N17: 195 | O17: 210 | P17: 225 | Q17: 240 | R17: 255 | S17: 270 | T17: 285 | U17: 300 | V17: 315 | W17: 330 | X17: 345 | Y17: 360 | Z17: 375 | AA17: 390 | AB17: 405 | AC17: 420 | AD17: 435 | AE17: 450 | AF17: 465 | AG17: 480 | AH17: 495 | AI17: 510 | AJ17: 525 | AK17: 540 | AL17: 555 | AM17: 570 | AN17: 585 | AO17: 600 | AP17: 615 | AQ17: 630 | AR17: 645 | AS17: 660 | AT17: 675 | AU17: 690 | AV17: 705 | AW17: 720 | AX17: 735 | AY17: 750 | AZ17: 765 | BA17: 780 | BB17: 795 | BC17: 810 | BD17: 825 | BE17: 840 | BF17: 855 | BG17: 870 | BH17: 885 | BI17: 900 | BJ17: 915 | BK17: 930 | BL17: 945 | BM17: 960 | BN17: 975 | BO17: 990 | BP17: 1005 | BQ17: 1020 | BR17: 1035 | BS17: 1050 | BT17: 1065 | BU17: 1080 | BV17: 1095 | BW17: 1110 | BX17: 1125 | BY17: 1140 | BZ17: 1155 | CA17: 1170 | CB17: 1185 | CC17: 1200 | CD17: 1215 | CE17: 1230 | CF17: 1245 | CG17: 1260 | CH17: 1275 | CI17: 1290 | CJ17: 1305 | CK17: 1320 | CL17: 1335 | CM17: 1350 | CN17: 1365 | CO17: 1380 | CP17: 1395 | CQ17: 1410 | CR17: 1425 | CS17: 1440 | CT17: 1455 | CU17: 1470 | CV17: 1485 | CW17: 1500
A18: 16 | B18: 16 | C18: 32 | D18: 48 | E18: 64 | F18: 80 | G18: 96 | H18: 112 | I18: 128 | J18: 144 | K18: 160 | L18: 176 | M18: 192 | N18: 208 | O18: 224 | P18: 240 | Q18: 256 | R18: 272 | S18: 288 | T18: 304 | U18: 320 | V18: 336 | W18: 352 | X18: 368 | Y18: 384 | Z18: 400 | AA18: 416 | AB18: 432 | AC18: 448 | AD18: 464 | AE18: 480 | AF18: 496 | AG18: 512 | AH18: 528 | AI18: 544 | AJ18: 560 | AK18: 576 | AL18: 592 | AM18: 608 | AN18: 624 | AO18: 640 | AP18: 656 | AQ18: 672 | AR18: 688 | AS18: 704 | AT18: 720 | AU18: 736 | AV18: 752 | AW18: 768 | AX18: 784 | AY18: 800 | AZ18: 816 | BA18: 832 | BB18: 848 | BC18: 864 | BD18: 880 | BE18: 896 | BF18: 912 | BG18: 928 | BH18: 944 | BI18: 960 | BJ18: 976 | BK18: 992 | BL18: 1008 | BM18: 1024 | BN18: 1040 | BO18: 1056 | BP18: 1072 | BQ18: 1088 | BR18: 1104 | BS18: 1120 | BT18: 1136 | BU18: 1152 | BV18: 1168 | BW18: 1184 | BX18: 1200 | BY18: 1216 | BZ18: 1232 | CA18: 1248 | CB18: 1264 | CC18: 1280 | CD18: 1296 | CE18: 1312 | CF18: 1328 | CG18: 1344 | CH18: 1360 | CI18: 1376 | CJ18: 1392 | CK18: 1408 | CL18: 1424 | CM18: 1440 | CN18: 1456 | CO18: 1472 | CP18: 1488 | CQ18: 1504 | CR18: 1520 | CS18: 1536 | CT18: 1552 | CU18: 1568 | CV18: 1584 | CW18: 1600
A19: 17 | B19: 17 | C19: 34 | D19: 51 | E19: 68 | F19: 85 | G19: 102 | H19: 119 | I19: 136 | J19: 153 | K19: 170 | L19: 187 | M19: 204 | N19: 221 | O19: 238 | P19: 255 | Q19: 272 | R19: 289 | S19: 306 | T19: 323 | U19: 340 | V19: 357 | W19: 374 | X19: 391 | Y19: 408 | Z19: 425 | AA19: 442 | AB19: 459 | AC19: 476 | AD19: 493 | AE19: 510 | AF19: 527 | AG19: 544 | AH19: 561 | AI19: 578 | AJ19: 595 | AK19: 612 | AL19: 629 | AM19: 646 | AN19: 663 | AO19: 680 | AP19: 697 | AQ19: 714 | AR19: 731 | AS19: 748 | AT19: 765 | AU19: 782 | AV19: 799 | AW19: 816 | AX19: 833 | AY19: 850 | AZ19: 867 | BA19: 884 | BB19: 901 | BC19: 918 | BD19: 935 | BE19: 952 | BF19: 969 | BG19: 986 | BH19: 1003 | BI19: 1020 | BJ19: 1037 | BK19: 1054 | BL19: 1071 | BM19: 1088 | BN19: 1105 | BO19: 1122 | BP19: 1139 | BQ19: 1156 | BR19: 1173 | BS19: 1190 | BT19: 1207 | BU19: 1224 | BV19: 1241 | BW19: 1258 | BX19: 1275 | BY19: 1292 | BZ19: 1309 | CA19: 1326 | CB19: 1343 | CC19: 1360 | CD19: 1377 | CE19: 1394 | CF19: 1411 | CG19: 1428 | CH19: 1445 | CI19: 1462 | CJ19: 1479 | CK19: 1496 | CL19: 1513 | CM19: 1530 | CN19: 1547 | CO19: 1564 | CP19: 1581 | CQ19: 1598 | CR19: 1615 | CS19: 1632 | CT19: 1649 | CU19: 1666 | CV19: 1683 | CW19: 1700
A20: 18 | B20: 18 | C20: 36 | D20: 54 | E20: 72 | F20: 90 | G20: 108 | H20: 126 | I20: 144 | J20: 162 | K20: 180 | L20: 198 | M20: 216 | N20: 234 | O20: 252 | P20: 270 | Q20: 288 | R20: 306 | S20: 324 | T20: 342 | U20: 360 | V20: 378 | W20: 396 | X20: 414 | Y20: 432 | Z20: 450 | AA20: 468 | AB20: 486 | AC20: 504 | AD20: 522 | AE20: 540 | AF20: 558 | AG20: 576 | AH20: 594 | AI20: 612 | AJ20: 630 | AK20: 648 | AL20: 666 | AM20: 684 | AN20: 702 | AO20: 720 | AP20: 738 | AQ20: 756 | AR20: 774 | AS20: 792 | AT20: 810 | AU20: 828 | AV20: 846 | AW20: 864 | AX20: 882 | AY20: 900 | AZ20: 918 | BA20: 936 | BB20: 954 | BC20: 972 | BD20: 990 | BE20: 1008 | BF20: 1026 | BG20: 1044 | BH20: 1062 | BI20: 1080 | BJ20: 1098 | BK20: 1116 | BL20: 1134 | BM20: 1152 | BN20: 1170 | BO20: 1188 | BP20: 1206 | BQ20: 1224 | BR20: 1242 | BS20: 1260 | BT20: 1278 | BU20: 1296 | BV20: 1314 | BW20: 1332 | BX20: 1350 | BY20: 1368 | BZ20: 1386 | CA20: 1404 | CB20: 1422 | CC20: 1440 | CD20: 1458 | CE20: 1476 | CF20: 1494 | CG20: 1512 | CH20: 1530 | CI20: 1548 | CJ20: 1566 | CK20: 1584 | CL20: 1602 | CM20: 1620 | CN20: 1638 | CO20: 1656 | CP20: 1674 | CQ20: 1692 | CR20: 1710 | CS20: 1728 | CT20: 1746 | CU20: 1764 | CV20: 1782 | CW20: 1800
A21: 19 | B21: 19 | C21: 38 | D21: 57 | E21: 76 | F21: 95 | G21: 114 | H21: 133 | I21: 152 | J21: 171 | K21: 190 | L21: 209 | M21: 228 | N21: 247 | O21: 266 | P21: 285 | Q21: 304 | R21: 323 | S21: 342 | T21: 361 | U21: 380 | V21: 399 | W21: 418 | X21: 437 | Y21: 456 | Z21: 475 | AA21: 494 | AB21: 513 | AC21: 532 | AD21: 551 | AE21: 570 | AF21: 589 | AG21: 608 | AH21: 627 | AI21: 646 | AJ21: 665 | AK21: 684 | AL21: 703 | AM21: 722 | AN21: 741 | AO21: 760 | AP21: 779 | AQ21: 798 | AR21: 817 | AS21: 836 | AT21: 855 | AU21: 874 | AV21: 893 | AW21: 912 | AX21: 931 | AY21: 950 | AZ21: 969 | BA21: 988 | BB21: 1007 | BC21: 1026 | BD21: 1045 | BE21: 1064 | BF21: 1083 | BG21: 1102 | BH21: 1121 | BI21: 1140 | BJ21: 1159 | BK21: 1178 | BL21: 1197 | BM21: 1216 | BN21: 1235 | BO21: 1254 | BP21: 1273 | BQ21: 1292 | BR21: 1311 | BS21: 1330 | BT21: 1349 | BU21: 1368 | BV21: 1387 | BW21: 1406 | BX21: 1425 | BY21: 1444 | BZ21: 1463 | CA21: 1482 | CB21: 1501 | CC21: 1520 | CD21: 1539 | CE21: 1558 | CF21: 1577 | CG21: 1596 | CH21: 1615 | CI21: 1634 | CJ21: 1653 | CK21: 1672 | CL21: 1691 | CM21: 1710 | CN21: 1729 | CO21: 1748 | CP21: 1767 | CQ21: 1786 | CR21: 1805 | CS21: 1824 | CT21: 1843 | CU21: 1862 | CV21: 1881 | CW21: 1900
A22: 20 | B22: 20 | C22: 40 | D22: 60 | E22: 80 | F22: 100 | G22: 120 | H22: 140 | I22: 160 | J22: 180 | K22: 200 | L22: 220 | M22: 240 | N22: 260 | O22: 280 | P22: 300 | Q22: 320 | R22: 340 | S22: 360 | T22: 380 | U22: 400 | V22: 420 | W22: 440 | X22: 460 | Y22: 480 | Z22: 500 | AA22: 520 | AB22: 540 | AC22: 560 | AD22: 580 | AE22: 600 | AF22: 620 | AG22: 640 | AH22: 660 | AI22: 680 | AJ22: 700 | AK22: 720 | AL22: 740 | AM22: 760 | AN22: 780 | AO22: 800 | AP22: 820 | AQ22: 840 | AR22: 860 | AS22: 880 | AT22: 900 | AU22: 920 | AV22: 940 | AW22: 960 | AX22: 980 | AY22: 1000 | AZ22: 1020 | BA22: 1040 | BB22: 1060 | BC22: 1080 | BD22: 1100 | BE22: 1120 | BF22: 1140 | BG22: 1160 | BH22: 1180 | BI22: 1200 | BJ22: 1220 | BK22: 1240 | BL22: 1260 | BM22: 1280 | BN22: 1300 | BO22: 1320 | BP22: 1340 | BQ22: 1360 | BR22: 1380 | BS22: 1400 | BT22: 1420 | BU22: 1440 | BV22: 1460 | BW22: 1480 | BX22: 1500 | BY22: 1520 | BZ22: 1540 | CA22: 1560 | CB22: 1580 | CC22: 1600 | CD22: 1620 | CE22: 1640 | CF22: 1660 | CG22: 1680 | CH22: 1700 | CI22: 1720 | CJ22: 1740 | CK22: 1760 | CL22: 1780 | CM22: 1800 | CN22: 1820 | CO22: 1840 | CP22: 1860 | CQ22: 1880 | CR22: 1900 | CS22: 1920 | CT22: 1940 | CU22: 1960 | CV22: 1980 | CW22: 2000
A23: 21 | B23: =$A23*B$2 -> 21 | C23: 42 | D23: 63 | E23: 84 | F23: 105 | G23: 126 | H23: 147 | I23: 168 | J23: 189 | K23: 210 | L23: =$A23*L$2 -> 231 | M23: 252 | N23: 273 | O23: 294 | P23: 315 | Q23: 336 | R23: 357 | S23: 378 | T23: 399 | U23: 420 | V23: =$A23*V$2 -> 441 | W23: 462 | X23: 483 | Y23: 504 | Z23: 525 | AA23: 546 | AB23: 567 | AC23: 588 | AD23: 609 | AE23: 630 | AF23: =$A23*AF$2 -> 651 | AG23: 672 | AH23: 693 | AI23: 714 | AJ23: 735 | AK23: 756 | AL23: 777 | AM23: 798 | AN23: 819 | AO23: 840 | AP23: =$A23*AP$2 -> 861 | AQ23: 882 | AR23: 903 | AS23: 924 | AT23: 945 | AU23: 966 | AV23: 987 | AW23: 1008 | AX23: 1029 | AY23: 1050 | AZ23: =$A23*AZ$2 -> 1071 | BA23: 1092 | BB23: 1113 | BC23: 1134 | BD23: 1155 | BE23: 1176 | BF23: 1197 | BG23: 1218 | BH23: 1239 | BI23: 1260 | BJ23: =$A23*BJ$2 -> 1281 | BK23: 1302 | BL23: 1323 | BM23: 1344 | BN23: 1365 | BO23: 1386 | BP23: 1407 | BQ23: 1428 | BR23: 1449 | BS23: 1470 | BT23: =$A23*BT$2 -> 1491 | BU23: 1512 | BV23: 1533 | BW23: 1554 | BX23: 1575 | BY23: 1596 | BZ23: 1617 | CA23: 1638 | CB23: 1659 | CC23: 1680 | CD23: =$A23*CD$2 -> 1701 | CE23: 1722 | CF23: 1743 | CG23: 1764 | CH23: 1785 | CI23: 1806 | CJ23: 1827 | CK23: 1848 | CL23: 1869 | CM23: 1890 | CN23: =$A23*CN$2 -> 1911 | CO23: 1932 | CP23: 1953 | CQ23: 1974 | CR23: 1995 | CS23: 2016 | CT23: 2037 | CU23: 2058 | CV23: 2079 | CW23: 2100
A24: 22 | B24: 22 | C24: 44 | D24: 66 | E24: 88 | F24: 110 | G24: 132 | H24: 154 | I24: 176 | J24: 198 | K24: 220 | L24: 242 | M24: 264 | N24: 286 | O24: 308 | P24: 330 | Q24: 352 | R24: 374 | S24: 396 | T24: 418 | U24: 440 | V24: 462 | W24: 484 | X24: 506 | Y24: 528 | Z24: 550 | AA24: 572 | AB24: 594 | AC24: 616 | AD24: 638 | AE24: 660 | AF24: 682 | AG24: 704 | AH24: 726 | AI24: 748 | AJ24: 770 | AK24: 792 | AL24: 814 | AM24: 836 | AN24: 858 | AO24: 880 | AP24: 902 | AQ24: 924 | AR24: 946 | AS24: 968 | AT24: 990 | AU24: 1012 | AV24: 1034 | AW24: 1056 | AX24: 1078 | AY24: 1100 | AZ24: 1122 | BA24: 1144 | BB24: 1166 | BC24: 1188 | BD24: 1210 | BE24: 1232 | BF24: 1254 | BG24: 1276 | BH24: 1298 | BI24: 1320 | BJ24: 1342 | BK24: 1364 | BL24: 1386 | BM24: 1408 | BN24: 1430 | BO24: 1452 | BP24: 1474 | BQ24: 1496 | BR24: 1518 | BS24: 1540 | BT24: 1562 | BU24: 1584 | BV24: 1606 | BW24: 1628 | BX24: 1650 | BY24: 1672 | BZ24: 1694 | CA24: 1716 | CB24: 1738 | CC24: 1760 | CD24: 1782 | CE24: 1804 | CF24: 1826 | CG24: 1848 | CH24: 1870 | CI24: 1892 | CJ24: 1914 | CK24: 1936 | CL24: 1958 | CM24: 1980 | CN24: 2002 | CO24: 2024 | CP24: 2046 | CQ24: 2068 | CR24: 2090 | CS24: 2112 | CT24: 2134 | CU24: 2156 | CV24: 2178 | CW24: 2200
A25: 23 | B25: 23 | C25: 46 | D25: 69 | E25: 92 | F25: 115 | G25: 138 | H25: 161 | I25: 184 | J25: 207 | K25: 230 | L25: 253 | M25: 276 | N25: 299 | O25: 322 | P25: 345 | Q25: 368 | R25: 391 | S25: 414 | T25: 437 | U25: 460 | V25: 483 | W25: 506 | X25: 529 | Y25: 552 | Z25: 575 | AA25: 598 | AB25: 621 | AC25: 644 | AD25: 667 | AE25: 690 | AF25: 713 | AG25: 736 | AH25: 759 | AI25: 782 | AJ25: 805 | AK25: 828 | AL25: 851 | AM25: 874 | AN25: 897 | AO25: 920 | AP25: 943 | AQ25: 966 | AR25: 989 | AS25: 1012 | AT25: 1035 | AU25: 1058 | AV25: 1081 | AW25: 1104 | AX25: 1127 | AY25: 1150 | AZ25: 1173 | BA25: 1196 | BB25: 1219 | BC25: 1242 | BD25: 1265 | BE25: 1288 | BF25: 1311 | BG25: 1334 | BH25: 1357 | BI25: 1380 | BJ25: 1403 | BK25: 1426 | BL25: 1449 | BM25: 1472 | BN25: 1495 | BO25: 1518 | BP25: 1541 | BQ25: 1564 | BR25: 1587 | BS25: 1610 | BT25: 1633 | BU25: 1656 | BV25: 1679 | BW25: 1702 | BX25: 1725 | BY25: 1748 | BZ25: 1771 | CA25: 1794 | CB25: 1817 | CC25: 1840 | CD25: 1863 | CE25: 1886 | CF25: 1909 | CG25: 1932 | CH25: 1955 | CI25: 1978 | CJ25: 2001 | CK25: 2024 | CL25: 2047 | CM25: 2070 | CN25: 2093 | CO25: 2116 | CP25: 2139 | CQ25: 2162 | CR25: 2185 | CS25: 2208 | CT25: 2231 | CU25: 2254 | CV25: 2277 | CW25: 2300
A26: 24 | B26: 24 | C26: 48 | D26: 72 | E26: 96 | F26: 120 | G26: 144 | H26: 168 | I26: 192 | J26: 216 | K26: 240 | L26: 264 | M26: 288 | N26: 312 | O26: 336 | P26: 360 | Q26: 384 | R26: 408 | S26: 432 | T26: 456 | U26: 480 | V26: 504 | W26: 528 | X26: 552 | Y26: 576 | Z26: 600 | AA26: 624 | AB26: 648 | AC26: 672 | AD26: 696 | AE26: 720 | AF26: 744 | AG26: 768 | AH26: 792 | AI26: 816 | AJ26: 840 | AK26: 864 | AL26: 888 | AM26: 912 | AN26: 936 | AO26: 960 | AP26: 984 | AQ26: 1008 | AR26: 1032 | AS26: 1056 | AT26: 1080 | AU26: 1104 | AV26: 1128 | AW26: 1152 | AX26: 1176 | AY26: 1200 | AZ26: 1224 | BA26: 1248 | BB26: 1272 | BC26: 1296 | BD26: 1320 | BE26: 1344 | BF26: 1368 | BG26: 1392 | BH26: 1416 | BI26: 1440 | BJ26: 1464 | BK26: 1488 | BL26: 1512 | BM26: 1536 | BN26: 1560 | BO26: 1584 | BP26: 1608 | BQ26: 1632 | BR26: 1656 | BS26: 1680 | BT26: 1704 | BU26: 1728 | BV26: 1752 | BW26: 1776 | BX26: 1800 | BY26: 1824 | BZ26: 1848 | CA26: 1872 | CB26: 1896 | CC26: 1920 | CD26: 1944 | CE26: 1968 | CF26: 1992 | CG26: 2016 | CH26: 2040 | CI26: 2064 | CJ26: 2088 | CK26: 2112 | CL26: 2136 | CM26: 2160 | CN26: 2184 | CO26: 2208 | CP26: 2232 | CQ26: 2256 | CR26: 2280 | CS26: 2304 | CT26: 2328 | CU26: 2352 | CV26: 2376 | CW26: 2400
A27: 25 | B27: 25 | C27: 50 | D27: 75 | E27: 100 | F27: 125 | G27: 150 | H27: 175 | I27: 200 | J27: 225 | K27: 250 | L27: 275 | M27: 300 | N27: 325 | O27: 350 | P27: 375 | Q27: 400 | R27: 425 | S27: 450 | T27: 475 | U27: 500 | V27: 525 | W27: 550 | X27: 575 | Y27: 600 | Z27: 625 | AA27: 650 | AB27: 675 | AC27: 700 | AD27: 725 | AE27: 750 | AF27: 775 | AG27: 800 | AH27: 825 | AI27: 850 | AJ27: 875 | AK27: 900 | AL27: 925 | AM27: 950 | AN27: 975 | AO27: 1000 | AP27: 1025 | AQ27: 1050 | AR27: 1075 | AS27: 1100 | AT27: 1125 | AU27: 1150 | AV27: 1175 | AW27: 1200 | AX27: 1225 | AY27: 1250 | AZ27: 1275 | BA27: 1300 | BB27: 1325 | BC27: 1350 | BD27: 1375 | BE27: 1400 | BF27: 1425 | BG27: 1450 | BH27: 1475 | BI27: 1500 | BJ27: 1525 | BK27: 1550 | BL27: 1575 | BM27: 1600 | BN27: 1625 | BO27: 1650 | BP27: 1675 | BQ27: 1700 | BR27: 1725 | BS27: 1750 | BT27: 1775 | BU27: 1800 | BV27: 1825 | BW27: 1850 | BX27: 1875 | BY27: 1900 | BZ27: 1925 | CA27: 1950 | CB27: 1975 | CC27: 2000 | CD27: 2025 | CE27: 2050 | CF27: 2075 | CG27: 2100 | CH27: 2125 | CI27: 2150 | CJ27: 2175 | CK27: 2200 | CL27: 2225 | CM27: 2250 | CN27: 2275 | CO27: 2300 | CP27: 2325 | CQ27: 2350 | CR27: 2375 | CS27: 2400 | CT27: 2425 | CU27: 2450 | CV27: 2475 | CW27: 2500
A28: 26 | B28: 26 | C28: 52 | D28: 78 | E28: 104 | F28: 130 | G28: 156 | H28: 182 | I28: 208 | J28: 234 | K28: 260 | L28: 286 | M28: 312 | N28: 338 | O28: 364 | P28: 390 | Q28: 416 | R28: 442 | S28: 468 | T28: 494 | U28: 520 | V28: 546 | W28: 572 | X28: 598 | Y28: 624 | Z28: 650 | AA28: 676 | AB28: 702 | AC28: 728 | AD28: 754 | AE28: 780 | AF28: 806 | AG28: 832 | AH28: 858 | AI28: 884 | AJ28: 910 | AK28: 936 | AL28: 962 | AM28: 988 | AN28: 1014 | AO28: 1040 | AP28: 1066 | AQ28: 1092 | AR28: 1118 | AS28: 1144 | AT28: 1170 | AU28: 1196 | AV28: 1222 | AW28: 1248 | AX28: 1274 | AY28: 1300 | AZ28: 1326 | BA28: 1352 | BB28: 1378 | BC28: 1404 | BD28: 1430 | BE28: 1456 | BF28: 1482 | BG28: 1508 | BH28: 1534 | BI28: 1560 | BJ28: 1586 | BK28: 1612 | BL28: 1638 | BM28: 1664 | BN28: 1690 | BO28: 1716 | BP28: 1742 | BQ28: 1768 | BR28: 1794 | BS28: 1820 | BT28: 1846 | BU28: 1872 | BV28: 1898 | BW28: 1924 | BX28: 1950 | BY28: 1976 | BZ28: 2002 | CA28: 2028 | CB28: 2054 | CC28: 2080 | CD28: 2106 | CE28: 2132 | CF28: 2158 | CG28: 2184 | CH28: 2210 | CI28: 2236 | CJ28: 2262 | CK28: 2288 | CL28: 2314 | CM28: 2340 | CN28: 2366 | CO28: 2392 | CP28: 2418 | CQ28: 2444 | CR28: 2470 | CS28: 2496 | CT28: 2522 | CU28: 2548 | CV28: 2574 | CW28: 2600
A29: 27 | B29: 27 | C29: 54 | D29: 81 | E29: 108 | F29: 135 | G29: 162 | H29: 189 | I29: 216 | J29: 243 | K29: 270 | L29: 297 | M29: 324 | N29: 351 | O29: 378 | P29: 405 | Q29: 432 | R29: 459 | S29: 486 | T29: 513 | U29: 540 | V29: 567 | W29: 594 | X29: 621 | Y29: 648 | Z29: 675 | AA29: 702 | AB29: 729 | AC29: 756 | AD29: 783 | AE29: 810 | AF29: 837 | AG29: 864 | AH29: 891 | AI29: 918 | AJ29: 945 | AK29: 972 | AL29: 999 | AM29: 1026 | AN29: 1053 | AO29: 1080 | AP29: 1107 | AQ29: 1134 | AR29: 1161 | AS29: 1188 | AT29: 1215 | AU29: 1242 | AV29: 1269 | AW29: 1296 | AX29: 1323 | AY29: 1350 | AZ29: 1377 | BA29: 1404 | BB29: 1431 | BC29: 1458 | BD29: 1485 | BE29: 1512 | BF29: 1539 | BG29: 1566 | BH29: 1593 | BI29: 1620 | BJ29: 1647 | BK29: 1674 | BL29: 1701 | BM29: 1728 | BN29: 1755 | BO29: 1782 | BP29: 1809 | BQ29: 1836 | BR29: 1863 | BS29: 1890 | BT29: 1917 | BU29: 1944 | BV29: 1971 | BW29: 1998 | BX29: 2025 | BY29: 2052 | BZ29: 2079 | CA29: 2106 | CB29: 2133 | CC29: 2160 | CD29: 2187 | CE29: 2214 | CF29: 2241 | CG29: 2268 | CH29: 2295 | CI29: 2322 | CJ29: 2349 | CK29: 2376 | CL29: 2403 | CM29: 2430 | CN29: 2457 | CO29: 2484 | CP29: 2511 | CQ29: 2538 | CR29: 2565 | CS29: 2592 | CT29: 2619 | CU29: 2646 | CV29: 2673 | CW29: 2700
A30: 28 | B30: 28 | C30: 56 | D30: 84 | E30: 112 | F30: 140 | G30: 168 | H30: 196 | I30: 224 | J30: 252 | K30: 280 | L30: 308 | M30: 336 | N30: 364 | O30: 392 | P30: 420 | Q30: 448 | R30: 476 | S30: 504 | T30: 532 | U30: 560 | V30: 588 | W30: 616 | X30: 644 | Y30: 672 | Z30: 700 | AA30: 728 | AB30: 756 | AC30: 784 | AD30: 812 | AE30: 840 | AF30: 868 | AG30: 896 | AH30: 924 | AI30: 952 | AJ30: 980 | AK30: 1008 | AL30: 1036 | AM30: 1064 | AN30: 1092 | AO30: 1120 | AP30: 1148 | AQ30: 1176 | AR30: 1204 | AS30: 1232 | AT30: 1260 | AU30: 1288 | AV30: 1316 | AW30: 1344 | AX30: 1372 | AY30: 1400 | AZ30: 1428 | BA30: 1456 | BB30: 1484 | BC30: 1512 | BD30: 1540 | BE30: 1568 | BF30: 1596 | BG30: 1624 | BH30: 1652 | BI30: 1680 | BJ30: 1708 | BK30: 1736 | BL30: 1764 | BM30: 1792 | BN30: 1820 | BO30: 1848 | BP30: 1876 | BQ30: 1904 | BR30: 1932 | BS30: 1960 | BT30: 1988 | BU30: 2016 | BV30: 2044 | BW30: 2072 | BX30: 2100 | BY30: 2128 | BZ30: 2156 | CA30: 2184 | CB30: 2212 | CC30: 2240 | CD30: 2268 | CE30: 2296 | CF30: 2324 | CG30: 2352 | CH30: 2380 | CI30: 2408 | CJ30: 2436 | CK30: 2464 | CL30: 2492 | CM30: 2520 | CN30: 2548 | CO30: 2576 | CP30: 2604 | CQ30: 2632 | CR30: 2660 | CS30: 2688 | CT30: 2716 | CU30: 2744 | CV30: 2772 | CW30: 2800
A31: 29 | B31: 29 | C31: 58 | D31: 87 | E31: 116 | F31: 145 | G31: 174 | H31: 203 | I31: 232 | J31: 261 | K31: 290 | L31: 319 | M31: 348 | N31: 377 | O31: 406 | P31: 435 | Q31: 464 | R31: 493 | S31: 522 | T31: 551 | U31: 580 | V31: 609 | W31: 638 | X31: 667 | Y31: 696 | Z31: 725 | AA31: 754 | AB31: 783 | AC31: 812 | AD31: 841 | AE31: 870 | AF31: 899 | AG31: 928 | AH31: 957 | AI31: 986 | AJ31: 1015 | AK31: 1044 | AL31: 1073 | AM31: 1102 | AN31: 1131 | AO31: 1160 | AP31: 1189 | AQ31: 1218 | AR31: 1247 | AS31: 1276 | AT31: 1305 | AU31: 1334 | AV31: 1363 | AW31: 1392 | AX31: 1421 | AY31: 1450 | AZ31: 1479 | BA31: 1508 | BB31: 1537 | BC31: 1566 | BD31: 1595 | BE31: 1624 | BF31: 1653 | BG31: 1682 | BH31: 1711 | BI31: 1740 | BJ31: 1769 | BK31: 1798 | BL31: 1827 | BM31: 1856 | BN31: 1885 | BO31: 1914 | BP31: 1943 | BQ31: 1972 | BR31: 2001 | BS31: 2030 | BT31: 2059 | BU31: 2088 | BV31: 2117 | BW31: 2146 | BX31: 2175 | BY31: 2204 | BZ31: 2233 | CA31: 2262 | CB31: 2291 | CC31: 2320 | CD31: 2349 | CE31: 2378 | CF31: 2407 | CG31: 2436 | CH31: 2465 | CI31: 2494 | CJ31: 2523 | CK31: 2552 | CL31: 2581 | CM31: 2610 | CN31: 2639 | CO31: 2668 | CP31: 2697 | CQ31: 2726 | CR31: 2755 | CS31: 2784 | CT31: 2813 | CU31: 2842 | CV31: 2871 | CW31: 2900
A32: 30 | B32: 30 | C32: 60 | D32: 90 | E32: 120 | F32: 150 | G32: 180 | H32: 210 | I32: 240 | J32: 270 | K32: 300 | L32: 330 | M32: 360 | N32: 390 | O32: 420 | P32: 450 | Q32: 480 | R32: 510 | S32: 540 | T32: 570 | U32: 600 | V32: 630 | W32: 660 | X32: 690 | Y32: 720 | Z32: 750 | AA32: 780 | AB32: 810 | AC32: 840 | AD32: 870 | AE32: 900 | AF32: 930 | AG32: 960 | AH32: 990 | AI32: 1020 | AJ32: 1050 | AK32: 1080 | AL32: 1110 | AM32: 1140 | AN32: 1170 | AO32: 1200 | AP32: 1230 | AQ32: 1260 | AR32: 1290 | AS32: 1320 | AT32: 1350 | AU32: 1380 | AV32: 1410 | AW32: 1440 | AX32: 1470 | AY32: 1500 | AZ32: 1530 | BA32: 1560 | BB32: 1590 | BC32: 1620 | BD32: 1650 | BE32: 1680 | BF32: 1710 | BG32: 1740 | BH32: 1770 | BI32: 1800 | BJ32: 1830 | BK32: 1860 | BL32: 1890 | BM32: 1920 | BN32: 1950 | BO32: 1980 | BP32: 2010 | BQ32: 2040 | BR32: 2070 | BS32: 2100 | BT32: 2130 | BU32: 2160 | BV32: 2190 | BW32: 2220 | BX32: 2250 | BY32: 2280 | BZ32: 2310 | CA32: 2340 | CB32: 2370 | CC32: 2400 | CD32: 2430 | CE32: 2460 | CF32: 2490 | CG32: 2520 | CH32: 2550 | CI32: 2580 | CJ32: 2610 | CK32: 2640 | CL32: 2670 | CM32: 2700 | CN32: 2730 | CO32: 2760 | CP32: 2790 | CQ32: 2820 | CR32: 2850 | CS32: 2880 | CT32: 2910 | CU32: 2940 | CV32: 2970 | CW32: 3000
A33: 31 | B33: =$A33*B$2 -> 31 | C33: 62 | D33: 93 | E33: 124 | F33: 155 | G33: 186 | H33: 217 | I33: 248 | J33: 279 | K33: 310 | L33: =$A33*L$2 -> 341 | M33: 372 | N33: 403 | O33: 434 | P33: 465 | Q33: 496 | R33: 527 | S33: 558 | T33: 589 | U33: 620 | V33: =$A33*V$2 -> 651 | W33: 682 | X33: 713 | Y33: 744 | Z33: 775 | AA33: 806 | AB33: 837 | AC33: 868 | AD33: 899 | AE33: 930 | AF33: =$A33*AF$2 -> 961 | AG33: 992 | AH33: 1023 | AI33: 1054 | AJ33: 1085 | AK33: 1116 | AL33: 1147 | AM33: 1178 | AN33: 1209 | AO33: 1240 | AP33: =$A33*AP$2 -> 1271 | AQ33: 1302 | AR33: 1333 | AS33: 1364 | AT33: 1395 | AU33: 1426 | AV33: 1457 | AW33: 1488 | AX33: 1519 | AY33: 1550 | AZ33: =$A33*AZ$2 -> 1581 | BA33: 1612 | BB33: 1643 | BC33: 1674 | BD33: 1705 | BE33: 1736 | BF33: 1767 | BG33: 1798 | BH33: 1829 | BI33: 1860 | BJ33: =$A33*BJ$2 -> 1891 | BK33: 1922 | BL33: 1953 | BM33: 1984 | BN33: 2015 | BO33: 2046 | BP33: 2077 | BQ33: 2108 | BR33: 2139 | BS33: 2170 | BT33: =$A33*BT$2 -> 2201 | BU33: 2232 | BV33: 2263 | BW33: 2294 | BX33: 2325 | BY33: 2356 | BZ33: 2387 | CA33: 2418 | CB33: 2449 | CC33: 2480 | CD33: =$A33*CD$2 -> 2511 | CE33: 2542 | CF33: 2573 | CG33: 2604 | CH33: 2635 | CI33: 2666 | CJ33: 2697 | CK33: 2728 | CL33: 2759 | CM33: 2790 | CN33: =$A33*CN$2 -> 2821 | CO33: 2852 | CP33: 2883 | CQ33: 2914 | CR33: 2945 | CS33: 2976 | CT33: 3007 | CU33: 3038 | CV33: 3069 | CW33: 3100
A34: 32 | B34: 32 | C34: 64 | D34: 96 | E34: 128 | F34: 160 | G34: 192 | H34: 224 | I34: 256 | J34: 288 | K34: 320 | L34: 352 | M34: 384 | N34: 416 | O34: 448 | P34: 480 | Q34: 512 | R34: 544 | S34: 576 | T34: 608 | U34: 640 | V34: 672 | W34: 704 | X34: 736 | Y34: 768 | Z34: 800 | AA34: 832 | AB34: 864 | AC34: 896 | AD34: 928 | AE34: 960 | AF34: 992 | AG34: 1024 | AH34: 1056 | AI34: 1088 | AJ34: 1120 | AK34: 1152 | AL34: 1184 | AM34: 1216 | AN34: 1248 | AO34: 1280 | AP34: 1312 | AQ34: 1344 | AR34: 1376 | AS34: 1408 | AT34: 1440 | AU34: 1472 | AV34: 1504 | AW34: 1536 | AX34: 1568 | AY34: 1600 | AZ34: 1632 | BA34: 1664 | BB34: 1696 | BC34: 1728 | BD34: 1760 | BE34: 1792 | BF34: 1824 | BG34: 1856 | BH34: 1888 | BI34: 1920 | BJ34: 1952 | BK34: 1984 | BL34: 2016 | BM34: 2048 | BN34: 2080 | BO34: 2112 | BP34: 2144 | BQ34: 2176 | BR34: 2208 | BS34: 2240 | BT34: 2272 | BU34: 2304 | BV34: 2336 | BW34: 2368 | BX34: 2400 | BY34: 2432 | BZ34: 2464 | CA34: 2496 | CB34: 2528 | CC34: 2560 | CD34: 2592 | CE34: 2624 | CF34: 2656 | CG34: 2688 | CH34: 2720 | CI34: 2752 | CJ34: 2784 | CK34: 2816 | CL34: 2848 | CM34: 2880 | CN34: 2912 | CO34: 2944 | CP34: 2976 | CQ34: 3008 | CR34: 3040 | CS34: 3072 | CT34: 3104 | CU34: 3136 | CV34: 3168 | CW34: 3200
A35: 33 | B35: 33 | C35: 66 | D35: 99 | E35: 132 | F35: 165 | G35: 198 | H35: 231 | I35: 264 | J35: 297 | K35: 330 | L35: 363 | M35: 396 | N35: 429 | O35: 462 | P35: 495 | Q35: 528 | R35: 561 | S35: 594 | T35: 627 | U35: 660 | V35: 693 | W35: 726 | X35: 759 | Y35: 792 | Z35: 825 | AA35: 858 | AB35: 891 | AC35: 924 | AD35: 957 | AE35: 990 | AF35: 1023 | AG35: 1056 | AH35: 1089 | AI35: 1122 | AJ35: 1155 | AK35: 1188 | AL35: 1221 | AM35: 1254 | AN35: 1287 | AO35: 1320 | AP35: 1353 | AQ35: 1386 | AR35: 1419 | AS35: 1452 | AT35: 1485 | AU35: 1518 | AV35: 1551 | AW35: 1584 | AX35: 1617 | AY35: 1650 | AZ35: 1683 | BA35: 1716 | BB35: 1749 | BC35: 1782 | BD35: 1815 | BE35: 1848 | BF35: 1881 | BG35: 1914 | BH35: 1947 | BI35: 1980 | BJ35: 2013 | BK35: 2046 | BL35: 2079 | BM35: 2112 | BN35: 2145 | BO35: 2178 | BP35: 2211 | BQ35: 2244 | BR35: 2277 | BS35: 2310 | BT35: 2343 | BU35: 2376 | BV35: 2409 | BW35: 2442 | BX35: 2475 | BY35: 2508 | BZ35: 2541 | CA35: 2574 | CB35: 2607 | CC35: 2640 | CD35: 2673 | CE35: 2706 | CF35: 2739 | CG35: 2772 | CH35: 2805 | CI35: 2838 | CJ35: 2871 | CK35: 2904 | CL35: 2937 | CM35: 2970 | CN35: 3003 | CO35: 3036 | CP35: 3069 | CQ35: 3102 | CR35: 3135 | CS35: 3168 | CT35: 3201 | CU35: 3234 | CV35: 3267 | CW35: 3300
A36: 34 | B36: 34 | C36: 68 | D36: 102 | E36: 136 | F36: 170 | G36: 204 | H36: 238 | I36: 272 | J36: 306 | K36: 340 | L36: 374 | M36: 408 | N36: 442 | O36: 476 | P36: 510 | Q36: 544 | R36: 578 | S36: 612 | T36: 646 | U36: 680 | V36: 714 | W36: 748 | X36: 782 | Y36: 816 | Z36: 850 | AA36: 884 | AB36: 918 | AC36: 952 | AD36: 986 | AE36: 1020 | AF36: 1054 | AG36: 1088 | AH36: 1122 | AI36: 1156 | AJ36: 1190 | AK36: 1224 | AL36: 1258 | AM36: 1292 | AN36: 1326 | AO36: 1360 | AP36: 1394 | AQ36: 1428 | AR36: 1462 | AS36: 1496 | AT36: 1530 | AU36: 1564 | AV36: 1598 | AW36: 1632 | AX36: 1666 | AY36: 1700 | AZ36: 1734 | BA36: 1768 | BB36: 1802 | BC36: 1836 | BD36: 1870 | BE36: 1904 | BF36: 1938 | BG36: 1972 | BH36: 2006 | BI36: 2040 | BJ36: 2074 | BK36: 2108 | BL36: 2142 | BM36: 2176 | BN36: 2210 | BO36: 2244 | BP36: 2278 | BQ36: 2312 | BR36: 2346 | BS36: 2380 | BT36: 2414 | BU36: 2448 | BV36: 2482 | BW36: 2516 | BX36: 2550 | BY36: 2584 | BZ36: 2618 | CA36: 2652 | CB36: 2686 | CC36: 2720 | CD36: 2754 | CE36: 2788 | CF36: 2822 | CG36: 2856 | CH36: 2890 | CI36: 2924 | CJ36: 2958 | CK36: 2992 | CL36: 3026 | CM36: 3060 | CN36: 3094 | CO36: 3128 | CP36: 3162 | CQ36: 3196 | CR36: 3230 | CS36: 3264 | CT36: 3298 | CU36: 3332 | CV36: 3366 | CW36: 3400
A37: 35 | B37: 35 | C37: 70 | D37: 105 | E37: 140 | F37: 175 | G37: 210 | H37: 245 | I37: 280 | J37: 315 | K37: 350 | L37: 385 | M37: 420 | N37: 455 | O37: 490 | P37: 525 | Q37: 560 | R37: 595 | S37: 630 | T37: 665 | U37: 700 | V37: 735 | W37: 770 | X37: 805 | Y37: 840 | Z37: 875 | AA37: 910 | AB37: 945 | AC37: 980 | AD37: 1015 | AE37: 1050 | AF37: 1085 | AG37: 1120 | AH37: 1155 | AI37: 1190 | AJ37: 1225 | AK37: 1260 | AL37: 1295 | AM37: 1330 | AN37: 1365 | AO37: 1400 | AP37: 1435 | AQ37: 1470 | AR37: 1505 | AS37: 1540 | AT37: 1575 | AU37: 1610 | AV37: 1645 | AW37: 1680 | AX37: 1715 | AY37: 1750 | AZ37: 1785 | BA37: 1820 | BB37: 1855 | BC37: 1890 | BD37: 1925 | BE37: 1960 | BF37: 1995 | BG37: 2030 | BH37: 2065 | BI37: 2100 | BJ37: 2135 | BK37: 2170 | BL37: 2205 | BM37: 2240 | BN37: 2275 | BO37: 2310 | BP37: 2345 | BQ37: 2380 | BR37: 2415 | BS37: 2450 | BT37: 2485 | BU37: 2520 | BV37: 2555 | BW37: 2590 | BX37: 2625 | BY37: 2660 | BZ37: 2695 | CA37: 2730 | CB37: 2765 | CC37: 2800 | CD37: 2835 | CE37: 2870 | CF37: 2905 | CG37: 2940 | CH37: 2975 | CI37: 3010 | CJ37: 3045 | CK37: 3080 | CL37: 3115 | CM37: 3150 | CN37: 3185 | CO37: 3220 | CP37: 3255 | CQ37: 3290 | CR37: 3325 | CS37: 3360 | CT37: 3395 | CU37: 3430 | CV37: 3465 | CW37: 3500
A38: 36 | B38: 36 | C38: 72 | D38: 108 | E38: 144 | F38: 180 | G38: 216 | H38: 252 | I38: 288 | J38: 324 | K38: 360 | L38: 396 | M38: 432 | N38: 468 | O38: 504 | P38: 540 | Q38: 576 | R38: 612 | S38: 648 | T38: 684 | U38: 720 | V38: 756 | W38: 792 | X38: 828 | Y38: 864 | Z38: 900 | AA38: 936 | AB38: 972 | AC38: 1008 | AD38: 1044 | AE38: 1080 | AF38: 1116 | AG38: 1152 | AH38: 1188 | AI38: 1224 | AJ38: 1260 | AK38: 1296 | AL38: 1332 | AM38: 1368 | AN38: 1404 | AO38: 1440 | AP38: 1476 | AQ38: 1512 | AR38: 1548 | AS38: 1584 | AT38: 1620 | AU38: 1656 | AV38: 1692 | AW38: 1728 | AX38: 1764 | AY38: 1800 | AZ38: 1836 | BA38: 1872 | BB38: 1908 | BC38: 1944 | BD38: 1980 | BE38: 2016 | BF38: 2052 | BG38: 2088 | BH38: 2124 | BI38: 2160 | BJ38: 2196 | BK38: 2232 | BL38: 2268 | BM38: 2304 | BN38: 2340 | BO38: 2376 | BP38: 2412 | BQ38: 2448 | BR38: 2484 | BS38: 2520 | BT38: 2556 | BU38: 2592 | BV38: 2628 | BW38: 2664 | BX38: 2700 | BY38: 2736 | BZ38: 2772 | CA38: 2808 | CB38: 2844 | CC38: 2880 | CD38: 2916 | CE38: 2952 | CF38: 2988 | CG38: 3024 | CH38: 3060 | CI38: 3096 | CJ38: 3132 | CK38: 3168 | CL38: 3204 | CM38: 3240 | CN38: 3276 | CO38: 3312 | CP38: 3348 | CQ38: 3384 | CR38: 3420 | CS38: 3456 | CT38: 3492 | CU38: 3528 | CV38: 3564 | CW38: 3600
A39: 37 | B39: 37 | C39: 74 | D39: 111 | E39: 148 | F39: 185 | G39: 222 | H39: 259 | I39: 296 | J39: 333 | K39: 370 | L39: 407 | M39: 444 | N39: 481 | O39: 518 | P39: 555 | Q39: 592 | R39: 629 | S39: 666 | T39: 703 | U39: 740 | V39: 777 | W39: 814 | X39: 851 | Y39: 888 | Z39: 925 | AA39: 962 | AB39: 999 | AC39: 1036 | AD39: 1073 | AE39: 1110 | AF39: 1147 | AG39: 1184 | AH39: 1221 | AI39: 1258 | AJ39: 1295 | AK39: 1332 | AL39: 1369 | AM39: 1406 | AN39: 1443 | AO39: 1480 | AP39: 1517 | AQ39: 1554 | AR39: 1591 | AS39: 1628 | AT39: 1665 | AU39: 1702 | AV39: 1739 | AW39: 1776 | AX39: 1813 | AY39: 1850 | AZ39: 1887 | BA39: 1924 | BB39: 1961 | BC39: 1998 | BD39: 2035 | BE39: 2072 | BF39: 2109 | BG39: 2146 | BH39: 2183 | BI39: 2220 | BJ39: 2257 | BK39: 2294 | BL39: 2331 | BM39: 2368 | BN39: 2405 | BO39: 2442 | BP39: 2479 | BQ39: 2516 | BR39: 2553 | BS39: 2590 | BT39: 2627 | BU39: 2664 | BV39: 2701 | BW39: 2738 | BX39: 2775 | BY39: 2812 | BZ39: 2849 | CA39: 2886 | CB39: 2923 | CC39: 2960 | CD39: 2997 | CE39: 3034 | CF39: 3071 | CG39: 3108 | CH39: 3145 | CI39: 3182 | CJ39: 3219 | CK39: 3256 | CL39: 3293 | CM39: 3330 | CN39: 3367 | CO39: 3404 | CP39: 3441 | CQ39: 3478 | CR39: 3515 | CS39: 3552 | CT39: 3589 | CU39: 3626 | CV39: 3663 | CW39: 3700
A40: 38 | B40: 38 | C40: 76 | D40: 114 | E40: 152 | F40: 190 | G40: 228 | H40: 266 | I40: 304 | J40: 342 | K40: 380 | L40: 418 | M40: 456 | N40: 494 | O40: 532 | P40: 570 | Q40: 608 | R40: 646 | S40: 684 | T40: 722 | U40: 760 | V40: 798 | W40: 836 | X40: 874 | Y40: 912 | Z40: 950 | AA40: 988 | AB40: 1026 | AC40: 1064 | AD40: 1102 | AE40: 1140 | AF40: 1178 | AG40: 1216 | AH40: 1254 | AI40: 1292 | AJ40: 1330 | AK40: 1368 | AL40: 1406 | AM40: 1444 | AN40: 1482 | AO40: 1520 | AP40: 1558 | AQ40: 1596 | AR40: 1634 | AS40: 1672 | AT40: 1710 | AU40: 1748 | AV40: 1786 | AW40: 1824 | AX40: 1862 | AY40: 1900 | AZ40: 1938 | BA40: 1976 | BB40: 2014 | BC40: 2052 | BD40: 2090 | BE40: 2128 | BF40: 2166 | BG40: 2204 | BH40: 2242 | BI40: 2280 | BJ40: 2318 | BK40: 2356 | BL40: 2394 | BM40: 2432 | BN40: 2470 | BO40: 2508 | BP40: 2546 | BQ40: 2584 | BR40: 2622 | BS40: 2660 | BT40: 2698 | BU40: 2736 | BV40: 2774 | BW40: 2812 | BX40: 2850 | BY40: 2888 | BZ40: 2926 | CA40: 2964 | CB40: 3002 | CC40: 3040 | CD40: 3078 | CE40: 3116 | CF40: 3154 | CG40: 3192 | CH40: 3230 | CI40: 3268 | CJ40: 3306 | CK40: 3344 | CL40: 3382 | CM40: 3420 | CN40: 3458 | CO40: 3496 | CP40: 3534 | CQ40: 3572 | CR40: 3610 | CS40: 3648 | CT40: 3686 | CU40: 3724 | CV40: 3762 | CW40: 3800
A41: 39 | B41: 39 | C41: 78 | D41: 117 | E41: 156 | F41: 195 | G41: 234 | H41: 273 | I41: 312 | J41: 351 | K41: 390 | L41: 429 | M41: 468 | N41: 507 | O41: 546 | P41: 585 | Q41: 624 | R41: 663 | S41: 702 | T41: 741 | U41: 780 | V41: 819 | W41: 858 | X41: 897 | Y41: 936 | Z41: 975 | AA41: 1014 | AB41: 1053 | AC41: 1092 | AD41: 1131 | AE41: 1170 | AF41: 1209 | AG41: 1248 | AH41: 1287 | AI41: 1326 | AJ41: 1365 | AK41: 1404 | AL41: 1443 | AM41: 1482 | AN41: 1521 | AO41: 1560 | AP41: 1599 | AQ41: 1638 | AR41: 1677 | AS41: 1716 | AT41: 1755 | AU41: 1794 | AV41: 1833 | AW41: 1872 | AX41: 1911 | AY41: 1950 | AZ41: 1989 | BA41: 2028 | BB41: 2067 | BC41: 2106 | BD41: 2145 | BE41: 2184 | BF41: 2223 | BG41: 2262 | BH41: 2301 | BI41: 2340 | BJ41: 2379 | BK41: 2418 | BL41: 2457 | BM41: 2496 | BN41: 2535 | BO41: 2574 | BP41: 2613 | BQ41: 2652 | BR41: 2691 | BS41: 2730 | BT41: 2769 | BU41: 2808 | BV41: 2847 | BW41: 2886 | BX41: 2925 | BY41: 2964 | BZ41: 3003 | CA41: 3042 | CB41: 3081 | CC41: 3120 | CD41: 3159 | CE41: 3198 | CF41: 3237 | CG41: 3276 | CH41: 3315 | CI41: 3354 | CJ41: 3393 | CK41: 3432 | CL41: 3471 | CM41: 3510 | CN41: 3549 | CO41: 3588 | CP41: 3627 | CQ41: 3666 | CR41: 3705 | CS41: 3744 | CT41: 3783 | CU41: 3822 | CV41: 3861 | CW41: 3900
A42: 40 | B42: 40 | C42: 80 | D42: 120 | E42: 160 | F42: 200 | G42: 240 | H42: 280 | I42: 320 | J42: 360 | K42: 400 | L42: 440 | M42: 480 | N42: 520 | O42: 560 | P42: 600 | Q42: 640 | R42: 680 | S42: 720 | T42: 760 | U42: 800 | V42: 840 | W42: 880 | X42: 920 | Y42: 960 | Z42: 1000 | AA42: 1040 | AB42: 1080 | AC42: 1120 | AD42: 1160 | AE42: 1200 | AF42: 1240 | AG42: 1280 | AH42: 1320 | AI42: 1360 | AJ42: 1400 | AK42: 1440 | AL42: 1480 | AM42: 1520 | AN42: 1560 | AO42: 1600 | AP42: 1640 | AQ42: 1680 | AR42: 1720 | AS42: 1760 | AT42: 1800 | AU42: 1840 | AV42: 1880 | AW42: 1920 | AX42: 1960 | AY42: 2000 | AZ42: 2040 | BA42: 2080 | BB42: 2120 | BC42: 2160 | BD42: 2200 | BE42: 2240 | BF42: 2280 | BG42: 2320 | BH42: 2360 | BI42: 2400 | BJ42: 2440 | BK42: 2480 | BL42: 2520 | BM42: 2560 | BN42: 2600 | BO42: 2640 | BP42: 2680 | BQ42: 2720 | BR42: 2760 | BS42: 2800 | BT42: 2840 | BU42: 2880 | BV42: 2920 | BW42: 2960 | BX42: 3000 | BY42: 3040 | BZ42: 3080 | CA42: 3120 | CB42: 3160 | CC42: 3200 | CD42: 3240 | CE42: 3280 | CF42: 3320 | CG42: 3360 | CH42: 3400 | CI42: 3440 | CJ42: 3480 | CK42: 3520 | CL42: 3560 | CM42: 3600 | CN42: 3640 | CO42: 3680 | CP42: 3720 | CQ42: 3760 | CR42: 3800 | CS42: 3840 | CT42: 3880 | CU42: 3920 | CV42: 3960 | CW42: 4000
A43: 41 | B43: =$A43*B$2 -> 41 | C43: 82 | D43: 123 | E43: 164 | F43: 205 | G43: 246 | H43: 287 | I43: 328 | J43: 369 | K43: 410 | L43: =$A43*L$2 -> 451 | M43: 492 | N43: 533 | O43: 574 | P43: 615 | Q43: 656 | R43: 697 | S43: 738 | T43: 779 | U43: 820 | V43: =$A43*V$2 -> 861 | W43: 902 | X43: 943 | Y43: 984 | Z43: 1025 | AA43: 1066 | AB43: 1107 | AC43: 1148 | AD43: 1189 | AE43: 1230 | AF43: =$A43*AF$2 -> 1271 | AG43: 1312 | AH43: 1353 | AI43: 1394 | AJ43: 1435 | AK43: 1476 | AL43: 1517 | AM43: 1558 | AN43: 1599 | AO43: 1640 | AP43: =$A43*AP$2 -> 1681 | AQ43: 1722 | AR43: 1763 | AS43: 1804 | AT43: 1845 | AU43: 1886 | AV43: 1927 | AW43: 1968 | AX43: 2009 | AY43: 2050 | AZ43: =$A43*AZ$2 -> 2091 | BA43: 2132 | BB43: 2173 | BC43: 2214 | BD43: 2255 | BE43: 2296 | BF43: 2337 | BG43: 2378 | BH43: 2419 | BI43: 2460 | BJ43: =$A43*BJ$2 -> 2501 | BK43: 2542 | BL43: 2583 | BM43: 2624 | BN43: 2665 | BO43: 2706 | BP43: 2747 | BQ43: 2788 | BR43: 2829 | BS43: 2870 | BT43: =$A43*BT$2 -> 2911 | BU43: 2952 | BV43: 2993 | BW43: 3034 | BX43: 3075 | BY43: 3116 | BZ43: 3157 | CA43: 3198 | CB43: 3239 | CC43: 3280 | CD43: =$A43*CD$2 -> 3321 | CE43: 3362 | CF43: 3403 | CG43: 3444 | CH43: 3485 | CI43: 3526 | CJ43: 3567 | CK43: 3608 | CL43: 3649 | CM43: 3690 | CN43: =$A43*CN$2 -> 3731 | CO43: 3772 | CP43: 3813 | CQ43: 3854 | CR43: 3895 | CS43: 3936 | CT43: 3977 | CU43: 4018 | CV43: 4059 | CW43: 4100
A44: 42 | B44: 42 | C44: 84 | D44: 126 | E44: 168 | F44: 210 | G44: 252 | H44: 294 | I44: 336 | J44: 378 | K44: 420 | L44: 462 | M44: 504 | N44: 546 | O44: 588 | P44: 630 | Q44: 672 | R44: 714 | S44: 756 | T44: 798 | U44: 840 | V44: 882 | W44: 924 | X44: 966 | Y44: 1008 | Z44: 1050 | AA44: 1092 | AB44: 1134 | AC44: 1176 | AD44: 1218 | AE44: 1260 | AF44: 1302 | AG44: 1344 | AH44: 1386 | AI44: 1428 | AJ44: 1470 | AK44: 1512 | AL44: 1554 | AM44: 1596 | AN44: 1638 | AO44: 1680 | AP44: 1722 | AQ44: 1764 | AR44: 1806 | AS44: 1848 | AT44: 1890 | AU44: 1932 | AV44: 1974 | AW44: 2016 | AX44: 2058 | AY44: 2100 | AZ44: 2142 | BA44: 2184 | BB44: 2226 | BC44: 2268 | BD44: 2310 | BE44: 2352 | BF44: 2394 | BG44: 2436 | BH44: 2478 | BI44: 2520 | BJ44: 2562 | BK44: 2604 | BL44: 2646 | BM44: 2688 | BN44: 2730 | BO44: 2772 | BP44: 2814 | BQ44: 2856 | BR44: 2898 | BS44: 2940 | BT44: 2982 | BU44: 3024 | BV44: 3066 | BW44: 3108 | BX44: 3150 | BY44: 3192 | BZ44: 3234 | CA44: 3276 | CB44: 3318 | CC44: 3360 | CD44: 3402 | CE44: 3444 | CF44: 3486 | CG44: 3528 | CH44: 3570 | CI44: 3612 | CJ44: 3654 | CK44: 3696 | CL44: 3738 | CM44: 3780 | CN44: 3822 | CO44: 3864 | CP44: 3906 | CQ44: 3948 | CR44: 3990 | CS44: 4032 | CT44: 4074 | CU44: 4116 | CV44: 4158 | CW44: 4200
A45: 43 | B45: 43 | C45: 86 | D45: 129 | E45: 172 | F45: 215 | G45: 258 | H45: 301 | I45: 344 | J45: 387 | K45: 430 | L45: 473 | M45: 516 | N45: 559 | O45: 602 | P45: 645 | Q45: 688 | R45: 731 | S45: 774 | T45: 817 | U45: 860 | V45: 903 | W45: 946 | X45: 989 | Y45: 1032 | Z45: 1075 | AA45: 1118 | AB45: 1161 | AC45: 1204 | AD45: 1247 | AE45: 1290 | AF45: 1333 | AG45: 1376 | AH45: 1419 | AI45: 1462 | AJ45: 1505 | AK45: 1548 | AL45: 1591 | AM45: 1634 | AN45: 1677 | AO45: 1720 | AP45: 1763 | AQ45: 1806 | AR45: 1849 | AS45: 1892 | AT45: 1935 | AU45: 1978 | AV45: 2021 | AW45: 2064 | AX45: 2107 | AY45: 2150 | AZ45: 2193 | BA45: 2236 | BB45: 2279 | BC45: 2322 | BD45: 2365 | BE45: 2408 | BF45: 2451 | BG45: 2494 | BH45: 2537 | BI45: 2580 | BJ45: 2623 | BK45: 2666 | BL45: 2709 | BM45: 2752 | BN45: 2795 | BO45: 2838 | BP45: 2881 | BQ45: 2924 | BR45: 2967 | BS45: 3010 | BT45: 3053 | BU45: 3096 | BV45: 3139 | BW45: 3182 | BX45: 3225 | BY45: 3268 | BZ45: 3311 | CA45: 3354 | CB45: 3397 | CC45: 3440 | CD45: 3483 | CE45: 3526 | CF45: 3569 | CG45: 3612 | CH45: 3655 | CI45: 3698 | CJ45: 3741 | CK45: 3784 | CL45: 3827 | CM45: 3870 | CN45: 3913 | CO45: 3956 | CP45: 3999 | CQ45: 4042 | CR45: 4085 | CS45: 4128 | CT45: 4171 | CU45: 4214 | CV45: 4257 | CW45: 4300
A46: 44 | B46: 44 | C46: 88 | D46: 132 | E46: 176 | F46: 220 | G46: 264 | H46: 308 | I46: 352 | J46: 396 | K46: 440 | L46: 484 | M46: 528 | N46: 572 | O46: 616 | P46: 660 | Q46: 704 | R46: 748 | S46: 792 | T46: 836 | U46: 880 | V46: 924 | W46: 968 | X46: 1012 | Y46: 1056 | Z46: 1100 | AA46: 1144 | AB46: 1188 | AC46: 1232 | AD46: 1276 | AE46: 1320 | AF46: 1364 | AG46: 1408 | AH46: 1452 | AI46: 1496 | AJ46: 1540 | AK46: 1584 | AL46: 1628 | AM46: 1672 | AN46: 1716 | AO46: 1760 | AP46: 1804 | AQ46: 1848 | AR46: 1892 | AS46: 1936 | AT46: 1980 | AU46: 2024 | AV46: 2068 | AW46: 2112 | AX46: 2156 | AY46: 2200 | AZ46: 2244 | BA46: 2288 | BB46: 2332 | BC46: 2376 | BD46: 2420 | BE46: 2464 | BF46: 2508 | BG46: 2552 | BH46: 2596 | BI46: 2640 | BJ46: 2684 | BK46: 2728 | BL46: 2772 | BM46: 2816 | BN46: 2860 | BO46: 2904 | BP46: 2948 | BQ46: 2992 | BR46: 3036 | BS46: 3080 | BT46: 3124 | BU46: 3168 | BV46: 3212 | BW46: 3256 | BX46: 3300 | BY46: 3344 | BZ46: 3388 | CA46: 3432 | CB46: 3476 | CC46: 3520 | CD46: 3564 | CE46: 3608 | CF46: 3652 | CG46: 3696 | CH46: 3740 | CI46: 3784 | CJ46: 3828 | CK46: 3872 | CL46: 3916 | CM46: 3960 | CN46: 4004 | CO46: 4048 | CP46: 4092 | CQ46: 4136 | CR46: 4180 | CS46: 4224 | CT46: 4268 | CU46: 4312 | CV46: 4356 | CW46: 4400
A47: 45 | B47: 45 | C47: 90 | D47: 135 | E47: 180 | F47: 225 | G47: 270 | H47: 315 | I47: 360 | J47: 405 | K47: 450 | L47: 495 | M47: 540 | N47: 585 | O47: 630 | P47: 675 | Q47: 720 | R47: 765 | S47: 810 | T47: 855 | U47: 900 | V47: 945 | W47: 990 | X47: 1035 | Y47: 1080 | Z47: 1125 | AA47: 1170 | AB47: 1215 | AC47: 1260 | AD47: 1305 | AE47: 1350 | AF47: 1395 | AG47: 1440 | AH47: 1485 | AI47: 1530 | AJ47: 1575 | AK47: 1620 | AL47: 1665 | AM47: 1710 | AN47: 1755 | AO47: 1800 | AP47: 1845 | AQ47: 1890 | AR47: 1935 | AS47: 1980 | AT47: 2025 | AU47: 2070 | AV47: 2115 | AW47: 2160 | AX47: 2205 | AY47: 2250 | AZ47: 2295 | BA47: 2340 | BB47: 2385 | BC47: 2430 | BD47: 2475 | BE47: 2520 | BF47: 2565 | BG47: 2610 | BH47: 2655 | BI47: 2700 | BJ47: 2745 | BK47: 2790 | BL47: 2835 | BM47: 2880 | BN47: 2925 | BO47: 2970 | BP47: 3015 | BQ47: 3060 | BR47: 3105 | BS47: 3150 | BT47: 3195 | BU47: 3240 | BV47: 3285 | BW47: 3330 | BX47: 3375 | BY47: 3420 | BZ47: 3465 | CA47: 3510 | CB47: 3555 | CC47: 3600 | CD47: 3645 | CE47: 3690 | CF47: 3735 | CG47: 3780 | CH47: 3825 | CI47: 3870 | CJ47: 3915 | CK47: 3960 | CL47: 4005 | CM47: 4050 | CN47: 4095 | CO47: 4140 | CP47: 4185 | CQ47: 4230 | CR47: 4275 | CS47: 4320 | CT47: 4365 | CU47: 4410 | CV47: 4455 | CW47: 4500
A48: 46 | B48: 46 | C48: 92 | D48: 138 | E48: 184 | F48: 230 | G48: 276 | H48: 322 | I48: 368 | J48: 414 | K48: 460 | L48: 506 | M48: 552 | N48: 598 | O48: 644 | P48: 690 | Q48: 736 | R48: 782 | S48: 828 | T48: 874 | U48: 920 | V48: 966 | W48: 1012 | X48: 1058 | Y48: 1104 | Z48: 1150 | AA48: 1196 | AB48: 1242 | AC48: 1288 | AD48: 1334 | AE48: 1380 | AF48: 1426 | AG48: 1472 | AH48: 1518 | AI48: 1564 | AJ48: 1610 | AK48: 1656 | AL48: 1702 | AM48: 1748 | AN48: 1794 | AO48: 1840 | AP48: 1886 | AQ48: 1932 | AR48: 1978 | AS48: 2024 | AT48: 2070 | AU48: 2116 | AV48: 2162 | AW48: 2208 | AX48: 2254 | AY48: 2300 | AZ48: 2346 | BA48: 2392 | BB48: 2438 | BC48: 2484 | BD48: 2530 | BE48: 2576 | BF48: 2622 | BG48: 2668 | BH48: 2714 | BI48: 2760 | BJ48: 2806 | BK48: 2852 | BL48: 2898 | BM48: 2944 | BN48: 2990 | BO48: 3036 | BP48: 3082 | BQ48: 3128 | BR48: 3174 | BS48: 3220 | BT48: 3266 | BU48: 3312 | BV48: 3358 | BW48: 3404 | BX48: 3450 | BY48: 3496 | BZ48: 3542 | CA48: 3588 | CB48: 3634 | CC48: 3680 | CD48: 3726 | CE48: 3772 | CF48: 3818 | CG48: 3864 | CH48: 3910 | CI48: 3956 | CJ48: 4002 | CK48: 4048 | CL48: 4094 | CM48: 4140 | CN48: 4186 | CO48: 4232 | CP48: 4278 | CQ48: 4324 | CR48: 4370 | CS48: 4416 | CT48: 4462 | CU48: 4508 | CV48: 4554 | CW48: 4600
A49: 47 | B49: 47 | C49: 94 | D49: 141 | E49: 188 | F49: 235 | G49: 282 | H49: 329 | I49: 376 | J49: 423 | K49: 470 | L49: 517 | M49: 564 | N49: 611 | O49: 658 | P49: 705 | Q49: 752 | R49: 799 | S49: 846 | T49: 893 | U49: 940 | V49: 987 | W49: 1034 | X49: 1081 | Y49: 1128 | Z49: 1175 | AA49: 1222 | AB49: 1269 | AC49: 1316 | AD49: 1363 | AE49: 1410 | AF49: 1457 | AG49: 1504 | AH49: 1551 | AI49: 1598 | AJ49: 1645 | AK49: 1692 | AL49: 1739 | AM49: 1786 | AN49: 1833 | AO49: 1880 | AP49: 1927 | AQ49: 1974 | AR49: 2021 | AS49: 2068 | AT49: 2115 | AU49: 2162 | AV49: 2209 | AW49: 2256 | AX49: 2303 | AY49: 2350 | AZ49: 2397 | BA49: 2444 | BB49: 2491 | BC49: 2538 | BD49: 2585 | BE49: 2632 | BF49: 2679 | BG49: 2726 | BH49: 2773 | BI49: 2820 | BJ49: 2867 | BK49: 2914 | BL49: 2961 | BM49: 3008 | BN49: 3055 | BO49: 3102 | BP49: 3149 | BQ49: 3196 | BR49: 3243 | BS49: 3290 | BT49: 3337 | BU49: 3384 | BV49: 3431 | BW49: 3478 | BX49: 3525 | BY49: 3572 | BZ49: 3619 | CA49: 3666 | CB49: 3713 | CC49: 3760 | CD49: 3807 | CE49: 3854 | CF49: 3901 | CG49: 3948 | CH49: 3995 | CI49: 4042 | CJ49: 4089 | CK49: 4136 | CL49: 4183 | CM49: 4230 | CN49: 4277 | CO49: 4324 | CP49: 4371 | CQ49: 4418 | CR49: 4465 | CS49: 4512 | CT49: 4559 | CU49: 4606 | CV49: 4653 | CW49: 4700
A50: 48 | B50: 48 | C50: 96 | D50: 144 | E50: 192 | F50: 240 | G50: 288 | H50: 336 | I50: 384 | J50: 432 | K50: 480 | L50: 528 | M50: 576 | N50: 624 | O50: 672 | P50: 720 | Q50: 768 | R50: 816 | S50: 864 | T50: 912 | U50: 960 | V50: 1008 | W50: 1056 | X50: 1104 | Y50: 1152 | Z50: 1200 | AA50: 1248 | AB50: 1296 | AC50: 1344 | AD50: 1392 | AE50: 1440 | AF50: 1488 | AG50: 1536 | AH50: 1584 | AI50: 1632 | AJ50: 1680 | AK50: 1728 | AL50: 1776 | AM50: 1824 | AN50: 1872 | AO50: 1920 | AP50: 1968 | AQ50: 2016 | AR50: 2064 | AS50: 2112 | AT50: 2160 | AU50: 2208 | AV50: 2256 | AW50: 2304 | AX50: 2352 | AY50: 2400 | AZ50: 2448 | BA50: 2496 | BB50: 2544 | BC50: 2592 | BD50: 2640 | BE50: 2688 | BF50: 2736 | BG50: 2784 | BH50: 2832 | BI50: 2880 | BJ50: 2928 | BK50: 2976 | BL50: 3024 | BM50: 3072 | BN50: 3120 | BO50: 3168 | BP50: 3216 | BQ50: 3264 | BR50: 3312 | BS50: 3360 | BT50: 3408 | BU50: 3456 | BV50: 3504 | BW50: 3552 | BX50: 3600 | BY50: 3648 | BZ50: 3696 | CA50: 3744 | CB50: 3792 | CC50: 3840 | CD50: 3888 | CE50: 3936 | CF50: 3984 | CG50: 4032 | CH50: 4080 | CI50: 4128 | CJ50: 4176 | CK50: 4224 | CL50: 4272 | CM50: 4320 | CN50: 4368 | CO50: 4416 | CP50: 4464 | CQ50: 4512 | CR50: 4560 | CS50: 4608 | CT50: 4656 | CU50: 4704 | CV50: 4752 | CW50: 4800
A51: 49 | B51: 49 | C51: 98 | D51: 147 | E51: 196 | F51: 245 | G51: 294 | H51: 343 | I51: 392 | J51: 441 | K51: 490 | L51: 539 | M51: 588 | N51: 637 | O51: 686 | P51: 735 | Q51: 784 | R51: 833 | S51: 882 | T51: 931 | U51: 980 | V51: 1029 | W51: 1078 | X51: 1127 | Y51: 1176 | Z51: 1225 | AA51: 1274 | AB51: 1323 | AC51: 1372 | AD51: 1421 | AE51: 1470 | AF51: 1519 | AG51: 1568 | AH51: 1617 | AI51: 1666 | AJ51: 1715 | AK51: 1764 | AL51: 1813 | AM51: 1862 | AN51: 1911 | AO51: 1960 | AP51: 2009 | AQ51: 2058 | AR51: 2107 | AS51: 2156 | AT51: 2205 | AU51: 2254 | AV51: 2303 | AW51: 2352 | AX51: 2401 | AY51: 2450 | AZ51: 2499 | BA51: 2548 | BB51: 2597 | BC51: 2646 | BD51: 2695 | BE51: 2744 | BF51: 2793 | BG51: 2842 | BH51: 2891 | BI51: 2940 | BJ51: 2989 | BK51: 3038 | BL51: 3087 | BM51: 3136 | BN51: 3185 | BO51: 3234 | BP51: 3283 | BQ51: 3332 | BR51: 3381 | BS51: 3430 | BT51: 3479 | BU51: 3528 | BV51: 3577 | BW51: 3626 | BX51: 3675 | BY51: 3724 | BZ51: 3773 | CA51: 3822 | CB51: 3871 | CC51: 3920 | CD51: 3969 | CE51: 4018 | CF51: 4067 | CG51: 4116 | CH51: 4165 | CI51: 4214 | CJ51: 4263 | CK51: 4312 | CL51: 4361 | CM51: 4410 | CN51: 4459 | CO51: 4508 | CP51: 4557 | CQ51: 4606 | CR51: 4655 | CS51: 4704 | CT51: 4753 | CU51: 4802 | CV51: 4851 | CW51: 4900
A52: 50 | B52: 50 | C52: 100 | D52: 150 | E52: 200 | F52: 250 | G52: 300 | H52: 350 | I52: 400 | J52: 450 | K52: 500 | L52: 550 | M52: 600 | N52: 650 | O52: 700 | P52: 750 | Q52: 800 | R52: 850 | S52: 900 | T52: 950 | U52: 1000 | V52: 1050 | W52: 1100 | X52: 1150 | Y52: 1200 | Z52: 1250 | AA52: 1300 | AB52: 1350 | AC52: 1400 | AD52: 1450 | AE52: 1500 | AF52: 1550 | AG52: 1600 | AH52: 1650 | AI52: 1700 | AJ52: 1750 | AK52: 1800 | AL52: 1850 | AM52: 1900 | AN52: 1950 | AO52: 2000 | AP52: 2050 | AQ52: 2100 | AR52: 2150 | AS52: 2200 | AT52: 2250 | AU52: 2300 | AV52: 2350 | AW52: 2400 | AX52: 2450 | AY52: 2500 | AZ52: 2550 | BA52: 2600 | BB52: 2650 | BC52: 2700 | BD52: 2750 | BE52: 2800 | BF52: 2850 | BG52: 2900 | BH52: 2950 | BI52: 3000 | BJ52: 3050 | BK52: 3100 | BL52: 3150 | BM52: 3200 | BN52: 3250 | BO52: 3300 | BP52: 3350 | BQ52: 3400 | BR52: 3450 | BS52: 3500 | BT52: 3550 | BU52: 3600 | BV52: 3650 | BW52: 3700 | BX52: 3750 | BY52: 3800 | BZ52: 3850 | CA52: 3900 | CB52: 3950 | CC52: 4000 | CD52: 4050 | CE52: 4100 | CF52: 4150 | CG52: 4200 | CH52: 4250 | CI52: 4300 | CJ52: 4350 | CK52: 4400 | CL52: 4450 | CM52: 4500 | CN52: 4550 | CO52: 4600 | CP52: 4650 | CQ52: 4700 | CR52: 4750 | CS52: 4800 | CT52: 4850 | CU52: 4900 | CV52: 4950 | CW52: 5000
A53: 51 | B53: =$A53*B$2 -> 51 | C53: 102 | D53: 153 | E53: 204 | F53: 255 | G53: 306 | H53: 357 | I53: 408 | J53: 459 | K53: 510 | L53: =$A53*L$2 -> 561 | M53: 612 | N53: 663 | O53: 714 | P53: 765 | Q53: 816 | R53: 867 | S53: 918 | T53: 969 | U53: 1020 | V53: =$A53*V$2 -> 1071 | W53: 1122 | X53: 1173 | Y53: 1224 | Z53: 1275 | AA53: 1326 | AB53: 1377 | AC53: 1428 | AD53: 1479 | AE53: 1530 | AF53: =$A53*AF$2 -> 1581 | AG53: 1632 | AH53: 1683 | AI53: 1734 | AJ53: 1785 | AK53: 1836 | AL53: 1887 | AM53: 1938 | AN53: 1989 | AO53: 2040 | AP53: =$A53*AP$2 -> 2091 | AQ53: 2142 | AR53: 2193 | AS53: 2244 | AT53: 2295 | AU53: 2346 | AV53: 2397 | AW53: 2448 | AX53: 2499 | AY53: 2550 | AZ53: =$A53*AZ$2 -> 2601 | BA53: 2652 | BB53: 2703 | BC53: 2754 | BD53: 2805 | BE53: 2856 | BF53: 2907 | BG53: 2958 | BH53: 3009 | BI53: 3060 | BJ53: =$A53*BJ$2 -> 3111 | BK53: 3162 | BL53: 3213 | BM53: 3264 | BN53: 3315 | BO53: 3366 | BP53: 3417 | BQ53: 3468 | BR53: 3519 | BS53: 3570 | BT53: =$A53*BT$2 -> 3621 | BU53: 3672 | BV53: 3723 | BW53: 3774 | BX53: 3825 | BY53: 3876 | BZ53: 3927 | CA53: 3978 | CB53: 4029 | CC53: 4080 | CD53: =$A53*CD$2 -> 4131 | CE53: 4182 | CF53: 4233 | CG53: 4284 | CH53: 4335 | CI53: 4386 | CJ53: 4437 | CK53: 4488 | CL53: 4539 | CM53: 4590 | CN53: =$A53*CN$2 -> 4641 | CO53: 4692 | CP53: 4743 | CQ53: 4794 | CR53: 4845 | CS53: 4896 | CT53: 4947 | CU53: 4998 | CV53: 5049 | CW53: 5100
A54: 52 | B54: 52 | C54: 104 | D54: 156 | E54: 208 | F54: 260 | G54: 312 | H54: 364 | I54: 416 | J54: 468 | K54: 520 | L54: 572 | M54: 624 | N54: 676 | O54: 728 | P54: 780 | Q54: 832 | R54: 884 | S54: 936 | T54: 988 | U54: 1040 | V54: 1092 | W54: 1144 | X54: 1196 | Y54: 1248 | Z54: 1300 | AA54: 1352 | AB54: 1404 | AC54: 1456 | AD54: 1508 | AE54: 1560 | AF54: 1612 | AG54: 1664 | AH54: 1716 | AI54: 1768 | AJ54: 1820 | AK54: 1872 | AL54: 1924 | AM54: 1976 | AN54: 2028 | AO54: 2080 | AP54: 2132 | AQ54: 2184 | AR54: 2236 | AS54: 2288 | AT54: 2340 | AU54: 2392 | AV54: 2444 | AW54: 2496 | AX54: 2548 | AY54: 2600 | AZ54: 2652 | BA54: 2704 | BB54: 2756 | BC54: 2808 | BD54: 2860 | BE54: 2912 | BF54: 2964 | BG54: 3016 | BH54: 3068 | BI54: 3120 | BJ54: 3172 | BK54: 3224 | BL54: 3276 | BM54: 3328 | BN54: 3380 | BO54: 3432 | BP54: 3484 | BQ54: 3536 | BR54: 3588 | BS54: 3640 | BT54: 3692 | BU54: 3744 | BV54: 3796 | BW54: 3848 | BX54: 3900 | BY54: 3952 | BZ54: 4004 | CA54: 4056 | CB54: 4108 | CC54: 4160 | CD54: 4212 | CE54: 4264 | CF54: 4316 | CG54: 4368 | CH54: 4420 | CI54: 4472 | CJ54: 4524 | CK54: 4576 | CL54: 4628 | CM54: 4680 | CN54: 4732 | CO54: 4784 | CP54: 4836 | CQ54: 4888 | CR54: 4940 | CS54: 4992 | CT54: 5044 | CU54: 5096 | CV54: 5148 | CW54: 5200
A55: 53 | B55: 53 | C55: 106 | D55: 159 | E55: 212 | F55: 265 | G55: 318 | H55: 371 | I55: 424 | J55: 477 | K55: 530 | L55: 583 | M55: 636 | N55: 689 | O55: 742 | P55: 795 | Q55: 848 | R55: 901 | S55: 954 | T55: 1007 | U55: 1060 | V55: 1113 | W55: 1166 | X55: 1219 | Y55: 1272 | Z55: 1325 | AA55: 1378 | AB55: 1431 | AC55: 1484 | AD55: 1537 | AE55: 1590 | AF55: 1643 | AG55: 1696 | AH55: 1749 | AI55: 1802 | AJ55: 1855 | AK55: 1908 | AL55: 1961 | AM55: 2014 | AN55: 2067 | AO55: 2120 | AP55: 2173 | AQ55: 2226 | AR55: 2279 | AS55: 2332 | AT55: 2385 | AU55: 2438 | AV55: 2491 | AW55: 2544 | AX55: 2597 | AY55: 2650 | AZ55: 2703 | BA55: 2756 | BB55: 2809 | BC55: 2862 | BD55: 2915 | BE55: 2968 | BF55: 3021 | BG55: 3074 | BH55: 3127 | BI55: 3180 | BJ55: 3233 | BK55: 3286 | BL55: 3339 | BM55: 3392 | BN55: 3445 | BO55: 3498 | BP55: 3551 | BQ55: 3604 | BR55: 3657 | BS55: 3710 | BT55: 3763 | BU55: 3816 | BV55: 3869 | BW55: 3922 | BX55: 3975 | BY55: 4028 | BZ55: 4081 | CA55: 4134 | CB55: 4187 | CC55: 4240 | CD55: 4293 | CE55: 4346 | CF55: 4399 | CG55: 4452 | CH55: 4505 | CI55: 4558 | CJ55: 4611 | CK55: 4664 | CL55: 4717 | CM55: 4770 | CN55: 4823 | CO55: 4876 | CP55: 4929 | CQ55: 4982 | CR55: 5035 | CS55: 5088 | CT55: 5141 | CU55: 5194 | CV55: 5247 | CW55: 5300
A56: 54 | B56: 54 | C56: 108 | D56: 162 | E56: 216 | F56: 270 | G56: 324 | H56: 378 | I56: 432 | J56: 486 | K56: 540 | L56: 594 | M56: 648 | N56: 702 | O56: 756 | P56: 810 | Q56: 864 | R56: 918 | S56: 972 | T56: 1026 | U56: 1080 | V56: 1134 | W56: 1188 | X56: 1242 | Y56: 1296 | Z56: 1350 | AA56: 1404 | AB56: 1458 | AC56: 1512 | AD56: 1566 | AE56: 1620 | AF56: 1674 | AG56: 1728 | AH56: 1782 | AI56: 1836 | AJ56: 1890 | AK56: 1944 | AL56: 1998 | AM56: 2052 | AN56: 2106 | AO56: 2160 | AP56: 2214 | AQ56: 2268 | AR56: 2322 | AS56: 2376 | AT56: 2430 | AU56: 2484 | AV56: 2538 | AW56: 2592 | AX56: 2646 | AY56: 2700 | AZ56: 2754 | BA56: 2808 | BB56: 2862 | BC56: 2916 | BD56: 2970 | BE56: 3024 | BF56: 3078 | BG56: 3132 | BH56: 3186 | BI56: 3240 | BJ56: 3294 | BK56: 3348 | BL56: 3402 | BM56: 3456 | BN56: 3510 | BO56: 3564 | BP56: 3618 | BQ56: 3672 | BR56: 3726 | BS56: 3780 | BT56: 3834 | BU56: 3888 | BV56: 3942 | BW56: 3996 | BX56: 4050 | BY56: 4104 | BZ56: 4158 | CA56: 4212 | CB56: 4266 | CC56: 4320 | CD56: 4374 | CE56: 4428 | CF56: 4482 | CG56: 4536 | CH56: 4590 | CI56: 4644 | CJ56: 4698 | CK56: 4752 | CL56: 4806 | CM56: 4860 | CN56: 4914 | CO56: 4968 | CP56: 5022 | CQ56: 5076 | CR56: 5130 | CS56: 5184 | CT56: 5238 | CU56: 5292 | CV56: 5346 | CW56: 5400
A57: 55 | B57: 55 | C57: 110 | D57: 165 | E57: 220 | F57: 275 | G57: 330 | H57: 385 | I57: 440 | J57: 495 | K57: 550 | L57: 605 | M57: 660 | N57: 715 | O57: 770 | P57: 825 | Q57: 880 | R57: 935 | S57: 990 | T57: 1045 | U57: 1100 | V57: 1155 | W57: 1210 | X57: 1265 | Y57: 1320 | Z57: 1375 | AA57: 1430 | AB57: 1485 | AC57: 1540 | AD57: 1595 | AE57: 1650 | AF57: 1705 | AG57: 1760 | AH57: 1815 | AI57: 1870 | AJ57: 1925 | AK57: 1980 | AL57: 2035 | AM57: 2090 | AN57: 2145 | AO57: 2200 | AP57: 2255 | AQ57: 2310 | AR57: 2365 | AS57: 2420 | AT57: 2475 | AU57: 2530 | AV57: 2585 | AW57: 2640 | AX57: 2695 | AY57: 2750 | AZ57: 2805 | BA57: 2860 | BB57: 2915 | BC57: 2970 | BD57: 3025 | BE57: 3080 | BF57: 3135 | BG57: 3190 | BH57: 3245 | BI57: 3300 | BJ57: 3355 | BK57: 3410 | BL57: 3465 | BM57: 3520 | BN57: 3575 | BO57: 3630 | BP57: 3685 | BQ57: 3740 | BR57: 3795 | BS57: 3850 | BT57: 3905 | BU57: 3960 | BV57: 4015 | BW57: 4070 | BX57: 4125 | BY57: 4180 | BZ57: 4235 | CA57: 4290 | CB57: 4345 | CC57: 4400 | CD57: 4455 | CE57: 4510 | CF57: 4565 | CG57: 4620 | CH57: 4675 | CI57: 4730 | CJ57: 4785 | CK57: 4840 | CL57: 4895 | CM57: 4950 | CN57: 5005 | CO57: 5060 | CP57: 5115 | CQ57: 5170 | CR57: 5225 | CS57: 5280 | CT57: 5335 | CU57: 5390 | CV57: 5445 | CW57: 5500
A58: 56 | B58: 56 | C58: 112 | D58: 168 | E58: 224 | F58: 280 | G58: 336 | H58: 392 | I58: 448 | J58: 504 | K58: 560 | L58: 616 | M58: 672 | N58: 728 | O58: 784 | P58: 840 | Q58: 896 | R58: 952 | S58: 1008 | T58: 1064 | U58: 1120 | V58: 1176 | W58: 1232 | X58: 1288 | Y58: 1344 | Z58: 1400 | AA58: 1456 | AB58: 1512 | AC58: 1568 | AD58: 1624 | AE58: 1680 | AF58: 1736 | AG58: 1792 | AH58: 1848 | AI58: 1904 | AJ58: 1960 | AK58: 2016 | AL58: 2072 | AM58: 2128 | AN58: 2184 | AO58: 2240 | AP58: 2296 | AQ58: 2352 | AR58: 2408 | AS58: 2464 | AT58: 2520 | AU58: 2576 | AV58: 2632 | AW58: 2688 | AX58: 2744 | AY58: 2800 | AZ58: 2856 | BA58: 2912 | BB58: 2968 | BC58: 3024 | BD58: 3080 | BE58: 3136 | BF58: 3192 | BG58: 3248 | BH58: 3304 | BI58: 3360 | BJ58: 3416 | BK58: 3472 | BL58: 3528 | BM58: 3584 | BN58: 3640 | BO58: 3696 | BP58: 3752 | BQ58: 3808 | BR58: 3864 | BS58: 3920 | BT58: 3976 | BU58: 4032 | BV58: 4088 | BW58: 4144 | BX58: 4200 | BY58: 4256 | BZ58: 4312 | CA58: 4368 | CB58: 4424 | CC58: 4480 | CD58: 4536 | CE58: 4592 | CF58: 4648 | CG58: 4704 | CH58: 4760 | CI58: 4816 | CJ58: 4872 | CK58: 4928 | CL58: 4984 | CM58: 5040 | CN58: 5096 | CO58: 5152 | CP58: 5208 | CQ58: 5264 | CR58: 5320 | CS58: 5376 | CT58: 5432 | CU58: 5488 | CV58: 5544 | CW58: 5600
A59: 57 | B59: 57 | C59: 114 | D59: 171 | E59: 228 | F59: 285 | G59: 342 | H59: 399 | I59: 456 | J59: 513 | K59: 570 | L59: 627 | M59: 684 | N59: 741 | O59: 798 | P59: 855 | Q59: 912 | R59: 969 | S59: 1026 | T59: 1083 | U59: 1140 | V59: 1197 | W59: 1254 | X59: 1311 | Y59: 1368 | Z59: 1425 | AA59: 1482 | AB59: 1539 | AC59: 1596 | AD59: 1653 | AE59: 1710 | AF59: 1767 | AG59: 1824 | AH59: 1881 | AI59: 1938 | AJ59: 1995 | AK59: 2052 | AL59: 2109 | AM59: 2166 | AN59: 2223 | AO59: 2280 | AP59: 2337 | AQ59: 2394 | AR59: 2451 | AS59: 2508 | AT59: 2565 | AU59: 2622 | AV59: 2679 | AW59: 2736 | AX59: 2793 | AY59: 2850 | AZ59: 2907 | BA59: 2964 | BB59: 3021 | BC59: 3078 | BD59: 3135 | BE59: 3192 | BF59: 3249 | BG59: 3306 | BH59: 3363 | BI59: 3420 | BJ59: 3477 | BK59: 3534 | BL59: 3591 | BM59: 3648 | BN59: 3705 | BO59: 3762 | BP59: 3819 | BQ59: 3876 | BR59: 3933 | BS59: 3990 | BT59: 4047 | BU59: 4104 | BV59: 4161 | BW59: 4218 | BX59: 4275 | BY59: 4332 | BZ59: 4389 | CA59: 4446 | CB59: 4503 | CC59: 4560 | CD59: 4617 | CE59: 4674 | CF59: 4731 | CG59: 4788 | CH59: 4845 | CI59: 4902 | CJ59: 4959 | CK59: 5016 | CL59: 5073 | CM59: 5130 | CN59: 5187 | CO59: 5244 | CP59: 5301 | CQ59: 5358 | CR59: 5415 | CS59: 5472 | CT59: 5529 | CU59: 5586 | CV59: 5643 | CW59: 5700
A60: 58 | B60: 58 | C60: 116 | D60: 174 | E60: 232 | F60: 290 | G60: 348 | H60: 406 | I60: 464 | J60: 522 | K60: 580 | L60: 638 | M60: 696 | N60: 754 | O60: 812 | P60: 870 | Q60: 928 | R60: 986 | S60: 1044 | T60: 1102 | U60: 1160 | V60: 1218 | W60: 1276 | X60: 1334 | Y60: 1392 | Z60: 1450 | AA60: 1508 | AB60: 1566 | AC60: 1624 | AD60: 1682 | AE60: 1740 | AF60: 1798 | AG60: 1856 | AH60: 1914 | AI60: 1972 | AJ60: 2030 | AK60: 2088 | AL60: 2146 | AM60: 2204 | AN60: 2262 | AO60: 2320 | AP60: 2378 | AQ60: 2436 | AR60: 2494 | AS60: 2552 | AT60: 2610 | AU60: 2668 | AV60: 2726 | AW60: 2784 | AX60: 2842 | AY60: 2900 | AZ60: 2958 | BA60: 3016 | BB60: 3074 | BC60: 3132 | BD60: 3190 | BE60: 3248 | BF60: 3306 | BG60: 3364 | BH60: 3422 | BI60: 3480 | BJ60: 3538 | BK60: 3596 | BL60: 3654 | BM60: 3712 | BN60: 3770 | BO60: 3828 | BP60: 3886 | BQ60: 3944 | BR60: 4002 | BS60: 4060 | BT60: 4118 | BU60: 4176 | BV60: 4234 | BW60: 4292 | BX60: 4350 | BY60: 4408 | BZ60: 4466 | CA60: 4524 | CB60: 4582 | CC60: 4640 | CD60: 4698 | CE60: 4756 | CF60: 4814 | CG60: 4872 | CH60: 4930 | CI60: 4988 | CJ60: 5046 | CK60: 5104 | CL60: 5162 | CM60: 5220 | CN60: 5278 | CO60: 5336 | CP60: 5394 | CQ60: 5452 | CR60: 5510 | CS60: 5568 | CT60: 5626 | CU60: 5684 | CV60: 5742 | CW60: 5800
A61: 59 | B61: 59 | C61: 118 | D61: 177 | E61: 236 | F61: 295 | G61: 354 | H61: 413 | I61: 472 | J61: 531 | K61: 590 | L61: 649 | M61: 708 | N61: 767 | O61: 826 | P61: 885 | Q61: 944 | R61: 1003 | S61: 1062 | T61: 1121 | U61: 1180 | V61: 1239 | W61: 1298 | X61: 1357 | Y61: 1416 | Z61: 1475 | AA61: 1534 | AB61: 1593 | AC61: 1652 | AD61: 1711 | AE61: 1770 | AF61: 1829 | AG61: 1888 | AH61: 1947 | AI61: 2006 | AJ61: 2065 | AK61: 2124 | AL61: 2183 | AM61: 2242 | AN61: 2301 | AO61: 2360 | AP61: 2419 | AQ61: 2478 | AR61: 2537 | AS61: 2596 | AT61: 2655 | AU61: 2714 | AV61: 2773 | AW61: 2832 | AX61: 2891 | AY61: 2950 | AZ61: 3009 | BA61: 3068 | BB61: 3127 | BC61: 3186 | BD61: 3245 | BE61: 3304 | BF61: 3363 | BG61: 3422 | BH61: 3481 | BI61: 3540 | BJ61: 3599 | BK61: 3658 | BL61: 3717 | BM61: 3776 | BN61: 3835 | BO61: 3894 | BP61: 3953 | BQ61: 4012 | BR61: 4071 | BS61: 4130 | BT61: 4189 | BU61: 4248 | BV61: 4307 | BW61: 4366 | BX61: 4425 | BY61: 4484 | BZ61: 4543 | CA61: 4602 | CB61: 4661 | CC61: 4720 | CD61: 4779 | CE61: 4838 | CF61: 4897 | CG61: 4956 | CH61: 5015 | CI61: 5074 | CJ61: 5133 | CK61: 5192 | CL61: 5251 | CM61: 5310 | CN61: 5369 | CO61: 5428 | CP61: 5487 | CQ61: 5546 | CR61: 5605 | CS61: 5664 | CT61: 5723 | CU61: 5782 | CV61: 5841 | CW61: 5900
A62: 60 | B62: 60 | C62: 120 | D62: 180 | E62: 240 | F62: 300 | G62: 360 | H62: 420 | I62: 480 | J62: 540 | K62: 600 | L62: 660 | M62: 720 | N62: 780 | O62: 840 | P62: 900 | Q62: 960 | R62: 1020 | S62: 1080 | T62: 1140 | U62: 1200 | V62: 1260 | W62: 1320 | X62: 1380 | Y62: 1440 | Z62: 1500 | AA62: 1560 | AB62: 1620 | AC62: 1680 | AD62: 1740 | AE62: 1800 | AF62: 1860 | AG62: 1920 | AH62: 1980 | AI62: 2040 | AJ62: 2100 | AK62: 2160 | AL62: 2220 | AM62: 2280 | AN62: 2340 | AO62: 2400 | AP62: 2460 | AQ62: 2520 | AR62: 2580 | AS62: 2640 | AT62: 2700 | AU62: 2760 | AV62: 2820 | AW62: 2880 | AX62: 2940 | AY62: 3000 | AZ62: 3060 | BA62: 3120 | BB62: 3180 | BC62: 3240 | BD62: 3300 | BE62: 3360 | BF62: 3420 | BG62: 3480 | BH62: 3540 | BI62: 3600 | BJ62: 3660 | BK62: 3720 | BL62: 3780 | BM62: 3840 | BN62: 3900 | BO62: 3960 | BP62: 4020 | BQ62: 4080 | BR62: 4140 | BS62: 4200 | BT62: 4260 | BU62: 4320 | BV62: 4380 | BW62: 4440 | BX62: 4500 | BY62: 4560 | BZ62: 4620 | CA62: 4680 | CB62: 4740 | CC62: 4800 | CD62: 4860 | CE62: 4920 | CF62: 4980 | CG62: 5040 | CH62: 5100 | CI62: 5160 | CJ62: 5220 | CK62: 5280 | CL62: 5340 | CM62: 5400 | CN62: 5460 | CO62: 5520 | CP62: 5580 | CQ62: 5640 | CR62: 5700 | CS62: 5760 | CT62: 5820 | CU62: 5880 | CV62: 5940 | CW62: 6000
A63: 61 | B63: =$A63*B$2 -> 61 | C63: 122 | D63: 183 | E63: 244 | F63: 305 | G63: 366 | H63: 427 | I63: 488 | J63: 549 | K63: 610 | L63: =$A63*L$2 -> 671 | M63: 732 | N63: 793 | O63: 854 | P63: 915 | Q63: 976 | R63: 1037 | S63: 1098 | T63: 1159 | U63: 1220 | V63: =$A63*V$2 -> 1281 | W63: 1342 | X63: 1403 | Y63: 1464 | Z63: 1525 | AA63: 1586 | AB63: 1647 | AC63: 1708 | AD63: 1769 | AE63: 1830 | AF63: =$A63*AF$2 -> 1891 | AG63: 1952 | AH63: 2013 | AI63: 2074 | AJ63: 2135 | AK63: 2196 | AL63: 2257 | AM63: 2318 | AN63: 2379 | AO63: 2440 | AP63: =$A63*AP$2 -> 2501 | AQ63: 2562 | AR63: 2623 | AS63: 2684 | AT63: 2745 | AU63: 2806 | AV63: 2867 | AW63: 2928 | AX63: 2989 | AY63: 3050 | AZ63: =$A63*AZ$2 -> 3111 | BA63: 3172 | BB63: 3233 | BC63: 3294 | BD63: 3355 | BE63: 3416 | BF63: 3477 | BG63: 3538 | BH63: 3599 | BI63: 3660 | BJ63: =$A63*BJ$2 -> 3721 | BK63: 3782 | BL63: 3843 | BM63: 3904 | BN63: 3965 | BO63: 4026 | BP63: 4087 | BQ63: 4148 | BR63: 4209 | BS63: 4270 | BT63: =$A63*BT$2 -> 4331 | BU63: 4392 | BV63: 4453 | BW63: 4514 | BX63: 4575 | BY63: 4636 | BZ63: 4697 | CA63: 4758 | CB63: 4819 | CC63: 4880 | CD63: =$A63*CD$2 -> 4941 | CE63: 5002 | CF63: 5063 | CG63: 5124 | CH63: 5185 | CI63: 5246 | CJ63: 5307 | CK63: 5368 | CL63: 5429 | CM63: 5490 | CN63: =$A63*CN$2 -> 5551 | CO63: 5612 | CP63: 5673 | CQ63: 5734 | CR63: 5795 | CS63: 5856 | CT63: 5917 | CU63: 5978 | CV63: 6039 | CW63: 6100
A64: 62 | B64: 62 | C64: 124 | D64: 186 | E64: 248 | F64: 310 | G64: 372 | H64: 434 | I64: 496 | J64: 558 | K64: 620 | L64: 682 | M64: 744 | N64: 806 | O64: 868 | P64: 930 | Q64: 992 | R64: 1054 | S64: 1116 | T64: 1178 | U64: 1240 | V64: 1302 | W64: 1364 | X64: 1426 | Y64: 1488 | Z64: 1550 | AA64: 1612 | AB64: 1674 | AC64: 1736 | AD64: 1798 | AE64: 1860 | AF64: 1922 | AG64: 1984 | AH64: 2046 | AI64: 2108 | AJ64: 2170 | AK64: 2232 | AL64: 2294 | AM64: 2356 | AN64: 2418 | AO64: 2480 | AP64: 2542 | AQ64: 2604 | AR64: 2666 | AS64: 2728 | AT64: 2790 | AU64: 2852 | AV64: 2914 | AW64: 2976 | AX64: 3038 | AY64: 3100 | AZ64: 3162 | BA64: 3224 | BB64: 3286 | BC64: 3348 | BD64: 3410 | BE64: 3472 | BF64: 3534 | BG64: 3596 | BH64: 3658 | BI64: 3720 | BJ64: 3782 | BK64: 3844 | BL64: 3906 | BM64: 3968 | BN64: 4030 | BO64: 4092 | BP64: 4154 | BQ64: 4216 | BR64: 4278 | BS64: 4340 | BT64: 4402 | BU64: 4464 | BV64: 4526 | BW64: 4588 | BX64: 4650 | BY64: 4712 | BZ64: 4774 | CA64: 4836 | CB64: 4898 | CC64: 4960 | CD64: 5022 | CE64: 5084 | CF64: 5146 | CG64: 5208 | CH64: 5270 | CI64: 5332 | CJ64: 5394 | CK64: 5456 | CL64: 5518 | CM64: 5580 | CN64: 5642 | CO64: 5704 | CP64: 5766 | CQ64: 5828 | CR64: 5890 | CS64: 5952 | CT64: 6014 | CU64: 6076 | CV64: 6138 | CW64: 6200
A65: 63 | B65: 63 | C65: 126 | D65: 189 | E65: 252 | F65: 315 | G65: 378 | H65: 441 | I65: 504 | J65: 567 | K65: 630 | L65: 693 | M65: 756 | N65: 819 | O65: 882 | P65: 945 | Q65: 1008 | R65: 1071 | S65: 1134 | T65: 1197 | U65: 1260 | V65: 1323 | W65: 1386 | X65: 1449 | Y65: 1512 | Z65: 1575 | AA65: 1638 | AB65: 1701 | AC65: 1764 | AD65: 1827 | AE65: 1890 | AF65: 1953 | AG65: 2016 | AH65: 2079 | AI65: 2142 | AJ65: 2205 | AK65: 2268 | AL65: 2331 | AM65: 2394 | AN65: 2457 | AO65: 2520 | AP65: 2583 | AQ65: 2646 | AR65: 2709 | AS65: 2772 | AT65: 2835 | AU65: 2898 | AV65: 2961 | AW65: 3024 | AX65: 3087 | AY65: 3150 | AZ65: 3213 | BA65: 3276 | BB65: 3339 | BC65: 3402 | BD65: 3465 | BE65: 3528 | BF65: 3591 | BG65: 3654 | BH65: 3717 | BI65: 3780 | BJ65: 3843 | BK65: 3906 | BL65: 3969 | BM65: 4032 | BN65: 4095 | BO65: 4158 | BP65: 4221 | BQ65: 4284 | BR65: 4347 | BS65: 4410 | BT65: 4473 | BU65: 4536 | BV65: 4599 | BW65: 4662 | BX65: 4725 | BY65: 4788 | BZ65: 4851 | CA65: 4914 | CB65: 4977 | CC65: 5040 | CD65: 5103 | CE65: 5166 | CF65: 5229 | CG65: 5292 | CH65: 5355 | CI65: 5418 | CJ65: 5481 | CK65: 5544 | CL65: 5607 | CM65: 5670 | CN65: 5733 | CO65: 5796 | CP65: 5859 | CQ65: 5922 | CR65: 5985 | CS65: 6048 | CT65: 6111 | CU65: 6174 | CV65: 6237 | CW65: 6300
A66: 64 | B66: 64 | C66: 128 | D66: 192 | E66: 256 | F66: 320 | G66: 384 | H66: 448 | I66: 512 | J66: 576 | K66: 640 | L66: 704 | M66: 768 | N66: 832 | O66: 896 | P66: 960 | Q66: 1024 | R66: 1088 | S66: 1152 | T66: 1216 | U66: 1280 | V66: 1344 | W66: 1408 | X66: 1472 | Y66: 1536 | Z66: 1600 | AA66: 1664 | AB66: 1728 | AC66: 1792 | AD66: 1856 | AE66: 1920 | AF66: 1984 | AG66: 2048 | AH66: 2112 | AI66: 2176 | AJ66: 2240 | AK66: 2304 | AL66: 2368 | AM66: 2432 | AN66: 2496 | AO66: 2560 | AP66: 2624 | AQ66: 2688 | AR66: 2752 | AS66: 2816 | AT66: 2880 | AU66: 2944 | AV66: 3008 | AW66: 3072 | AX66: 3136 | AY66: 3200 | AZ66: 3264 | BA66: 3328 | BB66: 3392 | BC66: 3456 | BD66: 3520 | BE66: 3584 | BF66: 3648 | BG66: 3712 | BH66: 3776 | BI66: 3840 | BJ66: 3904 | BK66: 3968 | BL66: 4032 | BM66: 4096 | BN66: 4160 | BO66: 4224 | BP66: 4288 | BQ66: 4352 | BR66: 4416 | BS66: 4480 | BT66: 4544 | BU66: 4608 | BV66: 4672 | BW66: 4736 | BX66: 4800 | BY66: 4864 | BZ66: 4928 | CA66: 4992 | CB66: 5056 | CC66: 5120 | CD66: 5184 | CE66: 5248 | CF66: 5312 | CG66: 5376 | CH66: 5440 | CI66: 5504 | CJ66: 5568 | CK66: 5632 | CL66: 5696 | CM66: 5760 | CN66: 5824 | CO66: 5888 | CP66: 5952 | CQ66: 6016 | CR66: 6080 | CS66: 6144 | CT66: 6208 | CU66: 6272 | CV66: 6336 | CW66: 6400
A67: 65 | B67: 65 | C67: 130 | D67: 195 | E67: 260 | F67: 325 | G67: 390 | H67: 455 | I67: 520 | J67: 585 | K67: 650 | L67: 715 | M67: 780 | N67: 845 | O67: 910 | P67: 975 | Q67: 1040 | R67: 1105 | S67: 1170 | T67: 1235 | U67: 1300 | V67: 1365 | W67: 1430 | X67: 1495 | Y67: 1560 | Z67: 1625 | AA67: 1690 | AB67: 1755 | AC67: 1820 | AD67: 1885 | AE67: 1950 | AF67: 2015 | AG67: 2080 | AH67: 2145 | AI67: 2210 | AJ67: 2275 | AK67: 2340 | AL67: 2405 | AM67: 2470 | AN67: 2535 | AO67: 2600 | AP67: 2665 | AQ67: 2730 | AR67: 2795 | AS67: 2860 | AT67: 2925 | AU67: 2990 | AV67: 3055 | AW67: 3120 | AX67: 3185 | AY67: 3250 | AZ67: 3315 | BA67: 3380 | BB67: 3445 | BC67: 3510 | BD67: 3575 | BE67: 3640 | BF67: 3705 | BG67: 3770 | BH67: 3835 | BI67: 3900 | BJ67: 3965 | BK67: 4030 | BL67: 4095 | BM67: 4160 | BN67: 4225 | BO67: 4290 | BP67: 4355 | BQ67: 4420 | BR67: 4485 | BS67: 4550 | BT67: 4615 | BU67: 4680 | BV67: 4745 | BW67: 4810 | BX67: 4875 | BY67: 4940 | BZ67: 5005 | CA67: 5070 | CB67: 5135 | CC67: 5200 | CD67: 5265 | CE67: 5330 | CF67: 5395 | CG67: 5460 | CH67: 5525 | CI67: 5590 | CJ67: 5655 | CK67: 5720 | CL67: 5785 | CM67: 5850 | CN67: 5915 | CO67: 5980 | CP67: 6045 | CQ67: 6110 | CR67: 6175 | CS67: 6240 | CT67: 6305 | CU67: 6370 | CV67: 6435 | CW67: 6500
A68: 66 | B68: 66 | C68: 132 | D68: 198 | E68: 264 | F68: 330 | G68: 396 | H68: 462 | I68: 528 | J68: 594 | K68: 660 | L68: 726 | M68: 792 | N68: 858 | O68: 924 | P68: 990 | Q68: 1056 | R68: 1122 | S68: 1188 | T68: 1254 | U68: 1320 | V68: 1386 | W68: 1452 | X68: 1518 | Y68: 1584 | Z68: 1650 | AA68: 1716 | AB68: 1782 | AC68: 1848 | AD68: 1914 | AE68: 1980 | AF68: 2046 | AG68: 2112 | AH68: 2178 | AI68: 2244 | AJ68: 2310 | AK68: 2376 | AL68: 2442 | AM68: 2508 | AN68: 2574 | AO68: 2640 | AP68: 2706 | AQ68: 2772 | AR68: 2838 | AS68: 2904 | AT68: 2970 | AU68: 3036 | AV68: 3102 | AW68: 3168 | AX68: 3234 | AY68: 3300 | AZ68: 3366 | BA68: 3432 | BB68: 3498 | BC68: 3564 | BD68: 3630 | BE68: 3696 | BF68: 3762 | BG68: 3828 | BH68: 3894 | BI68: 3960 | BJ68: 4026 | BK68: 4092 | BL68: 4158 | BM68: 4224 | BN68: 4290 | BO68: 4356 | BP68: 4422 | BQ68: 4488 | BR68: 4554 | BS68: 4620 | BT68: 4686 | BU68: 4752 | BV68: 4818 | BW68: 4884 | BX68: 4950 | BY68: 5016 | BZ68: 5082 | CA68: 5148 | CB68: 5214 | CC68: 5280 | CD68: 5346 | CE68: 5412 | CF68: 5478 | CG68: 5544 | CH68: 5610 | CI68: 5676 | CJ68: 5742 | CK68: 5808 | CL68: 5874 | CM68: 5940 | CN68: 6006 | CO68: 6072 | CP68: 6138 | CQ68: 6204 | CR68: 6270 | CS68: 6336 | CT68: 6402 | CU68: 6468 | CV68: 6534 | CW68: 6600
A69: 67 | B69: 67 | C69: 134 | D69: 201 | E69: 268 | F69: 335 | G69: 402 | H69: 469 | I69: 536 | J69: 603 | K69: 670 | L69: 737 | M69: 804 | N69: 871 | O69: 938 | P69: 1005 | Q69: 1072 | R69: 1139 | S69: 1206 | T69: 1273 | U69: 1340 | V69: 1407 | W69: 1474 | X69: 1541 | Y69: 1608 | Z69: 1675 | AA69: 1742 | AB69: 1809 | AC69: 1876 | AD69: 1943 | AE69: 2010 | AF69: 2077 | AG69: 2144 | AH69: 2211 | AI69: 2278 | AJ69: 2345 | AK69: 2412 | AL69: 2479 | AM69: 2546 | AN69: 2613 | AO69: 2680 | AP69: 2747 | AQ69: 2814 | AR69: 2881 | AS69: 2948 | AT69: 3015 | AU69: 3082 | AV69: 3149 | AW69: 3216 | AX69: 3283 | AY69: 3350 | AZ69: 3417 | BA69: 3484 | BB69: 3551 | BC69: 3618 | BD69: 3685 | BE69: 3752 | BF69: 3819 | BG69: 3886 | BH69: 3953 | BI69: 4020 | BJ69: 4087 | BK69: 4154 | BL69: 4221 | BM69: 4288 | BN69: 4355 | BO69: 4422 | BP69: 4489 | BQ69: 4556 | BR69: 4623 | BS69: 4690 | BT69: 4757 | BU69: 4824 | BV69: 4891 | BW69: 4958 | BX69: 5025 | BY69: 5092 | BZ69: 5159 | CA69: 5226 | CB69: 5293 | CC69: 5360 | CD69: 5427 | CE69: 5494 | CF69: 5561 | CG69: 5628 | CH69: 5695 | CI69: 5762 | CJ69: 5829 | CK69: 5896 | CL69: 5963 | CM69: 6030 | CN69: 6097 | CO69: 6164 | CP69: 6231 | CQ69: 6298 | CR69: 6365 | CS69: 6432 | CT69: 6499 | CU69: 6566 | CV69: 6633 | CW69: 6700
A70: 68 | B70: 68 | C70: 136 | D70: 204 | E70: 272 | F70: 340 | G70: 408 | H70: 476 | I70: 544 | J70: 612 | K70: 680 | L70: 748 | M70: 816 | N70: 884 | O70: 952 | P70: 1020 | Q70: 1088 | R70: 1156 | S70: 1224 | T70: 1292 | U70: 1360 | V70: 1428 | W70: 1496 | X70: 1564 | Y70: 1632 | Z70: 1700 | AA70: 1768 | AB70: 1836 | AC70: 1904 | AD70: 1972 | AE70: 2040 | AF70: 2108 | AG70: 2176 | AH70: 2244 | AI70: 2312 | AJ70: 2380 | AK70: 2448 | AL70: 2516 | AM70: 2584 | AN70: 2652 | AO70: 2720 | AP70: 2788 | AQ70: 2856 | AR70: 2924 | AS70: 2992 | AT70: 3060 | AU70: 3128 | AV70: 3196 | AW70: 3264 | AX70: 3332 | AY70: 3400 | AZ70: 3468 | BA70: 3536 | BB70: 3604 | BC70: 3672 | BD70: 3740 | BE70: 3808 | BF70: 3876 | BG70: 3944 | BH70: 4012 | BI70: 4080 | BJ70: 4148 | BK70: 4216 | BL70: 4284 | BM70: 4352 | BN70: 4420 | BO70: 4488 | BP70: 4556 | BQ70: 4624 | BR70: 4692 | BS70: 4760 | BT70: 4828 | BU70: 4896 | BV70: 4964 | BW70: 5032 | BX70: 5100 | BY70: 5168 | BZ70: 5236 | CA70: 5304 | CB70: 5372 | CC70: 5440 | CD70: 5508 | CE70: 5576 | CF70: 5644 | CG70: 5712 | CH70: 5780 | CI70: 5848 | CJ70: 5916 | CK70: 5984 | CL70: 6052 | CM70: 6120 | CN70: 6188 | CO70: 6256 | CP70: 6324 | CQ70: 6392 | CR70: 6460 | CS70: 6528 | CT70: 6596 | CU70: 6664 | CV70: 6732 | CW70: 6800
A71: 69 | B71: 69 | C71: 138 | D71: 207 | E71: 276 | F71: 345 | G71: 414 | H71: 483 | I71: 552 | J71: 621 | K71: 690 | L71: 759 | M71: 828 | N71: 897 | O71: 966 | P71: 1035 | Q71: 1104 | R71: 1173 | S71: 1242 | T71: 1311 | U71: 1380 | V71: 1449 | W71: 1518 | X71: 1587 | Y71: 1656 | Z71: 1725 | AA71: 1794 | AB71: 1863 | AC71: 1932 | AD71: 2001 | AE71: 2070 | AF71: 2139 | AG71: 2208 | AH71: 2277 | AI71: 2346 | AJ71: 2415 | AK71: 2484 | AL71: 2553 | AM71: 2622 | AN71: 2691 | AO71: 2760 | AP71: 2829 | AQ71: 2898 | AR71: 2967 | AS71: 3036 | AT71: 3105 | AU71: 3174 | AV71: 3243 | AW71: 3312 | AX71: 3381 | AY71: 3450 | AZ71: 3519 | BA71: 3588 | BB71: 3657 | BC71: 3726 | BD71: 3795 | BE71: 3864 | BF71: 3933 | BG71: 4002 | BH71: 4071 | BI71: 4140 | BJ71: 4209 | BK71: 4278 | BL71: 4347 | BM71: 4416 | BN71: 4485 | BO71: 4554 | BP71: 4623 | BQ71: 4692 | BR71: 4761 | BS71: 4830 | BT71: 4899 | BU71: 4968 | BV71: 5037 | BW71: 5106 | BX71: 5175 | BY71: 5244 | BZ71: 5313 | CA71: 5382 | CB71: 5451 | CC71: 5520 | CD71: 5589 | CE71: 5658 | CF71: 5727 | CG71: 5796 | CH71: 5865 | CI71: 5934 | CJ71: 6003 | CK71: 6072 | CL71: 6141 | CM71: 6210 | CN71: 6279 | CO71: 6348 | CP71: 6417 | CQ71: 6486 | CR71: 6555 | CS71: 6624 | CT71: 6693 | CU71: 6762 | CV71: 6831 | CW71: 6900
A72: 70 | B72: 70 | C72: 140 | D72: 210 | E72: 280 | F72: 350 | G72: 420 | H72: 490 | I72: 560 | J72: 630 | K72: 700 | L72: 770 | M72: 840 | N72: 910 | O72: 980 | P72: 1050 | Q72: 1120 | R72: 1190 | S72: 1260 | T72: 1330 | U72: 1400 | V72: 1470 | W72: 1540 | X72: 1610 | Y72: 1680 | Z72: 1750 | AA72: 1820 | AB72: 1890 | AC72: 1960 | AD72: 2030 | AE72: 2100 | AF72: 2170 | AG72: 2240 | AH72: 2310 | AI72: 2380 | AJ72: 2450 | AK72: 2520 | AL72: 2590 | AM72: 2660 | AN72: 2730 | AO72: 2800 | AP72: 2870 | AQ72: 2940 | AR72: 3010 | AS72: 3080 | AT72: 3150 | AU72: 3220 | AV72: 3290 | AW72: 3360 | AX72: 3430 | AY72: 3500 | AZ72: 3570 | BA72: 3640 | BB72: 3710 | BC72: 3780 | BD72: 3850 | BE72: 3920 | BF72: 3990 | BG72: 4060 | BH72: 4130 | BI72: 4200 | BJ72: 4270 | BK72: 4340 | BL72: 4410 | BM72: 4480 | BN72: 4550 | BO72: 4620 | BP72: 4690 | BQ72: 4760 | BR72: 4830 | BS72: 4900 | BT72: 4970 | BU72: 5040 | BV72: 5110 | BW72: 5180 | BX72: 5250 | BY72: 5320 | BZ72: 5390 | CA72: 5460 | CB72: 5530 | CC72: 5600 | CD72: 5670 | CE72: 5740 | CF72: 5810 | CG72: 5880 | CH72: 5950 | CI72: 6020 | CJ72: 6090 | CK72: 6160 | CL72: 6230 | CM72: 6300 | CN72: 6370 | CO72: 6440 | CP72: 6510 | CQ72: 6580 | CR72: 6650 | CS72: 6720 | CT72: 6790 | CU72: 6860 | CV72: 6930 | CW72: 7000
A73: 71 | B73: =$A73*B$2 -> 71 | C73: 142 | D73: 213 | E73: 284 | F73: 355 | G73: 426 | H73: 497 | I73: 568 | J73: 639 | K73: 710 | L73: =$A73*L$2 -> 781 | M73: 852 | N73: 923 | O73: 994 | P73: 1065 | Q73: 1136 | R73: 1207 | S73: 1278 | T73: 1349 | U73: 1420 | V73: =$A73*V$2 -> 1491 | W73: 1562 | X73: 1633 | Y73: 1704 | Z73: 1775 | AA73: 1846 | AB73: 1917 | AC73: 1988 | AD73: 2059 | AE73: 2130 | AF73: =$A73*AF$2 -> 2201 | AG73: 2272 | AH73: 2343 | AI73: 2414 | AJ73: 2485 | AK73: 2556 | AL73: 2627 | AM73: 2698 | AN73: 2769 | AO73: 2840 | AP73: =$A73*AP$2 -> 2911 | AQ73: 2982 | AR73: 3053 | AS73: 3124 | AT73: 3195 | AU73: 3266 | AV73: 3337 | AW73: 3408 | AX73: 3479 | AY73: 3550 | AZ73: =$A73*AZ$2 -> 3621 | BA73: 3692 | BB73: 3763 | BC73: 3834 | BD73: 3905 | BE73: 3976 | BF73: 4047 | BG73: 4118 | BH73: 4189 | BI73: 4260 | BJ73: =$A73*BJ$2 -> 4331 | BK73: 4402 | BL73: 4473 | BM73: 4544 | BN73: 4615 | BO73: 4686 | BP73: 4757 | BQ73: 4828 | BR73: 4899 | BS73: 4970 | BT73: =$A73*BT$2 -> 5041 | BU73: 5112 | BV73: 5183 | BW73: 5254 | BX73: 5325 | BY73: 5396 | BZ73: 5467 | CA73: 5538 | CB73: 5609 | CC73: 5680 | CD73: =$A73*CD$2 -> 5751 | CE73: 5822 | CF73: 5893 | CG73: 5964 | CH73: 6035 | CI73: 6106 | CJ73: 6177 | CK73: 6248 | CL73: 6319 | CM73: 6390 | CN73: =$A73*CN$2 -> 6461 | CO73: 6532 | CP73: 6603 | CQ73: 6674 | CR73: 6745 | CS73: 6816 | CT73: 6887 | CU73: 6958 | CV73: 7029 | CW73: 7100
A74: 72 | B74: 72 | C74: 144 | D74: 216 | E74: 288 | F74: 360 | G74: 432 | H74: 504 | I74: 576 | J74: 648 | K74: 720 | L74: 792 | M74: 864 | N74: 936 | O74: 1008 | P74: 1080 | Q74: 1152 | R74: 1224 | S74: 1296 | T74: 1368 | U74: 1440 | V74: 1512 | W74: 1584 | X74: 1656 | Y74: 1728 | Z74: 1800 | AA74: 1872 | AB74: 1944 | AC74: 2016 | AD74: 2088 | AE74: 2160 | AF74: 2232 | AG74: 2304 | AH74: 2376 | AI74: 2448 | AJ74: 2520 | AK74: 2592 | AL74: 2664 | AM74: 2736 | AN74: 2808 | AO74: 2880 | AP74: 2952 | AQ74: 3024 | AR74: 3096 | AS74: 3168 | AT74: 3240 | AU74: 3312 | AV74: 3384 | AW74: 3456 | AX74: 3528 | AY74: 3600 | AZ74: 3672 | BA74: 3744 | BB74: 3816 | BC74: 3888 | BD74: 3960 | BE74: 4032 | BF74: 4104 | BG74: 4176 | BH74: 4248 | BI74: 4320 | BJ74: 4392 | BK74: 4464 | BL74: 4536 | BM74: 4608 | BN74: 4680 | BO74: 4752 | BP74: 4824 | BQ74: 4896 | BR74: 4968 | BS74: 5040 | BT74: 5112 | BU74: 5184 | BV74: 5256 | BW74: 5328 | BX74: 5400 | BY74: 5472 | BZ74: 5544 | CA74: 5616 | CB74: 5688 | CC74: 5760 | CD74: 5832 | CE74: 5904 | CF74: 5976 | CG74: 6048 | CH74: 6120 | CI74: 6192 | CJ74: 6264 | CK74: 6336 | CL74: 6408 | CM74: 6480 | CN74: 6552 | CO74: 6624 | CP74: 6696 | CQ74: 6768 | CR74: 6840 | CS74: 6912 | CT74: 6984 | CU74: 7056 | CV74: 7128 | CW74: 7200
A75: 73 | B75: 73 | C75: 146 | D75: 219 | E75: 292 | F75: 365 | G75: 438 | H75: 511 | I75: 584 | J75: 657 | K75: 730 | L75: 803 | M75: 876 | N75: 949 | O75: 1022 | P75: 1095 | Q75: 1168 | R75: 1241 | S75: 1314 | T75: 1387 | U75: 1460 | V75: 1533 | W75: 1606 | X75: 1679 | Y75: 1752 | Z75: 1825 | AA75: 1898 | AB75: 1971 | AC75: 2044 | AD75: 2117 | AE75: 2190 | AF75: 2263 | AG75: 2336 | AH75: 2409 | AI75: 2482 | AJ75: 2555 | AK75: 2628 | AL75: 2701 | AM75: 2774 | AN75: 2847 | AO75: 2920 | AP75: 2993 | AQ75: 3066 | AR75: 3139 | AS75: 3212 | AT75: 3285 | AU75: 3358 | AV75: 3431 | AW75: 3504 | AX75: 3577 | AY75: 3650 | AZ75: 3723 | BA75: 3796 | BB75: 3869 | BC75: 3942 | BD75: 4015 | BE75: 4088 | BF75: 4161 | BG75: 4234 | BH75: 4307 | BI75: 4380 | BJ75: 4453 | BK75: 4526 | BL75: 4599 | BM75: 4672 | BN75: 4745 | BO75: 4818 | BP75: 4891 | BQ75: 4964 | BR75: 5037 | BS75: 5110 | BT75: 5183 | BU75: 5256 | BV75: 5329 | BW75: 5402 | BX75: 5475 | BY75: 5548 | BZ75: 5621 | CA75: 5694 | CB75: 5767 | CC75: 5840 | CD75: 5913 | CE75: 5986 | CF75: 6059 | CG75: 6132 | CH75: 6205 | CI75: 6278 | CJ75: 6351 | CK75: 6424 | CL75: 6497 | CM75: 6570 | CN75: 6643 | CO75: 6716 | CP75: 6789 | CQ75: 6862 | CR75: 6935 | CS75: 7008 | CT75: 7081 | CU75: 7154 | CV75: 7227 | CW75: 7300
A76: 74 | B76: 74 | C76: 148 | D76: 222 | E76: 296 | F76: 370 | G76: 444 | H76: 518 | I76: 592 | J76: 666 | K76: 740 | L76: 814 | M76: 888 | N76: 962 | O76: 1036 | P76: 1110 | Q76: 1184 | R76: 1258 | S76: 1332 | T76: 1406 | U76: 1480 | V76: 1554 | W76: 1628 | X76: 1702 | Y76: 1776 | Z76: 1850 | AA76: 1924 | AB76: 1998 | AC76: 2072 | AD76: 2146 | AE76: 2220 | AF76: 2294 | AG76: 2368 | AH76: 2442 | AI76: 2516 | AJ76: 2590 | AK76: 2664 | AL76: 2738 | AM76: 2812 | AN76: 2886 | AO76: 2960 | AP76: 3034 | AQ76: 3108 | AR76: 3182 | AS76: 3256 | AT76: 3330 | AU76: 3404 | AV76: 3478 | AW76: 3552 | AX76: 3626 | AY76: 3700 | AZ76: 3774 | BA76: 3848 | BB76: 3922 | BC76: 3996 | BD76: 4070 | BE76: 4144 | BF76: 4218 | BG76: 4292 | BH76: 4366 | BI76: 4440 | BJ76: 4514 | BK76: 4588 | BL76: 4662 | BM76: 4736 | BN76: 4810 | BO76: 4884 | BP76: 4958 | BQ76: 5032 | BR76: 5106 | BS76: 5180 | BT76: 5254 | BU76: 5328 | BV76: 5402 | BW76: 5476 | BX76: 5550 | BY76: 5624 | BZ76: 5698 | CA76: 5772 | CB76: 5846 | CC76: 5920 | CD76: 5994 | CE76: 6068 | CF76: 6142 | CG76: 6216 | CH76: 6290 | CI76: 6364 | CJ76: 6438 | CK76: 6512 | CL76: 6586 | CM76: 6660 | CN76: 6734 | CO76: 6808 | CP76: 6882 | CQ76: 6956 | CR76: 7030 | CS76: 7104 | CT76: 7178 | CU76: 7252 | CV76: 7326 | CW76: 7400
A77: 75 | B77: 75 | C77: 150 | D77: 225 | E77: 300 | F77: 375 | G77: 450 | H77: 525 | I77: 600 | J77: 675 | K77: 750 | L77: 825 | M77: 900 | N77: 975 | O77: 1050 | P77: 1125 | Q77: 1200 | R77: 1275 | S77: 1350 | T77: 1425 | U77: 1500 | V77: 1575 | W77: 1650 | X77: 1725 | Y77: 1800 | Z77: 1875 | AA77: 1950 | AB77: 2025 | AC77: 2100 | AD77: 2175 | AE77: 2250 | AF77: 2325 | AG77: 2400 | AH77: 2475 | AI77: 2550 | AJ77: 2625 | AK77: 2700 | AL77: 2775 | AM77: 2850 | AN77: 2925 | AO77: 3000 | AP77: 3075 | AQ77: 3150 | AR77: 3225 | AS77: 3300 | AT77: 3375 | AU77: 3450 | AV77: 3525 | AW77: 3600 | AX77: 3675 | AY77: 3750 | AZ77: 3825 | BA77: 3900 | BB77: 3975 | BC77: 4050 | BD77: 4125 | BE77: 4200 | BF77: 4275 | BG77: 4350 | BH77: 4425 | BI77: 4500 | BJ77: 4575 | BK77: 4650 | BL77: 4725 | BM77: 4800 | BN77: 4875 | BO77: 4950 | BP77: 5025 | BQ77: 5100 | BR77: 5175 | BS77: 5250 | BT77: 5325 | BU77: 5400 | BV77: 5475 | BW77: 5550 | BX77: 5625 | BY77: 5700 | BZ77: 5775 | CA77: 5850 | CB77: 5925 | CC77: 6000 | CD77: 6075 | CE77: 6150 | CF77: 6225 | CG77: 6300 | CH77: 6375 | CI77: 6450 | CJ77: 6525 | CK77: 6600 | CL77: 6675 | CM77: 6750 | CN77: 6825 | CO77: 6900 | CP77: 6975 | CQ77: 7050 | CR77: 7125 | CS77: 7200 | CT77: 7275 | CU77: 7350 | CV77: 7425 | CW77: 7500
A78: 76 | B78: 76 | C78: 152 | D78: 228 | E78: 304 | F78: 380 | G78: 456 | H78: 532 | I78: 608 | J78: 684 | K78: 760 | L78: 836 | M78: 912 | N78: 988 | O78: 1064 | P78: 1140 | Q78: 1216 | R78: 1292 | S78: 1368 | T78: 1444 | U78: 1520 | V78: 1596 | W78: 1672 | X78: 1748 | Y78: 1824 | Z78: 1900 | AA78: 1976 | AB78: 2052 | AC78: 2128 | AD78: 2204 | AE78: 2280 | AF78: 2356 | AG78: 2432 | AH78: 2508 | AI78: 2584 | AJ78: 2660 | AK78: 2736 | AL78: 2812 | AM78: 2888 | AN78: 2964 | AO78: 3040 | AP78: 3116 | AQ78: 3192 | AR78: 3268 | AS78: 3344 | AT78: 3420 | AU78: 3496 | AV78: 3572 | AW78: 3648 | AX78: 3724 | AY78: 3800 | AZ78: 3876 | BA78: 3952 | BB78: 4028 | BC78: 4104 | BD78: 4180 | BE78: 4256 | BF78: 4332 | BG78: 4408 | BH78: 4484 | BI78: 4560 | BJ78: 4636 | BK78: 4712 | BL78: 4788 | BM78: 4864 | BN78: 4940 | BO78: 5016 | BP78: 5092 | BQ78: 5168 | BR78: 5244 | BS78: 5320 | BT78: 5396 | BU78: 5472 | BV78: 5548 | BW78: 5624 | BX78: 5700 | BY78: 5776 | BZ78: 5852 | CA78: 5928 | CB78: 6004 | CC78: 6080 | CD78: 6156 | CE78: 6232 | CF78: 6308 | CG78: 6384 | CH78: 6460 | CI78: 6536 | CJ78: 6612 | CK78: 6688 | CL78: 6764 | CM78: 6840 | CN78: 6916 | CO78: 6992 | CP78: 7068 | CQ78: 7144 | CR78: 7220 | CS78: 7296 | CT78: 7372 | CU78: 7448 | CV78: 7524 | CW78: 7600
A79: 77 | B79: 77 | C79: 154 | D79: 231 | E79: 308 | F79: 385 | G79: 462 | H79: 539 | I79: 616 | J79: 693 | K79: 770 | L79: 847 | M79: 924 | N79: 1001 | O79: 1078 | P79: 1155 | Q79: 1232 | R79: 1309 | S79: 1386 | T79: 1463 | U79: 1540 | V79: 1617 | W79: 1694 | X79: 1771 | Y79: 1848 | Z79: 1925 | AA79: 2002 | AB79: 2079 | AC79: 2156 | AD79: 2233 | AE79: 2310 | AF79: 2387 | AG79: 2464 | AH79: 2541 | AI79: 2618 | AJ79: 2695 | AK79: 2772 | AL79: 2849 | AM79: 2926 | AN79: 3003 | AO79: 3080 | AP79: 3157 | AQ79: 3234 | AR79: 3311 | AS79: 3388 | AT79: 3465 | AU79: 3542 | AV79: 3619 | AW79: 3696 | AX79: 3773 | AY79: 3850 | AZ79: 3927 | BA79: 4004 | BB79: 4081 | BC79: 4158 | BD79: 4235 | BE79: 4312 | BF79: 4389 | BG79: 4466 | BH79: 4543 | BI79: 4620 | BJ79: 4697 | BK79: 4774 | BL79: 4851 | BM79: 4928 | BN79: 5005 | BO79: 5082 | BP79: 5159 | BQ79: 5236 | BR79: 5313 | BS79: 5390 | BT79: 5467 | BU79: 5544 | BV79: 5621 | BW79: 5698 | BX79: 5775 | BY79: 5852 | BZ79: 5929 | CA79: 6006 | CB79: 6083 | CC79: 6160 | CD79: 6237 | CE79: 6314 | CF79: 6391 | CG79: 6468 | CH79: 6545 | CI79: 6622 | CJ79: 6699 | CK79: 6776 | CL79: 6853 | CM79: 6930 | CN79: 7007 | CO79: 7084 | CP79: 7161 | CQ79: 7238 | CR79: 7315 | CS79: 7392 | CT79: 7469 | CU79: 7546 | CV79: 7623 | CW79: 7700
A80: 78 | B80: 78 | C80: 156 | D80: 234 | E80: 312 | F80: 390 | G80: 468 | H80: 546 | I80: 624 | J80: 702 | K80: 780 | L80: 858 | M80: 936 | N80: 1014 | O80: 1092 | P80: 1170 | Q80: 1248 | R80: 1326 | S80: 1404 | T80: 1482 | U80: 1560 | V80: 1638 | W80: 1716 | X80: 1794 | Y80: 1872 | Z80: 1950 | AA80: 2028 | AB80: 2106 | AC80: 2184 | AD80: 2262 | AE80: 2340 | AF80: 2418 | AG80: 2496 | AH80: 2574 | AI80: 2652 | AJ80: 2730 | AK80: 2808 | AL80: 2886 | AM80: 2964 | AN80: 3042 | AO80: 3120 | AP80: 3198 | AQ80: 3276 | AR80: 3354 | AS80: 3432 | AT80: 3510 | AU80: 3588 | AV80: 3666 | AW80: 3744 | AX80: 3822 | AY80: 3900 | AZ80: 3978 | BA80: 4056 | BB80: 4134 | BC80: 4212 | BD80: 4290 | BE80: 4368 | BF80: 4446 | BG80: 4524 | BH80: 4602 | BI80: 4680 | BJ80: 4758 | BK80: 4836 | BL80: 4914 | BM80: 4992 | BN80: 5070 | BO80: 5148 | BP80: 5226 | BQ80: 5304 | BR80: 5382 | BS80: 5460 | BT80: 5538 | BU80: 5616 | BV80: 5694 | BW80: 5772 | BX80: 5850 | BY80: 5928 | BZ80: 6006 | CA80: 6084 | CB80: 6162 | CC80: 6240 | CD80: 6318 | CE80: 6396 | CF80: 6474 | CG80: 6552 | CH80: 6630 | CI80: 6708 | CJ80: 6786 | CK80: 6864 | CL80: 6942 | CM80: 7020 | CN80: 7098 | CO80: 7176 | CP80: 7254 | CQ80: 7332 | CR80: 7410 | CS80: 7488 | CT80: 7566 | CU80: 7644 | CV80: 7722 | CW80: 7800
A81: 79 | B81: 79 | C81: 158 | D81: 237 | E81: 316 | F81: 395 | G81: 474 | H81: 553 | I81: 632 | J81: 711 | K81: 790 | L81: 869 | M81: 948 | N81: 1027 | O81: 1106 | P81: 1185 | Q81: 1264 | R81: 1343 | S81: 1422 | T81: 1501 | U81: 1580 | V81: 1659 | W81: 1738 | X81: 1817 | Y81: 1896 | Z81: 1975 | AA81: 2054 | AB81: 2133 | AC81: 2212 | AD81: 2291 | AE81: 2370 | AF81: 2449 | AG81: 2528 | AH81: 2607 | AI81: 2686 | AJ81: 2765 | AK81: 2844 | AL81: 2923 | AM81: 3002 | AN81: 3081 | AO81: 3160 | AP81: 3239 | AQ81: 3318 | AR81: 3397 | AS81: 3476 | AT81: 3555 | AU81: 3634 | AV81: 3713 | AW81: 3792 | AX81: 3871 | AY81: 3950 | AZ81: 4029 | BA81: 4108 | BB81: 4187 | BC81: 4266 | BD81: 4345 | BE81: 4424 | BF81: 4503 | BG81: 4582 | BH81: 4661 | BI81: 4740 | BJ81: 4819 | BK81: 4898 | BL81: 4977 | BM81: 5056 | BN81: 5135 | BO81: 5214 | BP81: 5293 | BQ81: 5372 | BR81: 5451 | BS81: 5530 | BT81: 5609 | BU81: 5688 | BV81: 5767 | BW81: 5846 | BX81: 5925 | BY81: 6004 | BZ81: 6083 | CA81: 6162 | CB81: 6241 | CC81: 6320 | CD81: 6399 | CE81: 6478 | CF81: 6557 | CG81: 6636 | CH81: 6715 | CI81: 6794 | CJ81: 6873 | CK81: 6952 | CL81: 7031 | CM81: 7110 | CN81: 7189 | CO81: 7268 | CP81: 7347 | CQ81: 7426 | CR81: 7505 | CS81: 7584 | CT81: 7663 | CU81: 7742 | CV81: 7821 | CW81: 7900
A82: 80 | B82: 80 | C82: 160 | D82: 240 | E82: 320 | F82: 400 | G82: 480 | H82: 560 | I82: 640 | J82: 720 | K82: 800 | L82: 880 | M82: 960 | N82: 1040 | O82: 1120 | P82: 1200 | Q82: 1280 | R82: 1360 | S82: 1440 | T82: 1520 | U82: 1600 | V82: 1680 | W82: 1760 | X82: 1840 | Y82: 1920 | Z82: 2000 | AA82: 2080 | AB82: 2160 | AC82: 2240 | AD82: 2320 | AE82: 2400 | AF82: 2480 | AG82: 2560 | AH82: 2640 | AI82: 2720 | AJ82: 2800 | AK82: 2880 | AL82: 2960 | AM82: 3040 | AN82: 3120 | AO82: 3200 | AP82: 3280 | AQ82: 3360 | AR82: 3440 | AS82: 3520 | AT82: 3600 | AU82: 3680 | AV82: 3760 | AW82: 3840 | AX82: 3920 | AY82: 4000 | AZ82: 4080 | BA82: 4160 | BB82: 4240 | BC82: 4320 | BD82: 4400 | BE82: 4480 | BF82: 4560 | BG82: 4640 | BH82: 4720 | BI82: 4800 | BJ82: 4880 | BK82: 4960 | BL82: 5040 | BM82: 5120 | BN82: 5200 | BO82: 5280 | BP82: 5360 | BQ82: 5440 | BR82: 5520 | BS82: 5600 | BT82: 5680 | BU82: 5760 | BV82: 5840 | BW82: 5920 | BX82: 6000 | BY82: 6080 | BZ82: 6160 | CA82: 6240 | CB82: 6320 | CC82: 6400 | CD82: 6480 | CE82: 6560 | CF82: 6640 | CG82: 6720 | CH82: 6800 | CI82: 6880 | CJ82: 6960 | CK82: 7040 | CL82: 7120 | CM82: 7200 | CN82: 7280 | CO82: 7360 | CP82: 7440 | CQ82: 7520 | CR82: 7600 | CS82: 7680 | CT82: 7760 | CU82: 7840 | CV82: 7920 | CW82: 8000
A83: 81 | B83: =$A83*B$2 -> 81 | C83: 162 | D83: 243 | E83: 324 | F83: 405 | G83: 486 | H83: 567 | I83: 648 | J83: 729 | K83: 810 | L83: =$A83*L$2 -> 891 | M83: 972 | N83: 1053 | O83: 1134 | P83: 1215 | Q83: 1296 | R83: 1377 | S83: 1458 | T83: 1539 | U83: 1620 | V83: =$A83*V$2 -> 1701 | W83: 1782 | X83: 1863 | Y83: 1944 | Z83: 2025 | AA83: 2106 | AB83: 2187 | AC83: 2268 | AD83: 2349 | AE83: 2430 | AF83: =$A83*AF$2 -> 2511 | AG83: 2592 | AH83: 2673 | AI83: 2754 | AJ83: 2835 | AK83: 2916 | AL83: 2997 | AM83: 3078 | AN83: 3159 | AO83: 3240 | AP83: =$A83*AP$2 -> 3321 | AQ83: 3402 | AR83: 3483 | AS83: 3564 | AT83: 3645 | AU83: 3726 | AV83: 3807 | AW83: 3888 | AX83: 3969 | AY83: 4050 | AZ83: =$A83*AZ$2 -> 4131 | BA83: 4212 | BB83: 4293 | BC83: 4374 | BD83: 4455 | BE83: 4536 | BF83: 4617 | BG83: 4698 | BH83: 4779 | BI83: 4860 | BJ83: =$A83*BJ$2 -> 4941 | BK83: 5022 | BL83: 5103 | BM83: 5184 | BN83: 5265 | BO83: 5346 | BP83: 5427 | BQ83: 5508 | BR83: 5589 | BS83: 5670 | BT83: =$A83*BT$2 -> 5751 | BU83: 5832 | BV83: 5913 | BW83: 5994 | BX83: 6075 | BY83: 6156 | BZ83: 6237 | CA83: 6318 | CB83: 6399 | CC83: 6480 | CD83: =$A83*CD$2 -> 6561 | CE83: 6642 | CF83: 6723 | CG83: 6804 | CH83: 6885 | CI83: 6966 | CJ83: 7047 | CK83: 7128 | CL83: 7209 | CM83: 7290 | CN83: =$A83*CN$2 -> 7371 | CO83: 7452 | CP83: 7533 | CQ83: 7614 | CR83: 7695 | CS83: 7776 | CT83: 7857 | CU83: 7938 | CV83: 8019 | CW83: 8100
A84: 82 | B84: 82 | C84: 164 | D84: 246 | E84: 328 | F84: 410 | G84: 492 | H84: 574 | I84: 656 | J84: 738 | K84: 820 | L84: 902 | M84: 984 | N84: 1066 | O84: 1148 | P84: 1230 | Q84: 1312 | R84: 1394 | S84: 1476 | T84: 1558 | U84: 1640 | V84: 1722 | W84: 1804 | X84: 1886 | Y84: 1968 | Z84: 2050 | AA84: 2132 | AB84: 2214 | AC84: 2296 | AD84: 2378 | AE84: 2460 | AF84: 2542 | AG84: 2624 | AH84: 2706 | AI84: 2788 | AJ84: 2870 | AK84: 2952 | AL84: 3034 | AM84: 3116 | AN84: 3198 | AO84: 3280 | AP84: 3362 | AQ84: 3444 | AR84: 3526 | AS84: 3608 | AT84: 3690 | AU84: 3772 | AV84: 3854 | AW84: 3936 | AX84: 4018 | AY84: 4100 | AZ84: 4182 | BA84: 4264 | BB84: 4346 | BC84: 4428 | BD84: 4510 | BE84: 4592 | BF84: 4674 | BG84: 4756 | BH84: 4838 | BI84: 4920 | BJ84: 5002 | BK84: 5084 | BL84: 5166 | BM84: 5248 | BN84: 5330 | BO84: 5412 | BP84: 5494 | BQ84: 5576 | BR84: 5658 | BS84: 5740 | BT84: 5822 | BU84: 5904 | BV84: 5986 | BW84: 6068 | BX84: 6150 | BY84: 6232 | BZ84: 6314 | CA84: 6396 | CB84: 6478 | CC84: 6560 | CD84: 6642 | CE84: 6724 | CF84: 6806 | CG84: 6888 | CH84: 6970 | CI84: 7052 | CJ84: 7134 | CK84: 7216 | CL84: 7298 | CM84: 7380 | CN84: 7462 | CO84: 7544 | CP84: 7626 | CQ84: 7708 | CR84: 7790 | CS84: 7872 | CT84: 7954 | CU84: 8036 | CV84: 8118 | CW84: 8200
A85: 83 | B85: 83 | C85: 166 | D85: 249 | E85: 332 | F85: 415 | G85: 498 | H85: 581 | I85: 664 | J85: 747 | K85: 830 | L85: 913 | M85: 996 | N85: 1079 | O85: 1162 | P85: 1245 | Q85: 1328 | R85: 1411 | S85: 1494 | T85: 1577 | U85: 1660 | V85: 1743 | W85: 1826 | X85: 1909 | Y85: 1992 | Z85: 2075 | AA85: 2158 | AB85: 2241 | AC85: 2324 | AD85: 2407 | AE85: 2490 | AF85: 2573 | AG85: 2656 | AH85: 2739 | AI85: 2822 | AJ85: 2905 | AK85: 2988 | AL85: 3071 | AM85: 3154 | AN85: 3237 | AO85: 3320 | AP85: 3403 | AQ85: 3486 | AR85: 3569 | AS85: 3652 | AT85: 3735 | AU85: 3818 | AV85: 3901 | AW85: 3984 | AX85: 4067 | AY85: 4150 | AZ85: 4233 | BA85: 4316 | BB85: 4399 | BC85: 4482 | BD85: 4565 | BE85: 4648 | BF85: 4731 | BG85: 4814 | BH85: 4897 | BI85: 4980 | BJ85: 5063 | BK85: 5146 | BL85: 5229 | BM85: 5312 | BN85: 5395 | BO85: 5478 | BP85: 5561 | BQ85: 5644 | BR85: 5727 | BS85: 5810 | BT85: 5893 | BU85: 5976 | BV85: 6059 | BW85: 6142 | BX85: 6225 | BY85: 6308 | BZ85: 6391 | CA85: 6474 | CB85: 6557 | CC85: 6640 | CD85: 6723 | CE85: 6806 | CF85: 6889 | CG85: 6972 | CH85: 7055 | CI85: 7138 | CJ85: 7221 | CK85: 7304 | CL85: 7387 | CM85: 7470 | CN85: 7553 | CO85: 7636 | CP85: 7719 | CQ85: 7802 | CR85: 7885 | CS85: 7968 | CT85: 8051 | CU85: 8134 | CV85: 8217 | CW85: 8300
A86: 84 | B86: 84 | C86: 168 | D86: 252 | E86: 336 | F86: 420 | G86: 504 | H86: 588 | I86: 672 | J86: 756 | K86: 840 | L86: 924 | M86: 1008 | N86: 1092 | O86: 1176 | P86: 1260 | Q86: 1344 | R86: 1428 | S86: 1512 | T86: 1596 | U86: 1680 | V86: 1764 | W86: 1848 | X86: 1932 | Y86: 2016 | Z86: 2100 | AA86: 2184 | AB86: 2268 | AC86: 2352 | AD86: 2436 | AE86: 2520 | AF86: 2604 | AG86: 2688 | AH86: 2772 | AI86: 2856 | AJ86: 2940 | AK86: 3024 | AL86: 3108 | AM86: 3192 | AN86: 3276 | AO86: 3360 | AP86: 3444 | AQ86: 3528 | AR86: 3612 | AS86: 3696 | AT86: 3780 | AU86: 3864 | AV86: 3948 | AW86: 4032 | AX86: 4116 | AY86: 4200 | AZ86: 4284 | BA86: 4368 | BB86: 4452 | BC86: 4536 | BD86: 4620 | BE86: 4704 | BF86: 4788 | BG86: 4872 | BH86: 4956 | BI86: 5040 | BJ86: 5124 | BK86: 5208 | BL86: 5292 | BM86: 5376 | BN86: 5460 | BO86: 5544 | BP86: 5628 | BQ86: 5712 | BR86: 5796 | BS86: 5880 | BT86: 5964 | BU86: 6048 | BV86: 6132 | BW86: 6216 | BX86: 6300 | BY86: 6384 | BZ86: 6468 | CA86: 6552 | CB86: 6636 | CC86: 6720 | CD86: 6804 | CE86: 6888 | CF86: 6972 | CG86: 7056 | CH86: 7140 | CI86: 7224 | CJ86: 7308 | CK86: 7392 | CL86: 7476 | CM86: 7560 | CN86: 7644 | CO86: 7728 | CP86: 7812 | CQ86: 7896 | CR86: 7980 | CS86: 8064 | CT86: 8148 | CU86: 8232 | CV86: 8316 | CW86: 8400
A87: 85 | B87: 85 | C87: 170 | D87: 255 | E87: 340 | F87: 425 | G87: 510 | H87: 595 | I87: 680 | J87: 765 | K87: 850 | L87: 935 | M87: 1020 | N87: 1105 | O87: 1190 | P87: 1275 | Q87: 1360 | R87: 1445 | S87: 1530 | T87: 1615 | U87: 1700 | V87: 1785 | W87: 1870 | X87: 1955 | Y87: 2040 | Z87: 2125 | AA87: 2210 | AB87: 2295 | AC87: 2380 | AD87: 2465 | AE87: 2550 | AF87: 2635 | AG87: 2720 | AH87: 2805 | AI87: 2890 | AJ87: 2975 | AK87: 3060 | AL87: 3145 | AM87: 3230 | AN87: 3315 | AO87: 3400 | AP87: 3485 | AQ87: 3570 | AR87: 3655 | AS87: 3740 | AT87: 3825 | AU87: 3910 | AV87: 3995 | AW87: 4080 | AX87: 4165 | AY87: 4250 | AZ87: 4335 | BA87: 4420 | BB87: 4505 | BC87: 4590 | BD87: 4675 | BE87: 4760 | BF87: 4845 | BG87: 4930 | BH87: 5015 | BI87: 5100 | BJ87: 5185 | BK87: 5270 | BL87: 5355 | BM87: 5440 | BN87: 5525 | BO87: 5610 | BP87: 5695 | BQ87: 5780 | BR87: 5865 | BS87: 5950 | BT87: 6035 | BU87: 6120 | BV87: 6205 | BW87: 6290 | BX87: 6375 | BY87: 6460 | BZ87: 6545 | CA87: 6630 | CB87: 6715 | CC87: 6800 | CD87: 6885 | CE87: 6970 | CF87: 7055 | CG87: 7140 | CH87: 7225 | CI87: 7310 | CJ87: 7395 | CK87: 7480 | CL87: 7565 | CM87: 7650 | CN87: 7735 | CO87: 7820 | CP87: 7905 | CQ87: 7990 | CR87: 8075 | CS87: 8160 | CT87: 8245 | CU87: 8330 | CV87: 8415 | CW87: 8500
A88: 86 | B88: 86 | C88: 172 | D88: 258 | E88: 344 | F88: 430 | G88: 516 | H88: 602 | I88: 688 | J88: 774 | K88: 860 | L88: 946 | M88: 1032 | N88: 1118 | O88: 1204 | P88: 1290 | Q88: 1376 | R88: 1462 | S88: 1548 | T88: 1634 | U88: 1720 | V88: 1806 | W88: 1892 | X88: 1978 | Y88: 2064 | Z88: 2150 | AA88: 2236 | AB88: 2322 | AC88: 2408 | AD88: 2494 | AE88: 2580 | AF88: 2666 | AG88: 2752 | AH88: 2838 | AI88: 2924 | AJ88: 3010 | AK88: 3096 | AL88: 3182 | AM88: 3268 | AN88: 3354 | AO88: 3440 | AP88: 3526 | AQ88: 3612 | AR88: 3698 | AS88: 3784 | AT88: 3870 | AU88: 3956 | AV88: 4042 | AW88: 4128 | AX88: 4214 | AY88: 4300 | AZ88: 4386 | BA88: 4472 | BB88: 4558 | BC88: 4644 | BD88: 4730 | BE88: 4816 | BF88: 4902 | BG88: 4988 | BH88: 5074 | BI88: 5160 | BJ88: 5246 | BK88: 5332 | BL88: 5418 | BM88: 5504 | BN88: 5590 | BO88: 5676 | BP88: 5762 | BQ88: 5848 | BR88: 5934 | BS88: 6020 | BT88: 6106 | BU88: 6192 | BV88: 6278 | BW88: 6364 | BX88: 6450 | BY88: 6536 | BZ88: 6622 | CA88: 6708 | CB88: 6794 | CC88: 6880 | CD88: 6966 | CE88: 7052 | CF88: 7138 | CG88: 7224 | CH88: 7310 | CI88: 7396 | CJ88: 7482 | CK88: 7568 | CL88: 7654 | CM88: 7740 | CN88: 7826 | CO88: 7912 | CP88: 7998 | CQ88: 8084 | CR88: 8170 | CS88: 8256 | CT88: 8342 | CU88: 8428 | CV88: 8514 | CW88: 8600
A89: 87 | B89: 87 | C89: 174 | D89: 261 | E89: 348 | F89: 435 | G89: 522 | H89: 609 | I89: 696 | J89: 783 | K89: 870 | L89: 957 | M89: 1044 | N89: 1131 | O89: 1218 | P89: 1305 | Q89: 1392 | R89: 1479 | S89: 1566 | T89: 1653 | U89: 1740 | V89: 1827 | W89: 1914 | X89: 2001 | Y89: 2088 | Z89: 2175 | AA89: 2262 | AB89: 2349 | AC89: 2436 | AD89: 2523 | AE89: 2610 | AF89: 2697 | AG89: 2784 | AH89: 2871 | AI89: 2958 | AJ89: 3045 | AK89: 3132 | AL89: 3219 | AM89: 3306 | AN89: 3393 | AO89: 3480 | AP89: 3567 | AQ89: 3654 | AR89: 3741 | AS89: 3828 | AT89: 3915 | AU89: 4002 | AV89: 4089 | AW89: 4176 | AX89: 4263 | AY89: 4350 | AZ89: 4437 | BA89: 4524 | BB89: 4611 | BC89: 4698 | BD89: 4785 | BE89: 4872 | BF89: 4959 | BG89: 5046 | BH89: 5133 | BI89: 5220 | BJ89: 5307 | BK89: 5394 | BL89: 5481 | BM89: 5568 | BN89: 5655 | BO89: 5742 | BP89: 5829 | BQ89: 5916 | BR89: 6003 | BS89: 6090 | BT89: 6177 | BU89: 6264 | BV89: 6351 | BW89: 6438 | BX89: 6525 | BY89: 6612 | BZ89: 6699 | CA89: 6786 | CB89: 6873 | CC89: 6960 | CD89: 7047 | CE89: 7134 | CF89: 7221 | CG89: 7308 | CH89: 7395 | CI89: 7482 | CJ89: 7569 | CK89: 7656 | CL89: 7743 | CM89: 7830 | CN89: 7917 | CO89: 8004 | CP89: 8091 | CQ89: 8178 | CR89: 8265 | CS89: 8352 | CT89: 8439 | CU89: 8526 | CV89: 8613 | CW89: 8700
A90: 88 | B90: 88 | C90: 176 | D90: 264 | E90: 352 | F90: 440 | G90: 528 | H90: 616 | I90: 704 | J90: 792 | K90: 880 | L90: 968 | M90: 1056 | N90: 1144 | O90: 1232 | P90: 1320 | Q90: 1408 | R90: 1496 | S90: 1584 | T90: 1672 | U90: 1760 | V90: 1848 | W90: 1936 | X90: 2024 | Y90: 2112 | Z90: 2200 | AA90: 2288 | AB90: 2376 | AC90: 2464 | AD90: 2552 | AE90: 2640 | AF90: 2728 | AG90: 2816 | AH90: 2904 | AI90: 2992 | AJ90: 3080 | AK90: 3168 | AL90: 3256 | AM90: 3344 | AN90: 3432 | AO90: 3520 | AP90: 3608 | AQ90: 3696 | AR90: 3784 | AS90: 3872 | AT90: 3960 | AU90: 4048 | AV90: 4136 | AW90: 4224 | AX90: 4312 | AY90: 4400 | AZ90: 4488 | BA90: 4576 | BB90: 4664 | BC90: 4752 | BD90: 4840 | BE90: 4928 | BF90: 5016 | BG90: 5104 | BH90: 5192 | BI90: 5280 | BJ90: 5368 | BK90: 5456 | BL90: 5544 | BM90: 5632 | BN90: 5720 | BO90: 5808 | BP90: 5896 | BQ90: 5984 | BR90: 6072 | BS90: 6160 | BT90: 6248 | BU90: 6336 | BV90: 6424 | BW90: 6512 | BX90: 6600 | BY90: 6688 | BZ90: 6776 | CA90: 6864 | CB90: 6952 | CC90: 7040 | CD90: 7128 | CE90: 7216 | CF90: 7304 | CG90: 7392 | CH90: 7480 | CI90: 7568 | CJ90: 7656 | CK90: 7744 | CL90: 7832 | CM90: 7920 | CN90: 8008 | CO90: 8096 | CP90: 8184 | CQ90: 8272 | CR90: 8360 | CS90: 8448 | CT90: 8536 | CU90: 8624 | CV90: 8712 | CW90: 8800
A91: 89 | B91: 89 | C91: 178 | D91: 267 | E91: 356 | F91: 445 | G91: 534 | H91: 623 | I91: 712 | J91: 801 | K91: 890 | L91: 979 | M91: 1068 | N91: 1157 | O91: 1246 | P91: 1335 | Q91: 1424 | R91: 1513 | S91: 1602 | T91: 1691 | U91: 1780 | V91: 1869 | W91: 1958 | X91: 2047 | Y91: 2136 | Z91: 2225 | AA91: 2314 | AB91: 2403 | AC91: 2492 | AD91: 2581 | AE91: 2670 | AF91: 2759 | AG91: 2848 | AH91: 2937 | AI91: 3026 | AJ91: 3115 | AK91: 3204 | AL91: 3293 | AM91: 3382 | AN91: 3471 | AO91: 3560 | AP91: 3649 | AQ91: 3738 | AR91: 3827 | AS91: 3916 | AT91: 4005 | AU91: 4094 | AV91: 4183 | AW91: 4272 | AX91: 4361 | AY91: 4450 | AZ91: 4539 | BA91: 4628 | BB91: 4717 | BC91: 4806 | BD91: 4895 | BE91: 4984 | BF91: 5073 | BG91: 5162 | BH91: 5251 | BI91: 5340 | BJ91: 5429 | BK91: 5518 | BL91: 5607 | BM91: 5696 | BN91: 5785 | BO91: 5874 | BP91: 5963 | BQ91: 6052 | BR91: 6141 | BS91: 6230 | BT91: 6319 | BU91: 6408 | BV91: 6497 | BW91: 6586 | BX91: 6675 | BY91: 6764 | BZ91: 6853 | CA91: 6942 | CB91: 7031 | CC91: 7120 | CD91: 7209 | CE91: 7298 | CF91: 7387 | CG91: 7476 | CH91: 7565 | CI91: 7654 | CJ91: 7743 | CK91: 7832 | CL91: 7921 | CM91: 8010 | CN91: 8099 | CO91: 8188 | CP91: 8277 | CQ91: 8366 | CR91: 8455 | CS91: 8544 | CT91: 8633 | CU91: 8722 | CV91: 8811 | CW91: 8900
A92: 90 | B92: 90 | C92: 180 | D92: 270 | E92: 360 | F92: 450 | G92: 540 | H92: 630 | I92: 720 | J92: 810 | K92: 900 | L92: 990 | M92: 1080 | N92: 1170 | O92: 1260 | P92: 1350 | Q92: 1440 | R92: 1530 | S92: 1620 | T92: 1710 | U92: 1800 | V92: 1890 | W92: 1980 | X92: 2070 | Y92: 2160 | Z92: 2250 | AA92: 2340 | AB92: 2430 | AC92: 2520 | AD92: 2610 | AE92: 2700 | AF92: 2790 | AG92: 2880 | AH92: 2970 | AI92: 3060 | AJ92: 3150 | AK92: 3240 | AL92: 3330 | AM92: 3420 | AN92: 3510 | AO92: 3600 | AP92: 3690 | AQ92: 3780 | AR92: 3870 | AS92: 3960 | AT92: 4050 | AU92: 4140 | AV92: 4230 | AW92: 4320 | AX92: 4410 | AY92: 4500 | AZ92: 4590 | BA92: 4680 | BB92: 4770 | BC92: 4860 | BD92: 4950 | BE92: 5040 | BF92: 5130 | BG92: 5220 | BH92: 5310 | BI92: 5400 | BJ92: 5490 | BK92: 5580 | BL92: 5670 | BM92: 5760 | BN92: 5850 | BO92: 5940 | BP92: 6030 | BQ92: 6120 | BR92: 6210 | BS92: 6300 | BT92: 6390 | BU92: 6480 | BV92: 6570 | BW92: 6660 | BX92: 6750 | BY92: 6840 | BZ92: 6930 | CA92: 7020 | CB92: 7110 | CC92: 7200 | CD92: 7290 | CE92: 7380 | CF92: 7470 | CG92: 7560 | CH92: 7650 | CI92: 7740 | CJ92: 7830 | CK92: 7920 | CL92: 8010 | CM92: 8100 | CN92: 8190 | CO92: 8280 | CP92: 8370 | CQ92: 8460 | CR92: 8550 | CS92: 8640 | CT92: 8730 | CU92: 8820 | CV92: 8910 | CW92: 9000
A93: 91 | B93: =$A93*B$2 -> 91 | C93: 182 | D93: 273 | E93: 364 | F93: 455 | G93: 546 | H93: 637 | I93: 728 | J93: 819 | K93: 910 | L93: =$A93*L$2 -> 1001 | M93: 1092 | N93: 1183 | O93: 1274 | P93: 1365 | Q93: 1456 | R93: 1547 | S93: 1638 | T93: 1729 | U93: 1820 | V93: =$A93*V$2 -> 1911 | W93: 2002 | X93: 2093 | Y93: 2184 | Z93: 2275 | AA93: 2366 | AB93: 2457 | AC93: 2548 | AD93: 2639 | AE93: 2730 | AF93: =$A93*AF$2 -> 2821 | AG93: 2912 | AH93: 3003 | AI93: 3094 | AJ93: 3185 | AK93: 3276 | AL93: 3367 | AM93: 3458 | AN93: 3549 | AO93: 3640 | AP93: =$A93*AP$2 -> 3731 | AQ93: 3822 | AR93: 3913 | AS93: 4004 | AT93: 4095 | AU93: 4186 | AV93: 4277 | AW93: 4368 | AX93: 4459 | AY93: 4550 | AZ93: =$A93*AZ$2 -> 4641 | BA93: 4732 | BB93: 4823 | BC93: 4914 | BD93: 5005 | BE93: 5096 | BF93: 5187 | BG93: 5278 | BH93: 5369 | BI93: 5460 | BJ93: =$A93*BJ$2 -> 5551 | BK93: 5642 | BL93: 5733 | BM93: 5824 | BN93: 5915 | BO93: 6006 | BP93: 6097 | BQ93: 6188 | BR93: 6279 | BS93: 6370 | BT93: =$A93*BT$2 -> 6461 | BU93: 6552 | BV93: 6643 | BW93: 6734 | BX93: 6825 | BY93: 6916 | BZ93: 7007 | CA93: 7098 | CB93: 7189 | CC93: 7280 | CD93: =$A93*CD$2 -> 7371 | CE93: 7462 | CF93: 7553 | CG93: 7644 | CH93: 7735 | CI93: 7826 | CJ93: 7917 | CK93: 8008 | CL93: 8099 | CM93: 8190 | CN93: =$A93*CN$2 -> 8281 | CO93: 8372 | CP93: 8463 | CQ93: 8554 | CR93: 8645 | CS93: 8736 | CT93: 8827 | CU93: 8918 | CV93: 9009 | CW93: 9100
A94: 92 | B94: 92 | C94: 184 | D94: 276 | E94: 368 | F94: 460 | G94: 552 | H94: 644 | I94: 736 | J94: 828 | K94: 920 | L94: 1012 | M94: 1104 | N94: 1196 | O94: 1288 | P94: 1380 | Q94: 1472 | R94: 1564 | S94: 1656 | T94: 1748 | U94: 1840 | V94: 1932 | W94: 2024 | X94: 2116 | Y94: 2208 | Z94: 2300 | AA94: 2392 | AB94: 2484 | AC94: 2576 | AD94: 2668 | AE94: 2760 | AF94: 2852 | AG94: 2944 | AH94: 3036 | AI94: 3128 | AJ94: 3220 | AK94: 3312 | AL94: 3404 | AM94: 3496 | AN94: 3588 | AO94: 3680 | AP94: 3772 | AQ94: 3864 | AR94: 3956 | AS94: 4048 | AT94: 4140 | AU94: 4232 | AV94: 4324 | AW94: 4416 | AX94: 4508 | AY94: 4600 | AZ94: 4692 | BA94: 4784 | BB94: 4876 | BC94: 4968 | BD94: 5060 | BE94: 5152 | BF94: 5244 | BG94: 5336 | BH94: 5428 | BI94: 5520 | BJ94: 5612 | BK94: 5704 | BL94: 5796 | BM94: 5888 | BN94: 5980 | BO94: 6072 | BP94: 6164 | BQ94: 6256 | BR94: 6348 | BS94: 6440 | BT94: 6532 | BU94: 6624 | BV94: 6716 | BW94: 6808 | BX94: 6900 | BY94: 6992 | BZ94: 7084 | CA94: 7176 | CB94: 7268 | CC94: 7360 | CD94: 7452 | CE94: 7544 | CF94: 7636 | CG94: 7728 | CH94: 7820 | CI94: 7912 | CJ94: 8004 | CK94: 8096 | CL94: 8188 | CM94: 8280 | CN94: 8372 | CO94: 8464 | CP94: 8556 | CQ94: 8648 | CR94: 8740 | CS94: 8832 | CT94: 8924 | CU94: 9016 | CV94: 9108 | CW94: 9200
A95: 93 | B95: 93 | C95: 186 | D95: 279 | E95: 372 | F95: 465 | G95: 558 | H95: 651 | I95: 744 | J95: 837 | K95: 930 | L95: 1023 | M95: 1116 | N95: 1209 | O95: 1302 | P95: 1395 | Q95: 1488 | R95: 1581 | S95: 1674 | T95: 1767 | U95: 1860 | V95: 1953 | W95: 2046 | X95: 2139 | Y95: 2232 | Z95: 2325 | AA95: 2418 | AB95: 2511 | AC95: 2604 | AD95: 2697 | AE95: 2790 | AF95: 2883 | AG95: 2976 | AH95: 3069 | AI95: 3162 | AJ95: 3255 | AK95: 3348 | AL95: 3441 | AM95: 3534 | AN95: 3627 | AO95: 3720 | AP95: 3813 | AQ95: 3906 | AR95: 3999 | AS95: 4092 | AT95: 4185 | AU95: 4278 | AV95: 4371 | AW95: 4464 | AX95: 4557 | AY95: 4650 | AZ95: 4743 | BA95: 4836 | BB95: 4929 | BC95: 5022 | BD95: 5115 | BE95: 5208 | BF95: 5301 | BG95: 5394 | BH95: 5487 | BI95: 5580 | BJ95: 5673 | BK95: 5766 | BL95: 5859 | BM95: 5952 | BN95: 6045 | BO95: 6138 | BP95: 6231 | BQ95: 6324 | BR95: 6417 | BS95: 6510 | BT95: 6603 | BU95: 6696 | BV95: 6789 | BW95: 6882 | BX95: 6975 | BY95: 7068 | BZ95: 7161 | CA95: 7254 | CB95: 7347 | CC95: 7440 | CD95: 7533 | CE95: 7626 | CF95: 7719 | CG95: 7812 | CH95: 7905 | CI95: 7998 | CJ95: 8091 | CK95: 8184 | CL95: 8277 | CM95: 8370 | CN95: 8463 | CO95: 8556 | CP95: 8649 | CQ95: 8742 | CR95: 8835 | CS95: 8928 | CT95: 9021 | CU95: 9114 | CV95: 9207 | CW95: 9300
A96: 94 | B96: 94 | C96: 188 | D96: 282 | E96: 376 | F96: 470 | G96: 564 | H96: 658 | I96: 752 | J96: 846 | K96: 940 | L96: 1034 | M96: 1128 | N96: 1222 | O96: 1316 | P96: 1410 | Q96: 1504 | R96: 1598 | S96: 1692 | T96: 1786 | U96: 1880 | V96: 1974 | W96: 2068 | X96: 2162 | Y96: 2256 | Z96: 2350 | AA96: 2444 | AB96: 2538 | AC96: 2632 | AD96: 2726 | AE96: 2820 | AF96: 2914 | AG96: 3008 | AH96: 3102 | AI96: 3196 | AJ96: 3290 | AK96: 3384 | AL96: 3478 | AM96: 3572 | AN96: 3666 | AO96: 3760 | AP96: 3854 | AQ96: 3948 | AR96: 4042 | AS96: 4136 | AT96: 4230 | AU96: 4324 | AV96: 4418 | AW96: 4512 | AX96: 4606 | AY96: 4700 | AZ96: 4794 | BA96: 4888 | BB96: 4982 | BC96: 5076 | BD96: 5170 | BE96: 5264 | BF96: 5358 | BG96: 5452 | BH96: 5546 | BI96: 5640 | BJ96: 5734 | BK96: 5828 | BL96: 5922 | BM96: 6016 | BN96: 6110 | BO96: 6204 | BP96: 6298 | BQ96: 6392 | BR96: 6486 | BS96: 6580 | BT96: 6674 | BU96: 6768 | BV96: 6862 | BW96: 6956 | BX96: 7050 | BY96: 7144 | BZ96: 7238 | CA96: 7332 | CB96: 7426 | CC96: 7520 | CD96: 7614 | CE96: 7708 | CF96: 7802 | CG96: 7896 | CH96: 7990 | CI96: 8084 | CJ96: 8178 | CK96: 8272 | CL96: 8366 | CM96: 8460 | CN96: 8554 | CO96: 8648 | CP96: 8742 | CQ96: 8836 | CR96: 8930 | CS96: 9024 | CT96: 9118 | CU96: 9212 | CV96: 9306 | CW96: 9400
A97: 95 | B97: 95 | C97: 190 | D97: 285 | E97: 380 | F97: 475 | G97: 570 | H97: 665 | I97: 760 | J97: 855 | K97: 950 | L97: 1045 | M97: 1140 | N97: 1235 | O97: 1330 | P97: 1425 | Q97: 1520 | R97: 1615 | S97: 1710 | T97: 1805 | U97: 1900 | V97: 1995 | W97: 2090 | X97: 2185 | Y97: 2280 | Z97: 2375 | AA97: 2470 | AB97: 2565 | AC97: 2660 | AD97: 2755 | AE97: 2850 | AF97: 2945 | AG97: 3040 | AH97: 3135 | AI97: 3230 | AJ97: 3325 | AK97: 3420 | AL97: 3515 | AM97: 3610 | AN97: 3705 | AO97: 3800 | AP97: 3895 | AQ97: 3990 | AR97: 4085 | AS97: 4180 | AT97: 4275 | AU97: 4370 | AV97: 4465 | AW97: 4560 | AX97: 4655 | AY97: 4750 | AZ97: 4845 | BA97: 4940 | BB97: 5035 | BC97: 5130 | BD97: 5225 | BE97: 5320 | BF97: 5415 | BG97: 5510 | BH97: 5605 | BI97: 5700 | BJ97: 5795 | BK97: 5890 | BL97: 5985 | BM97: 6080 | BN97: 6175 | BO97: 6270 | BP97: 6365 | BQ97: 6460 | BR97: 6555 | BS97: 6650 | BT97: 6745 | BU97: 6840 | BV97: 6935 | BW97: 7030 | BX97: 7125 | BY97: 7220 | BZ97: 7315 | CA97: 7410 | CB97: 7505 | CC97: 7600 | CD97: 7695 | CE97: 7790 | CF97: 7885 | CG97: 7980 | CH97: 8075 | CI97: 8170 | CJ97: 8265 | CK97: 8360 | CL97: 8455 | CM97: 8550 | CN97: 8645 | CO97: 8740 | CP97: 8835 | CQ97: 8930 | CR97: 9025 | CS97: 9120 | CT97: 9215 | CU97: 9310 | CV97: 9405 | CW97: 9500
A98: 96 | B98: 96 | C98: 192 | D98: 288 | E98: 384 | F98: 480 | G98: 576 | H98: 672 | I98: 768 | J98: 864 | K98: 960 | L98: 1056 | M98: 1152 | N98: 1248 | O98: 1344 | P98: 1440 | Q98: 1536 | R98: 1632 | S98: 1728 | T98: 1824 | U98: 1920 | V98: 2016 | W98: 2112 | X98: 2208 | Y98: 2304 | Z98: 2400 | AA98: 2496 | AB98: 2592 | AC98: 2688 | AD98: 2784 | AE98: 2880 | AF98: 2976 | AG98: 3072 | AH98: 3168 | AI98: 3264 | AJ98: 3360 | AK98: 3456 | AL98: 3552 | AM98: 3648 | AN98: 3744 | AO98: 3840 | AP98: 3936 | AQ98: 4032 | AR98: 4128 | AS98: 4224 | AT98: 4320 | AU98: 4416 | AV98: 4512 | AW98: 4608 | AX98: 4704 | AY98: 4800 | AZ98: 4896 | BA98: 4992 | BB98: 5088 | BC98: 5184 | BD98: 5280 | BE98: 5376 | BF98: 5472 | BG98: 5568 | BH98: 5664 | BI98: 5760 | BJ98: 5856 | BK98: 5952 | BL98: 6048 | BM98: 6144 | BN98: 6240 | BO98: 6336 | BP98: 6432 | BQ98: 6528 | BR98: 6624 | BS98: 6720 | BT98: 6816 | BU98: 6912 | BV98: 7008 | BW98: 7104 | BX98: 7200 | BY98: 7296 | BZ98: 7392 | CA98: 7488 | CB98: 7584 | CC98: 7680 | CD98: 7776 | CE98: 7872 | CF98: 7968 | CG98: 8064 | CH98: 8160 | CI98: 8256 | CJ98: 8352 | CK98: 8448 | CL98: 8544 | CM98: 8640 | CN98: 8736 | CO98: 8832 | CP98: 8928 | CQ98: 9024 | CR98: 9120 | CS98: 9216 | CT98: 9312 | CU98: 9408 | CV98: 9504 | CW98: 9600
A99: 97 | B99: 97 | C99: 194 | D99: 291 | E99: 388 | F99: 485 | G99: 582 | H99: 679 | I99: 776 | J99: 873 | K99: 970 | L99: 1067 | M99: 1164 | N99: 1261 | O99: 1358 | P99: 1455 | Q99: 1552 | R99: 1649 | S99: 1746 | T99: 1843 | U99: 1940 | V99: 2037 | W99: 2134 | X99: 2231 | Y99: 2328 | Z99: 2425 | AA99: 2522 | AB99: 2619 | AC99: 2716 | AD99: 2813 | AE99: 2910 | AF99: 3007 | AG99: 3104 | AH99: 3201 | AI99: 3298 | AJ99: 3395 | AK99: 3492 | AL99: 3589 | AM99: 3686 | AN99: 3783 | AO99: 3880 | AP99: 3977 | AQ99: 4074 | AR99: 4171 | AS99: 4268 | AT99: 4365 | AU99: 4462 | AV99: 4559 | AW99: 4656 | AX99: 4753 | AY99: 4850 | AZ99: 4947 | BA99: 5044 | BB99: 5141 | BC99: 5238 | BD99: 5335 | BE99: 5432 | BF99: 5529 | BG99: 5626 | BH99: 5723 | BI99: 5820 | BJ99: 5917 | BK99: 6014 | BL99: 6111 | BM99: 6208 | BN99: 6305 | BO99: 6402 | BP99: 6499 | BQ99: 6596 | BR99: 6693 | BS99: 6790 | BT99: 6887 | BU99: 6984 | BV99: 7081 | BW99: 7178 | BX99: 7275 | BY99: 7372 | BZ99: 7469 | CA99: 7566 | CB99: 7663 | CC99: 7760 | CD99: 7857 | CE99: 7954 | CF99: 8051 | CG99: 8148 | CH99: 8245 | CI99: 8342 | CJ99: 8439 | CK99: 8536 | CL99: 8633 | CM99: 8730 | CN99: 8827 | CO99: 8924 | CP99: 9021 | CQ99: 9118 | CR99: 9215 | CS99: 9312 | CT99: 9409 | CU99: 9506 | CV99: 9603 | CW99: 9700
A100: 98 | B100: 98 | C100: 196 | D100: 294 | E100: 392 | F100: 490 | G100: 588 | H100: 686 | I100: 784 | J100: 882 | K100: 980 | L100: 1078 | M100: 1176 | N100: 1274 | O100: 1372 | P100: 1470 | Q100: 1568 | R100: 1666 | S100: 1764 | T100: 1862 | U100: 1960 | V100: 2058 | W100: 2156 | X100: 2254 | Y100: 2352 | Z100: 2450 | AA100: 2548 | AB100: 2646 | AC100: 2744 | AD100: 2842 | AE100: 2940 | AF100: 3038 | AG100: 3136 | AH100: 3234 | AI100: 3332 | AJ100: 3430 | AK100: 3528 | AL100: 3626 | AM100: 3724 | AN100: 3822 | AO100: 3920 | AP100: 4018 | AQ100: 4116 | AR100: 4214 | AS100: 4312 | AT100: 4410 | AU100: 4508 | AV100: 4606 | AW100: 4704 | AX100: 4802 | AY100: 4900 | AZ100: 4998 | BA100: 5096 | BB100: 5194 | BC100: 5292 | BD100: 5390 | BE100: 5488 | BF100: 5586 | BG100: 5684 | BH100: 5782 | BI100: 5880 | BJ100: 5978 | BK100: 6076 | BL100: 6174 | BM100: 6272 | BN100: 6370 | BO100: 6468 | BP100: 6566 | BQ100: 6664 | BR100: 6762 | BS100: 6860 | BT100: 6958 | BU100: 7056 | BV100: 7154 | BW100: 7252 | BX100: 7350 | BY100: 7448 | BZ100: 7546 | CA100: 7644 | CB100: 7742 | CC100: 7840 | CD100: 7938 | CE100: 8036 | CF100: 8134 | CG100: 8232 | CH100: 8330 | CI100: 8428 | CJ100: 8526 | CK100: 8624 | CL100: 8722 | CM100: 8820 | CN100: 8918 | CO100: 9016 | CP100: 9114 | CQ100: 9212 | CR100: 9310 | CS100: 9408 | CT100: 9506 | CU100: 9604 | CV100: 9702 | CW100: 9800
A101: 99 | B101: 99 | C101: 198 | D101: 297 | E101: 396 | F101: 495 | G101: 594 | H101: 693 | I101: 792 | J101: 891 | K101: 990 | L101: 1089 | M101: 1188 | N101: 1287 | O101: 1386 | P101: 1485 | Q101: 1584 | R101: 1683 | S101: 1782 | T101: 1881 | U101: 1980 | V101: 2079 | W101: 2178 | X101: 2277 | Y101: 2376 | Z101: 2475 | AA101: 2574 | AB101: 2673 | AC101: 2772 | AD101: 2871 | AE101: 2970 | AF101: 3069 | AG101: 3168 | AH101: 3267 | AI101: 3366 | AJ101: 3465 | AK101: 3564 | AL101: 3663 | AM101: 3762 | AN101: 3861 | AO101: 3960 | AP101: 4059 | AQ101: 4158 | AR101: 4257 | AS101: 4356 | AT101: 4455 | AU101: 4554 | AV101: 4653 | AW101: 4752 | AX101: 4851 | AY101: 4950 | AZ101: 5049 | BA101: 5148 | BB101: 5247 | BC101: 5346 | BD101: 5445 | BE101: 5544 | BF101: 5643 | BG101: 5742 | BH101: 5841 | BI101: 5940 | BJ101: 6039 | BK101: 6138 | BL101: 6237 | BM101: 6336 | BN101: 6435 | BO101: 6534 | BP101: 6633 | BQ101: 6732 | BR101: 6831 | BS101: 6930 | BT101: 7029 | BU101: 7128 | BV101: 7227 | BW101: 7326 | BX101: 7425 | BY101: 7524 | BZ101: 7623 | CA101: 7722 | CB101: 7821 | CC101: 7920 | CD101: 8019 | CE101: 8118 | CF101: 8217 | CG101: 8316 | CH101: 8415 | CI101: 8514 | CJ101: 8613 | CK101: 8712 | CL101: 8811 | CM101: 8910 | CN101: 9009 | CO101: 9108 | CP101: 9207 | CQ101: 9306 | CR101: 9405 | CS101: 9504 | CT101: 9603 | CU101: 9702 | CV101: 9801 | CW101: 9900
A102: 100 | B102: 100 | C102: 200 | D102: 300 | E102: 400 | F102: 500 | G102: 600 | H102: 700 | I102: 800 | J102: 900 | K102: 1000 | L102: 1100 | M102: 1200 | N102: 1300 | O102: 1400 | P102: 1500 | Q102: 1600 | R102: 1700 | S102: 1800 | T102: 1900 | U102: 2000 | V102: 2100 | W102: 2200 | X102: 2300 | Y102: 2400 | Z102: 2500 | AA102: 2600 | AB102: 2700 | AC102: 2800 | AD102: 2900 | AE102: 3000 | AF102: 3100 | AG102: 3200 | AH102: 3300 | AI102: 3400 | AJ102: 3500 | AK102: 3600 | AL102: 3700 | AM102: 3800 | AN102: 3900 | AO102: 4000 | AP102: 4100 | AQ102: 4200 | AR102: 4300 | AS102: 4400 | AT102: 4500 | AU102: 4600 | AV102: 4700 | AW102: 4800 | AX102: 4900 | AY102: 5000 | AZ102: 5100 | BA102: 5200 | BB102: 5300 | BC102: 5400 | BD102: 5500 | BE102: 5600 | BF102: 5700 | BG102: 5800 | BH102: 5900 | BI102: 6000 | BJ102: 6100 | BK102: 6200 | BL102: 6300 | BM102: 6400 | BN102: 6500 | BO102: 6600 | BP102: 6700 | BQ102: 6800 | BR102: 6900 | BS102: 7000 | BT102: 7100 | BU102: 7200 | BV102: 7300 | BW102: 7400 | BX102: 7500 | BY102: 7600 | BZ102: 7700 | CA102: 7800 | CB102: 7900 | CC102: 8000 | CD102: 8100 | CE102: 8200 | CF102: 8300 | CG102: 8400 | CH102: 8500 | CI102: 8600 | CJ102: 8700 | CK102: 8800 | CL102: 8900 | CM102: 9000 | CN102: 9100 | CO102: 9200 | CP102: 9300 | CQ102: 9400 | CR102: 9500 | CS102: 9600 | CT102: 9700 | CU102: 9800 | CV102: 9900 | CW102: 10000
